Workbook

Sheet Cover

Sheet Index
B1: AER opex model | D1: 31 January 2018
B2: Index
B4: Model index
C6: Sheet Name | D6: Sheet Description
C7: Input | General | D7: Inputs NSP name, regulatory years for the prior and forecast regulatory control period etc.
C8: Input | Inflation | D8: Inputs inflation data.
C9: Input | Reported opex | D9: Inputs the reported operating expenditure (opex) from the prior regulatory control period.
C10: Input | Rate of change | D10: Inputs the cost escalation weights, cost escalation forecast, and inflation actuals and forecast
C11: Input | Step changes | D11: Inputs the operating expenditure (opex) data, including historical opex by category, one-off costs, step changes, demand forecasts, carbon costs, self insurance, network growth, and partial factor productivity
C12: Input | Dx TX split | D12: Inputs the split of total opex bewteen distribution and transmission services.
C13: Calc | Opex Forecast | D13: Calculates the opex forecast from RY2014 to RY2020
C14: Output | Models | D14: Outputs the opex forecast needed as a post tax revenue model input (which excludes debt raising costs).
C15: Lookup | Tables | D15: Includes the lookup tables used within this opex model.
C16: Check | List | D16: Shows checks on the calculations within the model
B18: End

Sheet Input|General
B1: =Index!$B$1 -> AER opex model | J1: Back to Index | L1: Key: | M1: Input | N1: External Link | O1: Internal Link | R1: Worksheet check: | S1: =IF(COUNTA($S$5:$S$14)=COUNTIF($S5:$S14,"OK"),"OK","Check") -> OK | U1: Overall Check: | V1: ='Check|List'!$S$1 -> Ok
B2: =Index!$C$7 -> Input | General
B4: Input | General inputs
C6: Inputs | D6: Source | G6: Value
C7: NSP name | D7: NSP | G7: Ausgrid | S7: =IF(COUNTBLANK($G7),"Check","Ok") -> Ok
C8: Prior regulatory control period, first year | D8: NSP | G8: 2014-15 | S8: =IF(COUNTBLANK($G8),"Check","Ok") -> Ok
C9: Forecast base year | D9: NSP | G9: 2017-18 | S9: Ok
C10: Prior regulatory control period, last year | D10: NSP | G10: 2018-19 | S10: Ok
C11: Forecast regulatory control period, first year | D11: NSP | G11: 2019-20 | S11: Ok
C12: Forecast regulatory control period, last year | D12: NSP | G12: 2023-24 | S12: Ok
B14: End

Sheet Input|Inflation
B1: =Index!$B$1 -> AER opex model | J1: Back to Index | L1: Key: | M1: Input | N1: External Link | O1: Internal Link | R1: Worksheet check: | S1: =IF(COUNTA($S$5:$S$40)=COUNTIF($S5:$S40,"OK"),"OK","Check") -> OK | U1: Overall Check: | V1: ='Check|List'!$S$1 -> Ok
B2: =Index!$C$8 -> Input | Inflation
B4: Input | General inputs
D6: Index value, old base | E6: Index value, new base
C7: Source | D7: ABS | E7: ABS
C8: Unit | D8: index | E8: index
C9: 2012-03-31 | E9: 99.9 | S9: =IF(COUNTBLANK($E9),"Check","Ok") -> Ok
C10: 2012-06-30 | E10: 100.4 | S10: Ok
C11: 2012-09-30 | E11: 101.8 | S11: Ok
C12: 2012-12-31 | E12: 102 | S12: Ok
C13: 2013-03-31 | E13: 102.4 | S13: Ok
C14: 2013-06-30 | E14: 102.8 | S14: Ok
C15: 2013-09-30 | E15: 104 | S15: Ok
C16: 2013-12-31 | E16: 104.8 | S16: Ok
C17: 2014-03-31 | E17: 105.4 | S17: Ok
C18: 2014-06-30 | E18: 105.9 | S18: Ok
C19: 2014-09-30 | E19: 106.4 | S19: Ok
C20: 2014-12-31 | E20: 106.6 | S20: Ok
C21: 2015-03-31 | E21: 106.8 | S21: Ok
C22: 2015-06-30 | E22: 107.5 | S22: Ok
C23: 2015-09-30 | E23: 108 | S23: Ok
C24: 2015-12-31 | E24: 108.4 | S24: Ok
C25: 2016-03-31 | E25: 108.2 | S25: Ok
C26: 2016-06-30 | E26: 108.6 | S26: Ok
C27: 2016-09-30 | E27: 109.4 | S27: Ok
C28: 2016-12-31 | E28: 110 | S28: Ok
C29: 2017-03-31 | E29: 110.5 | S29: Ok
C30: 2017-06-30 | E30: 110.7 | S30: Ok
C31: 2017-09-30 | E31: 111.4 | S31: Ok
C32: 2017-12-31 | E32: 112.1 | S32: Ok
C33: 2018-03-31 | E33: 112.3250509 | F33: BIS forecasts (see attachment RIN 1.9) | S33: Ok
C34: 2018-06-30 | E34: 112.8720185 | F34: BIS forecasts | S34: Ok
C35: 2018-09-30 | E35: 113.4994069 | F35: BIS forecasts | S35: Ok
C36: 2018-12-31 | E36: 114.1302826 | F36: BIS forecasts | S36: Ok
C37: 2019-03-31 | E37: 114.7646649 | F37: BIS forecasts | S37: Ok
C38: 2019-06-30 | E38: 115.4025734 | F38: BIS forecasts | S38: Ok
B40: End

Sheet Input|Reported opex
C1: =Index!$B$1 -> AER opex model | J1: Back to Index | L1: Key: | M1: Input | N1: External Link | O1: Internal Link | R1: Worksheet check: | S1: =IF(COUNTA($W$32:$W$60)=COUNTIF($W$32:$W$60,"OK"),"OK","Check") -> OK | U1: Overall Check: | V1: ='Check|List'!$S$1 -> Ok
C2: =Index!$C$9 -> Input | Reported opex
D4: Source | E4: Unit | F4: Basis | J4: ='Input|General'!$G$8 -> 2014-15 | K4: =IF(OFFSET('Lookup|Tables'!$G$28:$G$43,MATCH('Input|General'!$G$8,'Lookup|Tables'!$G$28:$G$42,0)+1,0,1,1)<='Input|General'!$G$12,OFFSET('Lookup|Tables'!$G$28:$G$43,MATCH('Input|General'!$G$8,'Lookup|Tables'!$G$28:$G$42,0),0,1,1),"") -> 2015-16 | L4: =IF(OFFSET('Lookup|Tables'!$G$28:$G$43,MATCH('Input|General'!$G$8,'Lookup|Tables'!$G$28:$G$42,0)+1,0,1,1)<='Input|General'!$G$12,OFFSET('Lookup|Tables'!$G$28:$G$43,MATCH('Input|General'!$G$8,'Lookup|Tables'!$G$28:$G$42,0)+1,0,1,1),"") -> 2016-17 | M4: =IF(OFFSET('Lookup|Tables'!$G$28:$G$43,MATCH('Input|General'!$G$8,'Lookup|Tables'!$G$28:$G$42,0)+2,0,1,1)<='Input|General'!$G$12,OFFSET('Lookup|Tables'!$G$28:$G$43,MATCH('Input|General'!$G$8,'Lookup|Tables'!$G$28:$G$42,0)+2,0,1,1),"") -> 2017-18 | N4: =IF(OFFSET('Lookup|Tables'!$G$28:$G$43,MATCH('Input|General'!$G$8,'Lookup|Tables'!$G$28:$G$42,0)+3,0,1,1)<='Input|General'!$G$12,OFFSET('Lookup|Tables'!$G$28:$G$43,MATCH('Input|General'!$G$8,'Lookup|Tables'!$G$28:$G$42,0)+3,0,1,1),"") -> 2018-19 | O4: =IF(OFFSET('Lookup|Tables'!$G$28:$G$43,MATCH('Input|General'!$G$8,'Lookup|Tables'!$G$28:$G$42,0)+4,0,1,1)<='Input|General'!$G$12,OFFSET('Lookup|Tables'!$G$28:$G$43,MATCH('Input|General'!$G$8,'Lookup|Tables'!$G$28:$G$42,0)+4,0,1,1),"") -> 2019-20 | P4: =IF(OFFSET('Lookup|Tables'!$G$28:$G$43,MATCH('Input|General'!$G$8,'Lookup|Tables'!$G$28:$G$42,0)+5,0,1,1)<='Input|General'!$G$12,OFFSET('Lookup|Tables'!$G$28:$G$43,MATCH('Input|General'!$G$8,'Lookup|Tables'!$G$28:$G$42,0)+5,0,1,1),"") -> 2020-21 | Q4: =IF(OFFSET('Lookup|Tables'!$G$28:$G$43,MATCH('Input|General'!$G$8,'Lookup|Tables'!$G$28:$G$42,0)+6,0,1,1)<='Input|General'!$G$12,OFFSET('Lookup|Tables'!$G$28:$G$43,MATCH('Input|General'!$G$8,'Lookup|Tables'!$G$28:$G$42,0)+6,0,1,1),"") -> 2021-22 | R4: =IF(OFFSET('Lookup|Tables'!$G$28:$G$43,MATCH('Input|General'!$G$8,'Lookup|Tables'!$G$28:$G$42,0)+7,0,1,1)<='Input|General'!$G$12,OFFSET('Lookup|Tables'!$G$28:$G$43,MATCH('Input|General'!$G$8,'Lookup|Tables'!$G$28:$G$42,0)+7,0,1,1),"") -> 2022-23 | S4: =IF(OFFSET('Lookup|Tables'!$G$28:$G$43,MATCH('Input|General'!$G$8,'Lookup|Tables'!$G$28:$G$42,0)+8,0,1,1)<='Input|General'!$G$12,OFFSET('Lookup|Tables'!$G$28:$G$43,MATCH('Input|General'!$G$8,'Lookup|Tables'!$G$28:$G$42,0)+8,0,1,1),"") -> 2023-24
B8: Input | Opex allowances
C10: Cost category | D10: Source | E10: Unit | F10: Basis | J10: =IF(RIGHT(J$4,2)<=RIGHT('Input|General'!$G$10,2),'Input|Reported opex'!J$4,"") -> 2014-15 | K10: =IF(RIGHT(K$4,2)<=RIGHT('Input|General'!$G$10,2),'Input|Reported opex'!K$4,"") -> 2015-16 | L10: =IF(RIGHT(L$4,2)<=RIGHT('Input|General'!$G$10,2),'Input|Reported opex'!L$4,"") -> 2016-17 | M10: =IF(RIGHT(M$4,2)<=RIGHT('Input|General'!$G$10,2),'Input|Reported opex'!M$4,"") -> 2017-18 | N10: =IF(RIGHT(N$4,2)<=RIGHT('Input|General'!$G$10,2),'Input|Reported opex'!N$4,"") -> 2018-19 | O10: =IF(RIGHT(O$4,2)<=RIGHT('Input|General'!$G$10,2),'Input|Reported opex'!O$4,"") ->  | P10: =IF(RIGHT(P$4,2)<=RIGHT('Input|General'!$G$10,2),'Input|Reported opex'!P$4,"") ->  | Q10: =IF(RIGHT(Q$4,2)<=RIGHT('Input|General'!$G$10,2),'Input|Reported opex'!Q$4,"") ->  | R10: =IF(RIGHT(R$4,2)<=RIGHT('Input|General'!$G$10,2),'Input|Reported opex'!R$4,"") ->  | S10: =IF(RIGHT(S$4,2)<=RIGHT('Input|General'!$G$10,2),'Input|Reported opex'!S$4,"") ->  | T10: Notes
C13: Total opex | D13: AER | E13: =$E$24 -> $millions | F13: =$F$24 -> 2013-14 | J13: 398.1589065 | K13: 404.0148253 | L13: 411.7769625 | M13: 405.0579677 | N13: 411.2264586 | T13: AER Final Determination
C14: Remove debt raising costs | D14: AER | E14: =$E$24 -> $millions | F14: =$F$24 -> 2013-14 | J14: -7.328780263 | K14: -7.391336775 | L14: -7.465808118 | M14: -7.532733434 | N14: -7.584686106
C15: AER's approved cost pass through for Ausgrid's April 2015 storms | D15: AER | E15: $millions | F15: 2013-14 | J15: 33.11 | K15: 0.51
D16: AER | E16: $millions | F16: 2013-14
D17: AER | E17: $millions | F17: 2013-14
D18: AER | E18: $millions | F18: 2013-14
D19: AER | E19: $millions | F19: 2013-14
D20: AER | E20: $millions | F20: 2013-14
D21: AER | E21: $millions | F21: 2013-14
D22: AER | E22: $millions | F22: 2013-14
C24: Total opex | D24: Calculated | E24: $millions | F24: 2013-14 | J24: =SUM(J13:J22) -> 423.9401262 | K24: 397.1334886 | L24: 404.3111543 | M24: 397.5252343 | N24: 403.6417725 | O24: 0 | P24: 0 | Q24: 0 | R24: 0 | S24: 0
B26: Input | Reported opex
J28: Actual | K28: Actual | L28: Actual | M28: Estimate | N28: Estimate
C29: Cost category | D29: Source | E29: Unit | F29: Basis | J29: =IF(RIGHT(J4,2)<=RIGHT('Input|General'!$G$10,2),'Input|Reported opex'!J4,"") -> 2014-15 | K29: =IF(RIGHT(K4,2)<=RIGHT('Input|General'!$G$10,2),'Input|Reported opex'!K4,"") -> 2015-16 | L29: =IF(RIGHT(L4,2)<=RIGHT('Input|General'!$G$10,2),'Input|Reported opex'!L4,"") -> 2016-17 | M29: =IF(RIGHT(M4,2)<=RIGHT('Input|General'!$G$10,2),'Input|Reported opex'!M4,"") -> 2017-18 | N29: =IF(RIGHT(N4,2)<=RIGHT('Input|General'!$G$10,2),'Input|Reported opex'!N4,"") -> 2018-19 | O29: =IF(RIGHT(O4,2)<=RIGHT('Input|General'!$G$10,2),'Input|Reported opex'!O4,"") ->  | P29: =IF(RIGHT(P4,2)<=RIGHT('Input|General'!$G$10,2),'Input|Reported opex'!P4,"") ->  | Q29: =IF(RIGHT(Q4,2)<=RIGHT('Input|General'!$G$10,2),'Input|Reported opex'!Q4,"") ->  | R29: =IF(RIGHT(R4,2)<=RIGHT('Input|General'!$G$10,2),'Input|Reported opex'!R4,"") ->  | S29: =IF(RIGHT(S4,2)<=RIGHT('Input|General'!$G$10,2),'Input|Reported opex'!S4,"") ->  | T29: Notes
C32: Total opex | D32: RIN | E32: =$E$43 -> $millions | F32: =$F$43 -> nominal | J32: 650.7908642 | K32: 589.8794401 | L32: 531.1372287 | M32: 426.3881331
D33: RIN | E33: =$E$43 -> $millions | F33: =$F$43 -> nominal
D34: RIN | E34: $millions | F34: nominal
D35: RIN | E35: $millions | F35: nominal
D36: RIN | E36: $millions | F36: nominal
D37: RIN | E37: $millions | F37: nominal
D38: RIN | E38: $millions | F38: nominal
D39: RIN | E39: $millions | F39: nominal
D40: RIN | E40: $millions | F40: nominal
D41: RIN | E41: $millions | F41: nominal
C43: Total opex | D43: Calculated | E43: $millions | F43: nominal | J43: =SUM(J32:J41) -> 650.7908642 | K43: =SUM(K32:K41) -> 589.8794401 | L43: 531.1372287 | M43: 426.3881331 | N43: 0 | O43: 0 | P43: 0 | Q43: 0 | R43: 0 | S43: 0
B45: Input | CAM adjustment
C47: Cost allocation method adjustment | D47: Source | E47: Unit | F47: Basis | J47: =IF(RIGHT(J$4,2)=RIGHT('Input|General'!$G$9,2),J$4,"") ->  | K47: =IF(RIGHT(K$4,2)=RIGHT('Input|General'!$G$9,2),K$4,"") ->  | L47: =IF(RIGHT(L$4,2)=RIGHT('Input|General'!$G$9,2),L$4,"") ->  | M47: =IF(RIGHT(M$4,2)=RIGHT('Input|General'!$G$9,2),M$4,"") -> 2017-18 | N47: =IF(RIGHT(N$4,2)=RIGHT('Input|General'!$G$9,2),N$4,"") -> 
C48: =C47 -> Cost allocation method adjustment | D48: External | E48: =$E$43 -> $millions | F48: =$F$43 -> nominal
B50: Input | Service classification adjustment
C52: Service classification adjustment | D52: Source | E52: Unit | F52: Basis | J52: =IF(RIGHT(J$4,2)=RIGHT('Input|General'!$G$9,2),J$4,"") ->  | K52: =IF(RIGHT(K$4,2)=RIGHT('Input|General'!$G$9,2),K$4,"") ->  | L52: =IF(RIGHT(L$4,2)=RIGHT('Input|General'!$G$9,2),L$4,"") ->  | M52: =IF(RIGHT(M$4,2)=RIGHT('Input|General'!$G$9,2),M$4,"") -> 2017-18 | N52: =IF(RIGHT(N$4,2)=RIGHT('Input|General'!$G$9,2),N$4,"") -> 
C53: =C52 -> Service classification adjustment | D53: External | E53: =$E$43 -> $millions | F53: =$F$43 -> nominal | M53: 5.19481049
B55: Input | Efficiency adjustment
C57: Efficiency adjustment | D57: Source | E57: Unit | J57: =IF(RIGHT(J$4,2)=RIGHT('Input|General'!$G$9,2),J$4,"") ->  | K57: =IF(RIGHT(K$4,2)=RIGHT('Input|General'!$G$9,2),K$4,"") ->  | L57: =IF(RIGHT(L$4,2)=RIGHT('Input|General'!$G$9,2),L$4,"") ->  | M57: =IF(RIGHT(M$4,2)=RIGHT('Input|General'!$G$9,2),M$4,"") -> 2017-18 | N57: =IF(RIGHT(N$4,2)=RIGHT('Input|General'!$G$9,2),N$4,"") -> 
C58: Efficiency adjustment | D58: External | E58: Per cent | M58: 0
B60: End

Sheet Input|Rate of change
B1: =Index!$B$1 -> AER opex model | K1: Back to Index | M1: Key: | N1: Input | O1: External Link | P1: Internal Link | S1: Worksheet check: | T1: =IF(COUNTIF(W5:W96,"Check")=0,"OK","Check") -> OK | V1: Overall Check: | W1: ='Check|List'!$S$1 -> Ok
B2: =Index!$C$10 -> Input | Rate of change
D4: Source | E4: Unit | F4: Basis | J4: =IF(OFFSET('Lookup|Tables'!$G$26:$G$43,MATCH('Input|General'!$G$8,'Lookup|Tables'!$G$26:$G$42,0)-2,0,1,1)<='Input|General'!$G$12,OFFSET('Lookup|Tables'!$G$26:$G$43,MATCH('Input|General'!$G$8,'Lookup|Tables'!$G$26:$G$42,0)-2,0,1,1),"") -> 2013-14 | K4: ='Input|General'!$G$8 -> 2014-15 | L4: =IF(OFFSET('Lookup|Tables'!$G$26:$G$43,MATCH('Input|General'!$G$8,'Lookup|Tables'!$G$26:$G$42,0),0,1,1)<='Input|General'!$G$12,OFFSET('Lookup|Tables'!$G$26:$G$43,MATCH('Input|General'!$G$8,'Lookup|Tables'!$G$26:$G$42,0),0,1,1),"") -> 2015-16 | M4: =IF(OFFSET('Lookup|Tables'!$G$26:$G$43,MATCH('Input|General'!$G$8,'Lookup|Tables'!$G$26:$G$42,0)+1,0,1,1)<='Input|General'!$G$12,OFFSET('Lookup|Tables'!$G$26:$G$43,MATCH('Input|General'!$G$8,'Lookup|Tables'!$G$26:$G$42,0)+1,0,1,1),"") -> 2016-17 | N4: =IF(OFFSET('Lookup|Tables'!$G$26:$G$43,MATCH('Input|General'!$G$8,'Lookup|Tables'!$G$26:$G$42,0)+2,0,1,1)<='Input|General'!$G$12,OFFSET('Lookup|Tables'!$G$26:$G$43,MATCH('Input|General'!$G$8,'Lookup|Tables'!$G$26:$G$42,0)+2,0,1,1),"") -> 2017-18 | O4: =IF(OFFSET('Lookup|Tables'!$G$26:$G$43,MATCH('Input|General'!$G$8,'Lookup|Tables'!$G$26:$G$42,0)+3,0,1,1)<='Input|General'!$G$12,OFFSET('Lookup|Tables'!$G$26:$G$43,MATCH('Input|General'!$G$8,'Lookup|Tables'!$G$26:$G$42,0)+3,0,1,1),"") -> 2018-19 | P4: =IF(OFFSET('Lookup|Tables'!$G$26:$G$43,MATCH('Input|General'!$G$8,'Lookup|Tables'!$G$26:$G$42,0)+4,0,1,1)<='Input|General'!$G$12,OFFSET('Lookup|Tables'!$G$26:$G$43,MATCH('Input|General'!$G$8,'Lookup|Tables'!$G$26:$G$42,0)+4,0,1,1),"") -> 2019-20 | Q4: =IF(OFFSET('Lookup|Tables'!$G$26:$G$43,MATCH('Input|General'!$G$8,'Lookup|Tables'!$G$26:$G$42,0)+5,0,1,1)<='Input|General'!$G$12,OFFSET('Lookup|Tables'!$G$26:$G$43,MATCH('Input|General'!$G$8,'Lookup|Tables'!$G$26:$G$42,0)+5,0,1,1),"") -> 2020-21 | R4: =IF(OFFSET('Lookup|Tables'!$G$26:$G$43,MATCH('Input|General'!$G$8,'Lookup|Tables'!$G$26:$G$42,0)+6,0,1,1)<='Input|General'!$G$12,OFFSET('Lookup|Tables'!$G$26:$G$43,MATCH('Input|General'!$G$8,'Lookup|Tables'!$G$26:$G$42,0)+6,0,1,1),"") -> 2021-22 | S4: =IF(OFFSET('Lookup|Tables'!$G$26:$G$43,MATCH('Input|General'!$G$8,'Lookup|Tables'!$G$26:$G$42,0)+7,0,1,1)<='Input|General'!$G$12,OFFSET('Lookup|Tables'!$G$26:$G$43,MATCH('Input|General'!$G$8,'Lookup|Tables'!$G$26:$G$42,0)+7,0,1,1),"") -> 2022-23 | T4: =IF(OFFSET('Lookup|Tables'!$G$28:$G$43,MATCH('Input|General'!$G$8,'Lookup|Tables'!$G$28:$G$42,0)+8,0,1,1)<='Input|General'!$G$12,OFFSET('Lookup|Tables'!$G$28:$G$43,MATCH('Input|General'!$G$8,'Lookup|Tables'!$G$28:$G$42,0)+8,0,1,1),"") -> 2023-24
B8: Input | Inflation
C10: Inflation | J10: =J$4 -> 2013-14 | K10: =K$4 -> 2014-15 | L10: =L$4 -> 2015-16 | M10: 2016-17 | N10: 2017-18 | O10: 2018-19 | P10: 2019-20 | Q10: 2020-21 | R10: 2021-22 | S10: 2022-23 | T10: 2023-24
C12: Inflation | D12: calculated | E12: =percent -> Per cent | J12: ='Input|Inflation'!E18/'Input|Inflation'!E14-1 -> 0.03015564202 | K12: ='Input|Inflation'!E22/'Input|Inflation'!E18-1 -> 0.01510859301 | L12: ='Input|Inflation'!E26/'Input|Inflation'!E22-1 -> 0.01023255814 | M12: ='Input|Inflation'!E30/'Input|Inflation'!E26-1 -> 0.01933701657 | N12: ='Input|Inflation'!E34/'Input|Inflation'!E30-1 -> 0.01962076309 | O12: ='Input|Inflation'!E38/'Input|Inflation'!E34-1 -> 0.02241968375
C14: CPI indexes (real to real) | J14: =J$4 -> 2013-14 | K14: =K$4 -> 2014-15 | L14: =L4 -> 2015-16 | M14: =M4 -> 2016-17 | N14: =N4 -> 2017-18 | O14: =O4 -> 2018-19
C16: ='Lookup|Tables'!C26 -> 2012-13 | D16: calculated | E16: index | J16: =(1+J$12) -> 1.030155642 | K16: =J16*(1+K$12) -> 1.045719844 | L16: 1.056420233 | M16: 1.076848249 | N16: 1.097976833 | O16: =N16*(1+O$12) -> 1.122593127 | U16: Note: works row to column
C17: ='Lookup|Tables'!C27 -> 2013-14 | D17: calculated | E17: index | J17: 1 | K17: =J17*(1+K$12) -> 1.015108593 | L17: 1.025495751 | M17: 1.045325779 | N17: 1.065835868 | O17: =N17*(1+O$12) -> 1.089731572 | U17: Use the years in column C as the FY from which to convert
C18: ='Lookup|Tables'!C28 -> 2014-15 | D18: calculated | E18: index | J18: =K18/(1+K$12) -> 0.9851162791 | K18: 1 | L18: =K18*(1+L$12) -> 1.010232558 | M18: =L18*(1+M$12) -> 1.029767442 | N18: 1.049972265 | O18: 1.073512311 | U18: e.g: To convert from FY2017-18 real to FY2018-19 real, use cell O21
C19: ='Lookup|Tables'!C29 -> 2015-16 | D19: calculated | E19: index | J19: =K19/(1+K$12) -> 0.9751381215 | K19: =L19/(1+L$12) -> 0.9898710866 | L19: 1 | M19: =L19*(1+M$12) -> 1.019337017 | N19: 1.039337187 | O19: 1.062638798
C20: ='Lookup|Tables'!C30 -> 2016-17 | D20: calculated | E20: index | J20: =K20/(1+K$12) -> 0.9566395664 | K20: 0.9710930443 | L20: 0.9810298103 | M20: 1 | N20: =M20*(1+N$12) -> 1.019620763 | O20: 1.042480338
C21: ='Lookup|Tables'!C31 -> 2017-18 | D21: calculated | E21: index | J21: 0.9382307629 | K21: 0.9524061096 | L21: 0.9621516605 | M21: 0.9807568031 | N21: 1 | O21: =N21*(1+O$12) -> 1.022419684
C22: ='Lookup|Tables'!C32 -> 2018-19 | D22: calculated | E22: index | J22: 0.9176571791 | K22: 0.931521688 | L22: 0.9410535378 | M22: 0.9592507057 | N22: 0.9780719365 | O22: 1
C24: CPI indexes (nominal to real) | J24: =J10 -> 2013-14 | K24: 2014-15 | L24: 2015-16 | M24: 2016-17 | N24: 2017-18 | O24: 2018-19
C26: =C16 -> 2012-13 | D26: calculated | E26: index | J26: =1/J16*(1+J$12)^0.5 -> 0.9852548407 | K26: 0.9634760034 | L26: 0.9514237096 | M26: 0.9375714876 | N26: 0.9196575879 | O26: 0.9007250108 | U26: Note: works column to row
C27: 2013-14 | D27: calculated | E27: index | J27: 1.014965833 | K27: 0.9925302409 | L27: 0.9801145024 | M27: 0.9658445578 | N27: 0.9473904529 | O27: 0.9278869518 | U27: Use the years in row 24 as the FY from which to convert
C28: 2014-15 | D28: calculated | E28: index | J28: 1.030300539 | K28: 1.007525976 | L28: 0.9949226536 | M28: 0.9804371101 | N28: 0.9617041896 | O28: 0.9419060181 | U28: e.g: To convert from FY2017-18 real to FY2018-19 nominal, use cell N32
C29: 2015-16 | D29: calculated | E29: index | J29: 1.040843149 | K29: 1.017835544 | L29: 1.005103257 | M29: 0.9904694898 | N29: 0.9715448837 | O29: 0.9515441262
C30: 2016-17 | D30: calculated | E30: index | J30: 1.06096995 | K30: 1.037517447 | L30: 1.024538956 | M30: 1.009622215 | N30: 0.9903316632 | O30: 0.9699441507
C31: 2017-18 | D31: calculated | E31: index | J31: 1.08178699 | K31: 1.057874331 | L31: 1.044641192 | M31: 1.029431773 | N31: 1.009762726 | O31: 0.9889751951
C32: 2018-19 | D32: calculated | E32: index | J32: 1.106040312 | K32: 1.081591539 | L32: 1.068061717 | M32: 1.052511308 | N32: 1.032401287 | O32: 1.011147706
B34: Input | Forecast price change
C36: Forecast price change | D36: Source | E36: Unit | K36: =IF(RIGHT(K$4,2)>=RIGHT('Input|General'!$G$10,2),IF(RIGHT(K$4,2)<=RIGHT('Input|General'!$G$12,2),'Input|Reported opex'!J$4,""),"") ->  | L36: =IF(RIGHT(L$4,2)>=RIGHT('Input|General'!$G$10,2),IF(RIGHT(L$4,2)<=RIGHT('Input|General'!$G$12,2),'Input|Reported opex'!K$4,""),"") ->  | M36: =IF(RIGHT(M$4,2)>=RIGHT('Input|General'!$G$10,2),IF(RIGHT(M$4,2)<=RIGHT('Input|General'!$G$12,2),'Input|Reported opex'!L$4,""),"") ->  | N36: =IF(RIGHT(N$4,2)>=RIGHT('Input|General'!$G$10,2),IF(RIGHT(N$4,2)<=RIGHT('Input|General'!$G$12,2),'Input|Reported opex'!M$4,""),"") ->  | O36: =IF(RIGHT(O$4,2)>=RIGHT('Input|General'!$G$10,2),IF(RIGHT(O$4,2)<=RIGHT('Input|General'!$G$12,2),'Input|Reported opex'!N$4,""),"") -> 2018-19 | P36: =IF(RIGHT(P$4,2)>=RIGHT('Input|General'!$G$10,2),IF(RIGHT(P$4,2)<=RIGHT('Input|General'!$G$12,2),'Input|Reported opex'!O$4,""),"") -> 2019-20 | Q36: =IF(RIGHT(Q$4,2)>=RIGHT('Input|General'!$G$10,2),IF(RIGHT(Q$4,2)<=RIGHT('Input|General'!$G$12,2),'Input|Reported opex'!P$4,""),"") -> 2020-21 | R36: =IF(RIGHT(R$4,2)>=RIGHT('Input|General'!$G$10,2),IF(RIGHT(R$4,2)<=RIGHT('Input|General'!$G$12,2),'Input|Reported opex'!Q$4,""),"") -> 2021-22 | S36: =IF(RIGHT(S$4,2)>=RIGHT('Input|General'!$G$10,2),IF(RIGHT(S$4,2)<=RIGHT('Input|General'!$G$12,2),'Input|Reported opex'!R$4,""),"") -> 2022-23 | T36: =IF(RIGHT(T$4,2)>=RIGHT('Input|General'!$G$10,2),IF(RIGHT(T$4,2)<=RIGHT('Input|General'!$G$12,2),'Input|Reported opex'!S$4,""),"") -> 2023-24
C38: WPI - BIS Oxford Economics | D38: external | E38: =percent -> Per cent | O38: 0.009463713656 | P38: 0.008790770725 | Q38: 0.01368154247 | R38: 0.0173726537 | S38: 0.0172875434 | T38: 0.01333326255
D39: external | E39: Per cent
D40: external | E40: Per cent
D41: external | E41: Per cent
D42: external | E42: Per cent
D43: external | E43: Per cent
D44: external | E44: Per cent
C45: CPI | D45: external | E45: Per cent | O45: 0 | P45: 0 | Q45: 0 | R45: 0 | S45: 0 | T45: 0
C47: Weights | D47: Source | E47: Unit | K47: =IF(RIGHT(K$4,2)>=RIGHT('Input|General'!$G$10,2),IF(RIGHT(K$4,2)<=RIGHT('Input|General'!$G$12,2),'Input|Reported opex'!J$4,""),"") ->  | L47: =IF(RIGHT(L$4,2)>=RIGHT('Input|General'!$G$10,2),IF(RIGHT(L$4,2)<=RIGHT('Input|General'!$G$12,2),'Input|Reported opex'!K$4,""),"") ->  | M47: =IF(RIGHT(M$4,2)>=RIGHT('Input|General'!$G$10,2),IF(RIGHT(M$4,2)<=RIGHT('Input|General'!$G$12,2),'Input|Reported opex'!L$4,""),"") ->  | N47: =IF(RIGHT(N$4,2)>=RIGHT('Input|General'!$G$10,2),IF(RIGHT(N$4,2)<=RIGHT('Input|General'!$G$12,2),'Input|Reported opex'!M$4,""),"") ->  | O47: =IF(RIGHT(O$4,2)>=RIGHT('Input|General'!$G$10,2),IF(RIGHT(O$4,2)<=RIGHT('Input|General'!$G$12,2),'Input|Reported opex'!N$4,""),"") -> 2018-19 | P47: =IF(RIGHT(P$4,2)>=RIGHT('Input|General'!$G$10,2),IF(RIGHT(P$4,2)<=RIGHT('Input|General'!$G$12,2),'Input|Reported opex'!O$4,""),"") -> 2019-20 | Q47: =IF(RIGHT(Q$4,2)>=RIGHT('Input|General'!$G$10,2),IF(RIGHT(Q$4,2)<=RIGHT('Input|General'!$G$12,2),'Input|Reported opex'!P$4,""),"") -> 2020-21 | R47: =IF(RIGHT(R$4,2)>=RIGHT('Input|General'!$G$10,2),IF(RIGHT(R$4,2)<=RIGHT('Input|General'!$G$12,2),'Input|Reported opex'!Q$4,""),"") -> 2021-22 | S47: =IF(RIGHT(S$4,2)>=RIGHT('Input|General'!$G$10,2),IF(RIGHT(S$4,2)<=RIGHT('Input|General'!$G$12,2),'Input|Reported opex'!R$4,""),"") -> 2022-23 | T47: =IF(RIGHT(T$4,2)>=RIGHT('Input|General'!$G$10,2),IF(RIGHT(T$4,2)<=RIGHT('Input|General'!$G$12,2),'Input|Reported opex'!S$4,""),"") -> 2023-24
C49: WPI - Economic Insights 31 Oct 2017 page 2 | D49: external | E49: =percent -> Per cent | O49: 0.597 | P49: 0.597 | Q49: 0.597 | R49: 0.597 | S49: 0.597 | T49: 0.597
C50: =C39 -> 0 | D50: external | E50: Per cent
C51: 0 | D51: external | E51: Per cent
C52: 0 | D52: external | E52: Per cent
C53: 0 | D53: external | E53: Per cent
C54: 0 | D54: external | E54: Per cent
C55: 0 | D55: external | E55: Per cent
C56: CPI | D56: external | E56: Per cent | O56: =1-O49 -> 0.403 | P56: =1-P49 -> 0.403 | Q56: 0.403 | R56: 0.403 | S56: 0.403 | T56: 0.403
C58: Check | D58: calculated | E58: Ok/Check | F58: n/a | O58: =IF(SUM(O49:O56)=1,"Ok","Check") -> Ok | P58: =IF(SUM(P49:P56)=1,"Ok","Check") -> Ok | Q58: =IF(SUM(Q49:Q56)=1,"Ok","Check") -> Ok | R58: Ok | S58: Ok | T58: Ok | W58: =IF(COUNTIF(K58:T58,"Check")=0,"Ok","Check") -> Ok
B60: Input | Forecast output growth
C62: Output measure | D62: Source | E62: Unit | F62: Basis | K62: =IF(RIGHT(K$4,2)>=RIGHT('Input|General'!$G$10,2),IF(RIGHT(K$4,2)<=RIGHT('Input|General'!$G$12,2),'Input|Reported opex'!J$4,""),"") ->  | L62: =IF(RIGHT(L$4,2)>=RIGHT('Input|General'!$G$10,2),IF(RIGHT(L$4,2)<=RIGHT('Input|General'!$G$12,2),'Input|Reported opex'!K$4,""),"") ->  | M62: =IF(RIGHT(M$4,2)>=RIGHT('Input|General'!$G$10,2),IF(RIGHT(M$4,2)<=RIGHT('Input|General'!$G$12,2),'Input|Reported opex'!L$4,""),"") ->  | N62: =IF(RIGHT(N$4,2)>=RIGHT('Input|General'!$G$10,2),IF(RIGHT(N$4,2)<=RIGHT('Input|General'!$G$12,2),'Input|Reported opex'!M$4,""),"") ->  | O62: =IF(RIGHT(O$4,2)>=RIGHT('Input|General'!$G$10,2),IF(RIGHT(O$4,2)<=RIGHT('Input|General'!$G$12,2),'Input|Reported opex'!N$4,""),"") -> 2018-19 | P62: =IF(RIGHT(P$4,2)>=RIGHT('Input|General'!$G$10,2),IF(RIGHT(P$4,2)<=RIGHT('Input|General'!$G$12,2),'Input|Reported opex'!O$4,""),"") -> 2019-20 | Q62: =IF(RIGHT(Q$4,2)>=RIGHT('Input|General'!$G$10,2),IF(RIGHT(Q$4,2)<=RIGHT('Input|General'!$G$12,2),'Input|Reported opex'!P$4,""),"") -> 2020-21 | R62: =IF(RIGHT(R$4,2)>=RIGHT('Input|General'!$G$10,2),IF(RIGHT(R$4,2)<=RIGHT('Input|General'!$G$12,2),'Input|Reported opex'!Q$4,""),"") -> 2021-22 | S62: =IF(RIGHT(S$4,2)>=RIGHT('Input|General'!$G$10,2),IF(RIGHT(S$4,2)<=RIGHT('Input|General'!$G$12,2),'Input|Reported opex'!R$4,""),"") -> 2022-23 | T62: =IF(RIGHT(T$4,2)>=RIGHT('Input|General'!$G$10,2),IF(RIGHT(T$4,2)<=RIGHT('Input|General'!$G$12,2),'Input|Reported opex'!S$4,""),"") -> 2023-24
C64: Customer numbers | D64: external | E64: number | F64: n/a | O64: 1737834.088 | P64: 1753781.874 | Q64: 1772216.145 | R64: 1790645.335 | S64: 1809070.291 | T64: 1827490.332
C65: Circuit Length | D65: external | E65: number | F65: n/a | O65: 41982.67929 | P65: 42160.8389 | Q65: 42344.29498 | R65: 42584.72805 | S65: 42834.02413 | T65: 43056.1162
C66: Ratcheted Maximum Demand | D66: external | E66: number | F66: n/a | O66: 6555 | P66: 6555 | Q66: 6555 | R66: 6555 | S66: 6555 | T66: 6580
D67: external | E67: number | F67: n/a
D68: external | E68: number | F68: n/a
D69: external | E69: number | F69: n/a
C71: Growth rate | D71: Source | E71: Unit | F71: Basis | K71: =IF(RIGHT(K$4,2)>=RIGHT('Input|General'!$G$11,2),IF(RIGHT(K$4,2)<=RIGHT('Input|General'!$G$12,2),'Input|Reported opex'!J$4,""),"") ->  | L71: =IF(RIGHT(L$4,2)>=RIGHT('Input|General'!$G$11,2),IF(RIGHT(L$4,2)<=RIGHT('Input|General'!$G$12,2),'Input|Reported opex'!K$4,""),"") ->  | M71: =IF(RIGHT(M$4,2)>=RIGHT('Input|General'!$G$11,2),IF(RIGHT(M$4,2)<=RIGHT('Input|General'!$G$12,2),'Input|Reported opex'!L$4,""),"") ->  | N71: =IF(RIGHT(N$4,2)>=RIGHT('Input|General'!$G$11,2),IF(RIGHT(N$4,2)<=RIGHT('Input|General'!$G$12,2),'Input|Reported opex'!M$4,""),"") ->  | O71: =IF(RIGHT(O$4,2)>=RIGHT('Input|General'!$G$11,2),IF(RIGHT(O$4,2)<=RIGHT('Input|General'!$G$12,2),'Input|Reported opex'!N$4,""),"") ->  | P71: =IF(RIGHT(P$4,2)>=RIGHT('Input|General'!$G$11,2),IF(RIGHT(P$4,2)<=RIGHT('Input|General'!$G$12,2),'Input|Reported opex'!O$4,""),"") -> 2019-20 | Q71: =IF(RIGHT(Q$4,2)>=RIGHT('Input|General'!$G$11,2),IF(RIGHT(Q$4,2)<=RIGHT('Input|General'!$G$12,2),'Input|Reported opex'!P$4,""),"") -> 2020-21 | R71: =IF(RIGHT(R$4,2)>=RIGHT('Input|General'!$G$11,2),IF(RIGHT(R$4,2)<=RIGHT('Input|General'!$G$12,2),'Input|Reported opex'!Q$4,""),"") -> 2021-22 | S71: =IF(RIGHT(S$4,2)>=RIGHT('Input|General'!$G$11,2),IF(RIGHT(S$4,2)<=RIGHT('Input|General'!$G$12,2),'Input|Reported opex'!R$4,""),"") -> 2022-23 | T71: =IF(RIGHT(T$4,2)>=RIGHT('Input|General'!$G$11,2),IF(RIGHT(T$4,2)<=RIGHT('Input|General'!$G$12,2),'Input|Reported opex'!S$4,""),"") -> 2023-24
C73: =C64 -> Customer numbers | D73: calculated | E73: number | F73: n/a | P73: =IF(ISBLANK(P64),"",LN(P64)-LN(O64)) -> 0.009134966597 | Q73: =IF(ISBLANK(Q64),"",LN(Q64)-LN(P64)) -> 0.01045629553 | R73: =IF(ISBLANK(R64),"",LN(R64)-LN(Q64)) -> 0.01034525466 | S73: 0.01023698448 | T73: 0.01013056051
C74: =C65 -> Circuit Length | D74: calculated | E74: number | F74: n/a | P74: =IF(ISBLANK(P65),"",LN(P65)-LN(O65)) -> 0.00423466673 | Q74: 0.004341898676 | R74: 0.00566199186 | S74: 0.005837050476 | T74: 0.005171549851
C75: Ratcheted Maximum Demand | D75: calculated | E75: number | F75: n/a | P75: =IF(ISBLANK(P66),"",LN(P66)-LN(O66)) -> 0 | Q75: 0 | R75: 0 | S75: 0 | T75: 0.003806628122
C76: 0 | D76: calculated | E76: number | F76: n/a | P76: =IF(ISBLANK(P67),"",LN(P67)-LN(O67)) -> 
C77: 0 | D77: calculated | E77: number | F77: n/a
C78: 0 | D78: calculated | E78: number | F78: n/a | P78: =IF(ISBLANK(P69),"",LN(P69)-LN(O69)) -> 
C80: Weights
C82: =C64 -> Customer numbers | D82: external | E82: number | F82: n/a | N82: 0.7713139418
C83: =C65 -> Circuit Length | D83: external | E83: number | F83: n/a | N83: 0.09729187563
C84: Ratcheted Maximum Demand | D84: external | E84: number | F84: n/a | N84: 0.1313941825
C85: 0 | D85: external | E85: number | F85: n/a
C86: 0 | D86: external | E86: number | F86: n/a
C87: 0 | D87: external | E87: number | F87: n/a
C89: Check | D89: calculated | E89: Ok/Check | F89: n/a | N89: =IF(SUM(N82:N87)=1,"Ok","Check") -> Ok | W89: =IF(COUNTIF(K89:T89,"Check")=0,"Ok","Check") -> Ok
B91: Input | Forecast productivity
C93: Partial factor productivity | D93: Source | E93: Unit | F93: Basis | K93: =IF(RIGHT(K$4,2)>=RIGHT('Input|General'!$G$11,2),IF(RIGHT(K$4,2)<=RIGHT('Input|General'!$G$12,2),'Input|Reported opex'!J$4,""),"") ->  | L93: =IF(RIGHT(L$4,2)>=RIGHT('Input|General'!$G$11,2),IF(RIGHT(L$4,2)<=RIGHT('Input|General'!$G$12,2),'Input|Reported opex'!K$4,""),"") ->  | M93: =IF(RIGHT(M$4,2)>=RIGHT('Input|General'!$G$11,2),IF(RIGHT(M$4,2)<=RIGHT('Input|General'!$G$12,2),'Input|Reported opex'!L$4,""),"") ->  | N93: =IF(RIGHT(N$4,2)>=RIGHT('Input|General'!$G$11,2),IF(RIGHT(N$4,2)<=RIGHT('Input|General'!$G$12,2),'Input|Reported opex'!M$4,""),"") ->  | O93: =IF(RIGHT(O$4,2)>=RIGHT('Input|General'!$G$11,2),IF(RIGHT(O$4,2)<=RIGHT('Input|General'!$G$12,2),'Input|Reported opex'!N$4,""),"") ->  | P93: =IF(RIGHT(P$4,2)>=RIGHT('Input|General'!$G$11,2),IF(RIGHT(P$4,2)<=RIGHT('Input|General'!$G$12,2),'Input|Reported opex'!O$4,""),"") -> 2019-20 | Q93: =IF(RIGHT(Q$4,2)>=RIGHT('Input|General'!$G$11,2),IF(RIGHT(Q$4,2)<=RIGHT('Input|General'!$G$12,2),'Input|Reported opex'!P$4,""),"") -> 2020-21 | R93: =IF(RIGHT(R$4,2)>=RIGHT('Input|General'!$G$11,2),IF(RIGHT(R$4,2)<=RIGHT('Input|General'!$G$12,2),'Input|Reported opex'!Q$4,""),"") -> 2021-22 | S93: =IF(RIGHT(S$4,2)>=RIGHT('Input|General'!$G$11,2),IF(RIGHT(S$4,2)<=RIGHT('Input|General'!$G$12,2),'Input|Reported opex'!R$4,""),"") -> 2022-23 | T93: =IF(RIGHT(T$4,2)>=RIGHT('Input|General'!$G$11,2),IF(RIGHT(T$4,2)<=RIGHT('Input|General'!$G$12,2),'Input|Reported opex'!S$4,""),"") -> 2023-24
C95: Partial factor productivity | D95: external | E95: =percent -> Per cent | F95: n/a | P95: 0 | Q95: 0 | R95: 0 | S95: 0 | T95: 0
B97: End

Sheet Input|Step changes
B1: =Index!$B$1 -> AER opex model | J1: Back to Index | L1: Key: | M1: Input | N1: External Link | O1: Internal Link | R1: Worksheet check: | S1: =IF(COUNTA($W$8:$W$32)=COUNTIF($W$8:$W$32,"OK"),"OK","Check") -> OK | U1: Overall Check: | V1: ='Check|List'!$S$1 -> Ok
B2: =Index!$C$11 -> Input | Step changes
D4: Source | E4: Unit | F4: Basis | J4: ='Input|General'!$G$8 -> 2014-15 | K4: =IF(OFFSET('Lookup|Tables'!$G$28:$G$43,MATCH('Input|General'!$G$8,'Lookup|Tables'!$G$28:$G$42,0)+1,0,1,1)<='Input|General'!$G$12,OFFSET('Lookup|Tables'!$G$28:$G$43,1,0,1,1),"") -> 2015-16 | L4: =IF(OFFSET('Lookup|Tables'!$G$28:$G$43,MATCH('Input|General'!$G$8,'Lookup|Tables'!$G$28:$G$42,0)+1,0,1,1)<='Input|General'!$G$12,OFFSET('Lookup|Tables'!$G$28:$G$43,MATCH('Input|General'!$G$8,'Lookup|Tables'!$G$28:$G$42,0)+1,0,1,1),"") -> 2016-17 | M4: =IF(OFFSET('Lookup|Tables'!$G$28:$G$43,MATCH('Input|General'!$G$8,'Lookup|Tables'!$G$28:$G$42,0)+2,0,1,1)<='Input|General'!$G$12,OFFSET('Lookup|Tables'!$G$28:$G$43,MATCH('Input|General'!$G$8,'Lookup|Tables'!$G$28:$G$42,0)+2,0,1,1),"") -> 2017-18 | N4: =IF(OFFSET('Lookup|Tables'!$G$28:$G$43,MATCH('Input|General'!$G$8,'Lookup|Tables'!$G$28:$G$42,0)+3,0,1,1)<='Input|General'!$G$12,OFFSET('Lookup|Tables'!$G$28:$G$43,MATCH('Input|General'!$G$8,'Lookup|Tables'!$G$28:$G$42,0)+3,0,1,1),"") -> 2018-19 | O4: =IF(OFFSET('Lookup|Tables'!$G$28:$G$43,MATCH('Input|General'!$G$8,'Lookup|Tables'!$G$28:$G$42,0)+4,0,1,1)<='Input|General'!$G$12,OFFSET('Lookup|Tables'!$G$28:$G$43,MATCH('Input|General'!$G$8,'Lookup|Tables'!$G$28:$G$42,0)+4,0,1,1),"") -> 2019-20 | P4: =IF(OFFSET('Lookup|Tables'!$G$28:$G$43,MATCH('Input|General'!$G$8,'Lookup|Tables'!$G$28:$G$42,0)+5,0,1,1)<='Input|General'!$G$12,OFFSET('Lookup|Tables'!$G$28:$G$43,MATCH('Input|General'!$G$8,'Lookup|Tables'!$G$28:$G$42,0)+5,0,1,1),"") -> 2020-21 | Q4: =IF(OFFSET('Lookup|Tables'!$G$28:$G$43,MATCH('Input|General'!$G$8,'Lookup|Tables'!$G$28:$G$42,0)+6,0,1,1)<='Input|General'!$G$12,OFFSET('Lookup|Tables'!$G$28:$G$43,MATCH('Input|General'!$G$8,'Lookup|Tables'!$G$28:$G$42,0)+6,0,1,1),"") -> 2021-22 | R4: =IF(OFFSET('Lookup|Tables'!$G$28:$G$43,MATCH('Input|General'!$G$8,'Lookup|Tables'!$G$28:$G$42,0)+7,0,1,1)<='Input|General'!$G$12,OFFSET('Lookup|Tables'!$G$28:$G$43,MATCH('Input|General'!$G$8,'Lookup|Tables'!$G$28:$G$42,0)+7,0,1,1),"") -> 2022-23 | S4: =IF(OFFSET('Lookup|Tables'!$G$28:$G$43,MATCH('Input|General'!$G$8,'Lookup|Tables'!$G$28:$G$42,0)+8,0,1,1)<='Input|General'!$G$12,OFFSET('Lookup|Tables'!$G$28:$G$43,MATCH('Input|General'!$G$8,'Lookup|Tables'!$G$28:$G$42,0)+8,0,1,1),"") -> 2023-24
B8: Input |Step changes
C10: Step change | D10: Source | E10: Unit | F10: Basis | J10: =IF(RIGHT(J$4,2)>=RIGHT('Input|General'!$G$11,2),IF(RIGHT(J$4,2)<=RIGHT('Input|General'!$G$12,2),'Input|Reported opex'!J$4,""),"") ->  | K10: =IF(RIGHT(K$4,2)>=RIGHT('Input|General'!$G$11,2),IF(RIGHT(K$4,2)<=RIGHT('Input|General'!$G$12,2),'Input|Reported opex'!K$4,""),"") ->  | L10: =IF(RIGHT(L$4,2)>=RIGHT('Input|General'!$G$11,2),IF(RIGHT(L$4,2)<=RIGHT('Input|General'!$G$12,2),'Input|Reported opex'!L$4,""),"") ->  | M10: =IF(RIGHT(M$4,2)>=RIGHT('Input|General'!$G$11,2),IF(RIGHT(M$4,2)<=RIGHT('Input|General'!$G$12,2),'Input|Reported opex'!M$4,""),"") ->  | N10: =IF(RIGHT(N$4,2)>=RIGHT('Input|General'!$G$11,2),IF(RIGHT(N$4,2)<=RIGHT('Input|General'!$G$12,2),'Input|Reported opex'!N$4,""),"") ->  | O10: =IF(RIGHT(O$4,2)>=RIGHT('Input|General'!$G$11,2),IF(RIGHT(O$4,2)<=RIGHT('Input|General'!$G$12,2),'Input|Reported opex'!O$4,""),"") -> 2019-20 | P10: =IF(RIGHT(P$4,2)>=RIGHT('Input|General'!$G$11,2),IF(RIGHT(P$4,2)<=RIGHT('Input|General'!$G$12,2),'Input|Reported opex'!P$4,""),"") -> 2020-21 | Q10: =IF(RIGHT(Q$4,2)>=RIGHT('Input|General'!$G$11,2),IF(RIGHT(Q$4,2)<=RIGHT('Input|General'!$G$12,2),'Input|Reported opex'!Q$4,""),"") -> 2021-22 | R10: =IF(RIGHT(R$4,2)>=RIGHT('Input|General'!$G$11,2),IF(RIGHT(R$4,2)<=RIGHT('Input|General'!$G$12,2),'Input|Reported opex'!R$4,""),"") -> 2022-23 | S10: =IF(RIGHT(S$4,2)>=RIGHT('Input|General'!$G$11,2),IF(RIGHT(S$4,2)<=RIGHT('Input|General'!$G$12,2),'Input|Reported opex'!S$4,""),"") -> 2023-24
C12: Demand Management | D12: external | E12: $millions | F12: 2018-19 | O12: 3.679955594 | P12: 3.679955594 | Q12: 6.515502113 | R12: 6.557201327 | S12: 5.691942646
C13: Accelerated tariff acceptance research project | D13: external | E13: $millions | F13: 2018-19 | O13: 1.5 | P13: 1.5
D14: AER | E14: $millions | F14: 2018-19
D15: AER | E15: $millions | F15: 2018-19
D16: AER | E16: $millions | F16: 2018-19
D17: AER | E17: $millions | F17: 2018-19
D18: AER | E18: $millions | F18: 2018-19
D19: AER | E19: $millions | F19: 2018-19
D20: AER | E20: $millions | F20: 2018-19
D21: AER | E21: $millions | F21: 2018-19
D22: AER | E22: $millions | F22: 2018-19
D23: AER | E23: $millions | F23: 2018-19
B25: Input | Debt raising costs
C27: Debt Raising Costs | D27: Source | E27: Unit | F27: Basis | J27: =IF(RIGHT(J$4,2)>=RIGHT('Input|General'!$G$11,2),IF(RIGHT(J$4,2)<=RIGHT('Input|General'!$G$12,2),'Input|Reported opex'!J$4,""),"") ->  | K27: =IF(RIGHT(K$4,2)>=RIGHT('Input|General'!$G$11,2),IF(RIGHT(K$4,2)<=RIGHT('Input|General'!$G$12,2),'Input|Reported opex'!K$4,""),"") ->  | L27: =IF(RIGHT(L$4,2)>=RIGHT('Input|General'!$G$11,2),IF(RIGHT(L$4,2)<=RIGHT('Input|General'!$G$12,2),'Input|Reported opex'!L$4,""),"") ->  | M27: =IF(RIGHT(M$4,2)>=RIGHT('Input|General'!$G$11,2),IF(RIGHT(M$4,2)<=RIGHT('Input|General'!$G$12,2),'Input|Reported opex'!M$4,""),"") ->  | N27: =IF(RIGHT(N$4,2)>=RIGHT('Input|General'!$G$11,2),IF(RIGHT(N$4,2)<=RIGHT('Input|General'!$G$12,2),'Input|Reported opex'!N$4,""),"") ->  | O27: =IF(RIGHT(O$4,2)>=RIGHT('Input|General'!$G$11,2),IF(RIGHT(O$4,2)<=RIGHT('Input|General'!$G$12,2),'Input|Reported opex'!O$4,""),"") -> 2019-20 | P27: =IF(RIGHT(P$4,2)>=RIGHT('Input|General'!$G$11,2),IF(RIGHT(P$4,2)<=RIGHT('Input|General'!$G$12,2),'Input|Reported opex'!P$4,""),"") -> 2020-21 | Q27: =IF(RIGHT(Q$4,2)>=RIGHT('Input|General'!$G$11,2),IF(RIGHT(Q$4,2)<=RIGHT('Input|General'!$G$12,2),'Input|Reported opex'!Q$4,""),"") -> 2021-22 | R27: =IF(RIGHT(R$4,2)>=RIGHT('Input|General'!$G$11,2),IF(RIGHT(R$4,2)<=RIGHT('Input|General'!$G$12,2),'Input|Reported opex'!R$4,""),"") -> 2022-23 | S27: =IF(RIGHT(S$4,2)>=RIGHT('Input|General'!$G$11,2),IF(RIGHT(S$4,2)<=RIGHT('Input|General'!$G$12,2),'Input|Reported opex'!S$4,""),"") -> 2023-24
C29: Distribution | D29: PTRM | E29: $millions | F29: ='Input|General'!G10 -> 2018-19 | O29: 6.940442636 | P29: 7.04245109 | Q29: 7.091694727 | R29: 7.112993697 | S29: 7.111915644
C30: Transmission | D30: PTRM | E30: $millions | F30: ='Input|General'!G10 -> 2018-19 | O30: 0.9632962731 | P30: 0.9755956046 | Q30: 0.9770836367 | R30: 0.985674367 | S30: 1.003054826
B32: End

Sheet Input|Dx Tx split
B1: =Index!$B$1 -> AER opex model | J1: Back to Index | L1: Key: | M1: Input | N1: External Link | O1: Internal Link | R1: Worksheet check: | S1: =IF(COUNTA($V$8:$V$17)=COUNTIF($V$8:$V$17,"OK"),"OK","Check") -> OK | U1: Overall Check: | V1: ='Check|List'!$S$1 -> Ok
B2: =Index!$C$12 -> Input | Dx TX split
D4: Source | E4: Unit | F4: Basis | J4: ='Input|General'!$G$8 -> 2014-15 | K4: =IF(OFFSET('Lookup|Tables'!$G$28:$G$43,MATCH('Input|General'!$G$8,'Lookup|Tables'!$G$28:$G$42,0)+1,0,1,1)<='Input|General'!$G$12,OFFSET('Lookup|Tables'!$G$28:$G$43,1,0,1,1),"") -> 2015-16 | L4: =IF(OFFSET('Lookup|Tables'!$G$28:$G$43,MATCH('Input|General'!$G$8,'Lookup|Tables'!$G$28:$G$42,0)+1,0,1,1)<='Input|General'!$G$12,OFFSET('Lookup|Tables'!$G$28:$G$43,MATCH('Input|General'!$G$8,'Lookup|Tables'!$G$28:$G$42,0)+1,0,1,1),"") -> 2016-17 | M4: =IF(OFFSET('Lookup|Tables'!$G$28:$G$43,MATCH('Input|General'!$G$8,'Lookup|Tables'!$G$28:$G$42,0)+2,0,1,1)<='Input|General'!$G$12,OFFSET('Lookup|Tables'!$G$28:$G$43,MATCH('Input|General'!$G$8,'Lookup|Tables'!$G$28:$G$42,0)+2,0,1,1),"") -> 2017-18 | N4: =IF(OFFSET('Lookup|Tables'!$G$28:$G$43,MATCH('Input|General'!$G$8,'Lookup|Tables'!$G$28:$G$42,0)+3,0,1,1)<='Input|General'!$G$12,OFFSET('Lookup|Tables'!$G$28:$G$43,MATCH('Input|General'!$G$8,'Lookup|Tables'!$G$28:$G$42,0)+3,0,1,1),"") -> 2018-19 | O4: =IF(OFFSET('Lookup|Tables'!$G$28:$G$43,MATCH('Input|General'!$G$8,'Lookup|Tables'!$G$28:$G$42,0)+4,0,1,1)<='Input|General'!$G$12,OFFSET('Lookup|Tables'!$G$28:$G$43,MATCH('Input|General'!$G$8,'Lookup|Tables'!$G$28:$G$42,0)+4,0,1,1),"") -> 2019-20 | P4: =IF(OFFSET('Lookup|Tables'!$G$28:$G$43,MATCH('Input|General'!$G$8,'Lookup|Tables'!$G$28:$G$42,0)+5,0,1,1)<='Input|General'!$G$12,OFFSET('Lookup|Tables'!$G$28:$G$43,MATCH('Input|General'!$G$8,'Lookup|Tables'!$G$28:$G$42,0)+5,0,1,1),"") -> 2020-21 | Q4: =IF(OFFSET('Lookup|Tables'!$G$28:$G$43,MATCH('Input|General'!$G$8,'Lookup|Tables'!$G$28:$G$42,0)+6,0,1,1)<='Input|General'!$G$12,OFFSET('Lookup|Tables'!$G$28:$G$43,MATCH('Input|General'!$G$8,'Lookup|Tables'!$G$28:$G$42,0)+6,0,1,1),"") -> 2021-22 | R4: =IF(OFFSET('Lookup|Tables'!$G$28:$G$43,MATCH('Input|General'!$G$8,'Lookup|Tables'!$G$28:$G$42,0)+7,0,1,1)<='Input|General'!$G$12,OFFSET('Lookup|Tables'!$G$28:$G$43,MATCH('Input|General'!$G$8,'Lookup|Tables'!$G$28:$G$42,0)+7,0,1,1),"") -> 2022-23 | S4: =IF(OFFSET('Lookup|Tables'!$G$28:$G$43,MATCH('Input|General'!$G$8,'Lookup|Tables'!$G$28:$G$42,0)+8,0,1,1)<='Input|General'!$G$12,OFFSET('Lookup|Tables'!$G$28:$G$43,MATCH('Input|General'!$G$8,'Lookup|Tables'!$G$28:$G$42,0)+8,0,1,1),"") -> 2023-24
B8: Input | Dx/Tx split
C10: Dx/Tx split | D10: Source | E10: Unit | J10: =IF(RIGHT(J$4,2)>=RIGHT('Input|General'!$G$11,2),IF(RIGHT(J$4,2)<=RIGHT('Input|General'!$G$12,2),'Input|Reported opex'!J$4,""),"") ->  | K10: =IF(RIGHT(K$4,2)>=RIGHT('Input|General'!$G$11,2),IF(RIGHT(K$4,2)<=RIGHT('Input|General'!$G$12,2),'Input|Reported opex'!K$4,""),"") ->  | L10: =IF(RIGHT(L$4,2)>=RIGHT('Input|General'!$G$11,2),IF(RIGHT(L$4,2)<=RIGHT('Input|General'!$G$12,2),'Input|Reported opex'!L$4,""),"") ->  | M10: =IF(RIGHT(M$4,2)>=RIGHT('Input|General'!$G$11,2),IF(RIGHT(M$4,2)<=RIGHT('Input|General'!$G$12,2),'Input|Reported opex'!M$4,""),"") ->  | N10: =IF(RIGHT(N$4,2)>=RIGHT('Input|General'!$G$11,2),IF(RIGHT(N$4,2)<=RIGHT('Input|General'!$G$12,2),'Input|Reported opex'!N$4,""),"") ->  | O10: =IF(RIGHT(O$4,2)>=RIGHT('Input|General'!$G$11,2),IF(RIGHT(O$4,2)<=RIGHT('Input|General'!$G$12,2),'Input|Reported opex'!O$4,""),"") -> 2019-20 | P10: =IF(RIGHT(P$4,2)>=RIGHT('Input|General'!$G$11,2),IF(RIGHT(P$4,2)<=RIGHT('Input|General'!$G$12,2),'Input|Reported opex'!P$4,""),"") -> 2020-21 | Q10: =IF(RIGHT(Q$4,2)>=RIGHT('Input|General'!$G$11,2),IF(RIGHT(Q$4,2)<=RIGHT('Input|General'!$G$12,2),'Input|Reported opex'!Q$4,""),"") -> 2021-22 | R10: =IF(RIGHT(R$4,2)>=RIGHT('Input|General'!$G$11,2),IF(RIGHT(R$4,2)<=RIGHT('Input|General'!$G$12,2),'Input|Reported opex'!R$4,""),"") -> 2022-23 | S10: =IF(RIGHT(S$4,2)>=RIGHT('Input|General'!$G$11,2),IF(RIGHT(S$4,2)<=RIGHT('Input|General'!$G$12,2),'Input|Reported opex'!S$4,""),"") -> 2023-24
C12: Distribution | D12: External | E12: =percent -> Per cent | O12: 0.9230275754 | P12: 0.9230275754 | Q12: 0.9230275754 | R12: 0.9230275754 | S12: 0.9230275754
C13: Transmission | D13: External | E13: Per cent | O13: 0.07697242456 | P13: 0.07697242456 | Q13: 0.07697242456 | R13: 0.07697242456 | S13: 0.07697242456
C15: Check | D15: calculated | E15: Ok/Check | F15: n/a | O15: =IF(SUM(O12:O13)=1,"Ok","Check") -> Ok | P15: =IF(SUM(P12:P13)=1,"Ok","Check") -> Ok | Q15: Ok | R15: Ok | S15: Ok | V15: =IF(COUNTIF(K15:T15,"Check")=0,"Ok","Check") -> Ok
B17: End

Sheet Calc|Opex forecast
B1: =Index!$B$1 -> AER opex model | J1: Back to Index | L1: Key: | M1: Input | N1: External Link | O1: Internal Link | R1: Worksheet check: | S1: n/a | U1: Overall Check: | V1: ='Check|List'!$S$1 -> Ok
B2: =Index!$C$13 -> Calc | Opex Forecast
D4: Source | E4: Unit | F4: Basis | J4: ='Input|General'!$G$8 -> 2014-15 | K4: =IF(OFFSET('Lookup|Tables'!$G$28:$G$43,MATCH('Input|General'!$G$8,'Lookup|Tables'!$G$28:$G$42,0)+1,0,1,1)<='Input|General'!$G$12,OFFSET('Lookup|Tables'!$G$28:$G$43,MATCH('Input|General'!$G$8,'Lookup|Tables'!$G$28:$G$42,0),0,1,1),"") -> 2015-16 | L4: =IF(OFFSET('Lookup|Tables'!$G$28:$G$43,MATCH('Input|General'!$G$8,'Lookup|Tables'!$G$28:$G$42,0)+1,0,1,1)<='Input|General'!$G$12,OFFSET('Lookup|Tables'!$G$28:$G$43,MATCH('Input|General'!$G$8,'Lookup|Tables'!$G$28:$G$42,0)+1,0,1,1),"") -> 2016-17 | M4: =IF(OFFSET('Lookup|Tables'!$G$28:$G$43,MATCH('Input|General'!$G$8,'Lookup|Tables'!$G$28:$G$42,0)+2,0,1,1)<='Input|General'!$G$12,OFFSET('Lookup|Tables'!$G$28:$G$43,MATCH('Input|General'!$G$8,'Lookup|Tables'!$G$28:$G$42,0)+2,0,1,1),"") -> 2017-18 | N4: =IF(OFFSET('Lookup|Tables'!$G$28:$G$43,MATCH('Input|General'!$G$8,'Lookup|Tables'!$G$28:$G$42,0)+3,0,1,1)<='Input|General'!$G$12,OFFSET('Lookup|Tables'!$G$28:$G$43,MATCH('Input|General'!$G$8,'Lookup|Tables'!$G$28:$G$42,0)+3,0,1,1),"") -> 2018-19 | O4: =IF(OFFSET('Lookup|Tables'!$G$28:$G$43,MATCH('Input|General'!$G$8,'Lookup|Tables'!$G$28:$G$42,0)+4,0,1,1)<='Input|General'!$G$12,OFFSET('Lookup|Tables'!$G$28:$G$43,MATCH('Input|General'!$G$8,'Lookup|Tables'!$G$28:$G$42,0)+4,0,1,1),"") -> 2019-20 | P4: =IF(OFFSET('Lookup|Tables'!$G$28:$G$43,MATCH('Input|General'!$G$8,'Lookup|Tables'!$G$28:$G$42,0)+5,0,1,1)<='Input|General'!$G$12,OFFSET('Lookup|Tables'!$G$28:$G$43,MATCH('Input|General'!$G$8,'Lookup|Tables'!$G$28:$G$42,0)+5,0,1,1),"") -> 2020-21 | Q4: =IF(OFFSET('Lookup|Tables'!$G$28:$G$43,MATCH('Input|General'!$G$8,'Lookup|Tables'!$G$28:$G$42,0)+6,0,1,1)<='Input|General'!$G$12,OFFSET('Lookup|Tables'!$G$28:$G$43,MATCH('Input|General'!$G$8,'Lookup|Tables'!$G$28:$G$42,0)+6,0,1,1),"") -> 2021-22 | R4: =IF(OFFSET('Lookup|Tables'!$G$28:$G$43,MATCH('Input|General'!$G$8,'Lookup|Tables'!$G$28:$G$42,0)+7,0,1,1)<='Input|General'!$G$12,OFFSET('Lookup|Tables'!$G$28:$G$43,MATCH('Input|General'!$G$8,'Lookup|Tables'!$G$28:$G$42,0)+7,0,1,1),"") -> 2022-23 | S4: =IF(OFFSET('Lookup|Tables'!$G$28:$G$43,MATCH('Input|General'!$G$8,'Lookup|Tables'!$G$28:$G$42,0)+8,0,1,1)<='Input|General'!$G$12,OFFSET('Lookup|Tables'!$G$28:$G$43,MATCH('Input|General'!$G$8,'Lookup|Tables'!$G$28:$G$42,0)+8,0,1,1),"") -> 2023-24
B8: Calc | Estimated final year expenditure | E8: $millions | F8: ='Input|General'!G10 -> 2018-19
D10: Source | E10: Unit | F10: Basis | J10: =IF(RIGHT(J$4,2)>=RIGHT('Input|General'!$G$9,2),IF(RIGHT(J$4,2)<=RIGHT('Input|General'!$G$10,2),J$4,""),"") ->  | K10: =IF(RIGHT(K$4,2)>=RIGHT('Input|General'!$G$9,2),IF(RIGHT(K$4,2)<=RIGHT('Input|General'!$G$10,2),K$4,""),"") ->  | L10: =IF(RIGHT(L$4,2)>=RIGHT('Input|General'!$G$9,2),IF(RIGHT(L$4,2)<=RIGHT('Input|General'!$G$10,2),L$4,""),"") ->  | M10: =IF(RIGHT(M$4,2)>=RIGHT('Input|General'!$G$9,2),IF(RIGHT(M$4,2)<=RIGHT('Input|General'!$G$10,2),M$4,""),"") -> 2017-18 | N10: =IF(RIGHT(N$4,2)>=RIGHT('Input|General'!$G$9,2),IF(RIGHT(N$4,2)<=RIGHT('Input|General'!$G$10,2),N$4,""),"") -> 2018-19 | O10: =IF(RIGHT(O$4,2)>=RIGHT('Input|General'!$G$9,2),IF(RIGHT(O$4,2)<=RIGHT('Input|General'!$G$10,2),O$4,""),"") ->  | P10: =IF(RIGHT(P$4,2)>=RIGHT('Input|General'!$G$9,2),IF(RIGHT(P$4,2)<=RIGHT('Input|General'!$G$10,2),P$4,""),"") ->  | Q10: =IF(RIGHT(Q$4,2)>=RIGHT('Input|General'!$G$9,2),IF(RIGHT(Q$4,2)<=RIGHT('Input|General'!$G$10,2),Q$4,""),"") ->  | R10: =IF(RIGHT(R$4,2)>=RIGHT('Input|General'!$G$9,2),IF(RIGHT(R$4,2)<=RIGHT('Input|General'!$G$10,2),R$4,""),"") ->  | S10: =IF(RIGHT(S$4,2)>=RIGHT('Input|General'!$G$9,2),IF(RIGHT(S$4,2)<=RIGHT('Input|General'!$G$10,2),S$4,""),"") -> 
C12: Total reported opex | D12: Inputs|Reported opex | E12: ='Input|Reported opex'!E43 -> $millions | F12: ='Input|Reported opex'!F43 -> nominal | J12: =IF(J$10='Input|General'!$G$9,'Input|Reported opex'!J43,0) -> 0 | K12: =IF(K$10='Input|General'!$G$9,'Input|Reported opex'!K43,0) -> 0 | L12: =IF(L$10='Input|General'!$G$9,'Input|Reported opex'!L43,0) -> 0 | M12: =IF(M$10='Input|General'!$G$9,'Input|Reported opex'!M43,0) -> 426.3881331 | N12: =IF(N$10='Input|General'!$G$9,'Input|Reported opex'!N43,0) -> 0 | O12: =IF(O$10='Input|General'!$G$9,'Input|Reported opex'!O43,0) -> 0 | P12: =IF(P$10='Input|General'!$G$9,'Input|Reported opex'!P43,0) -> 0 | Q12: =IF(Q$10='Input|General'!$G$9,'Input|Reported opex'!Q43,0) -> 0 | R12: =IF(R$10='Input|General'!$G$9,'Input|Reported opex'!R43,0) -> 0 | S12: =IF(S$10='Input|General'!$G$9,'Input|Reported opex'!S43,0) -> 0
C13: Total reported opex | D13: Calculated | E13: =$E$8 -> $millions | F13: 2018-19 | J13: =J12*IF($F12="nominal",LOOKUP($F13,Nominal_to_Real,'Input|Rate of change'!K$26:K$32),INDEX('Input|Rate of change'!$C$14:$O$22,MATCH('Calc|Opex forecast'!$F12,'Input|Rate of change'!$C$14:$C$22,0),MATCH('Calc|Opex forecast'!$F13,'Input|Rate of change'!$C$14:$O$14,0)))*IF($E12="$millions",1000000,IF($E12="$000",1000,1))/IF($E13="$millions",1000000,IF($E13="$000",1000,1)) -> 0 | K13: =K12*IF($F12="nominal",LOOKUP($F13,Nominal_to_Real,'Input|Rate of change'!L$26:L$32),INDEX('Input|Rate of change'!$C$14:$O$22,MATCH('Calc|Opex forecast'!$F12,'Input|Rate of change'!$C$14:$C$22,0),MATCH('Calc|Opex forecast'!$F13,'Input|Rate of change'!$C$14:$O$14,0)))*IF($E12="$millions",1000000,IF($E12="$000",1000,1))/IF($E13="$millions",1000000,IF($E13="$000",1000,1)) -> 0 | L13: =L12*IF($F12="nominal",LOOKUP($F13,Nominal_to_Real,'Input|Rate of change'!M$26:M$32),INDEX('Input|Rate of change'!$C$14:$O$22,MATCH('Calc|Opex forecast'!$F12,'Input|Rate of change'!$C$14:$C$22,0),MATCH('Calc|Opex forecast'!$F13,'Input|Rate of change'!$C$14:$O$14,0)))*IF($E12="$millions",1000000,IF($E12="$000",1000,1))/IF($E13="$millions",1000000,IF($E13="$000",1000,1)) -> 0 | M13: =M12*IF($F12="nominal",LOOKUP($F13,Nominal_to_Real,'Input|Rate of change'!N$26:N$32),INDEX('Input|Rate of change'!$C$14:$O$22,MATCH('Calc|Opex forecast'!$F12,'Input|Rate of change'!$C$14:$C$22,0),MATCH('Calc|Opex forecast'!$F13,'Input|Rate of change'!$C$14:$O$14,0)))*IF($E12="$millions",1000000,IF($E12="$000",1000,1))/IF($E13="$millions",1000000,IF($E13="$000",1000,1)) -> 440.2036575 | N13: =N12*IF($F12="nominal",LOOKUP($F13,Nominal_to_Real,'Input|Rate of change'!O$26:O$32),INDEX('Input|Rate of change'!$C$14:$O$22,MATCH('Calc|Opex forecast'!$F12,'Input|Rate of change'!$C$14:$C$22,0),MATCH('Calc|Opex forecast'!$F13,'Input|Rate of change'!$C$14:$O$14,0)))*IF($E12="$millions",1000000,IF($E12="$000",1000,1))/IF($E13="$millions",1000000,IF($E13="$000",1000,1)) -> 0 | O13: =O12*IF($F12="nominal",LOOKUP($F13,Nominal_to_Real,'Input|Rate of change'!P$26:P$32),INDEX('Input|Rate of change'!$C$14:$O$22,MATCH('Calc|Opex forecast'!$F12,'Input|Rate of change'!$C$14:$C$22,0),MATCH('Calc|Opex forecast'!$F13,'Input|Rate of change'!$C$14:$O$14,0)))*IF($E12="$millions",1000000,IF($E12="$000",1000,1))/IF($E13="$millions",1000000,IF($E13="$000",1000,1)) -> 0 | P13: =P12*IF($F12="nominal",LOOKUP($F13,Nominal_to_Real,'Input|Rate of change'!Q$26:Q$32),INDEX('Input|Rate of change'!$C$14:$O$22,MATCH('Calc|Opex forecast'!$F12,'Input|Rate of change'!$C$14:$C$22,0),MATCH('Calc|Opex forecast'!$F13,'Input|Rate of change'!$C$14:$O$14,0)))*IF($E12="$millions",1000000,IF($E12="$000",1000,1))/IF($E13="$millions",1000000,IF($E13="$000",1000,1)) -> 0 | Q13: =Q12*IF($F12="nominal",LOOKUP($F13,Nominal_to_Real,'Input|Rate of change'!R$26:R$32),INDEX('Input|Rate of change'!$C$14:$O$22,MATCH('Calc|Opex forecast'!$F12,'Input|Rate of change'!$C$14:$C$22,0),MATCH('Calc|Opex forecast'!$F13,'Input|Rate of change'!$C$14:$O$14,0)))*IF($E12="$millions",1000000,IF($E12="$000",1000,1))/IF($E13="$millions",1000000,IF($E13="$000",1000,1)) -> 0 | R13: =R12*IF($F12="nominal",LOOKUP($F13,Nominal_to_Real,'Input|Rate of change'!S$26:S$32),INDEX('Input|Rate of change'!$C$14:$O$22,MATCH('Calc|Opex forecast'!$F12,'Input|Rate of change'!$C$14:$C$22,0),MATCH('Calc|Opex forecast'!$F13,'Input|Rate of change'!$C$14:$O$14,0)))*IF($E12="$millions",1000000,IF($E12="$000",1000,1))/IF($E13="$millions",1000000,IF($E13="$000",1000,1)) -> 0 | S13: =S12*IF($F12="nominal",LOOKUP($F13,Nominal_to_Real,'Input|Rate of change'!T$26:T$32),INDEX('Input|Rate of change'!$C$14:$O$22,MATCH('Calc|Opex forecast'!$F12,'Input|Rate of change'!$C$14:$C$22,0),MATCH('Calc|Opex forecast'!$F13,'Input|Rate of change'!$C$14:$O$14,0)))*IF($E12="$millions",1000000,IF($E12="$000",1000,1))/IF($E13="$millions",1000000,IF($E13="$000",1000,1)) -> 0
C15: Base year opex | D15: Calculated | E15: =$E$8 -> $millions | F15: =$F$8 -> 2018-19 | J15: =IF(J$10='Input|General'!$G$9,J13,0) -> 0 | K15: =IF(K$10='Input|General'!$G$9,K13,0) -> 0 | L15: =IF(L$10='Input|General'!$G$9,L13,0) -> 0 | M15: =IF(M$10='Input|General'!$G$9,M13,0) -> 440.2036575 | N15: =IF(N$10='Input|General'!$G$9,N13,0) -> 0 | O15: =IF(O$10='Input|General'!$G$9,O13,0) -> 0 | P15: =IF(P$10='Input|General'!$G$9,P13,0) -> 0 | Q15: =IF(Q$10='Input|General'!$G$9,Q13,0) -> 0 | R15: =IF(R$10='Input|General'!$G$9,R13,0) -> 0 | S15: =IF(S$10='Input|General'!$G$9,S13,0) -> 0
C17: CAM adjustment | D17: Inputs|Reported opex | E17: ='Input|Reported opex'!E48 -> $millions | F17: ='Input|Reported opex'!F48 -> nominal | J17: =IF(J$10='Input|General'!$G$9,'Input|Reported opex'!J48,0) -> 0 | K17: =IF(K$10='Input|General'!$G$9,'Input|Reported opex'!K48,0) -> 0 | L17: =IF(L$10='Input|General'!$G$9,'Input|Reported opex'!L48,0) -> 0 | M17: =IF(M$10='Input|General'!$G$9,'Input|Reported opex'!M48,0) -> 0 | N17: =IF(N$10='Input|General'!$G$9,'Input|Reported opex'!N48,0) -> 0 | O17: =IF(O$10='Input|General'!$G$9,'Input|Reported opex'!O48,0) -> 0 | P17: =IF(P$10='Input|General'!$G$9,'Input|Reported opex'!P48,0) -> 0 | Q17: =IF(Q$10='Input|General'!$G$9,'Input|Reported opex'!Q48,0) -> 0 | R17: =IF(R$10='Input|General'!$G$9,'Input|Reported opex'!R48,0) -> 0 | S17: =IF(S$10='Input|General'!$G$9,'Input|Reported opex'!S48,0) -> 0
C18: =C17 -> CAM adjustment | D18: Calculated | E18: =$E$8 -> $millions | F18: 2018-19 | J18: =J17*IF($F17="nominal",LOOKUP($F18,Nominal_to_Real,'Input|Rate of change'!K$26:K$32),INDEX('Input|Rate of change'!$C$14:$O$22,MATCH('Calc|Opex forecast'!$F17,'Input|Rate of change'!$C$14:$C$22,0),MATCH('Calc|Opex forecast'!$F18,'Input|Rate of change'!$C$14:$O$14,0)))*IF($E17="$millions",1000000,IF($E17="$000",1000,1))/IF($E18="$millions",1000000,IF($E18="$000",1000,1)) -> 0 | K18: =K17*IF($F17="nominal",LOOKUP($F18,Nominal_to_Real,'Input|Rate of change'!L$26:L$32),INDEX('Input|Rate of change'!$C$14:$O$22,MATCH('Calc|Opex forecast'!$F17,'Input|Rate of change'!$C$14:$C$22,0),MATCH('Calc|Opex forecast'!$F18,'Input|Rate of change'!$C$14:$O$14,0)))*IF($E17="$millions",1000000,IF($E17="$000",1000,1))/IF($E18="$millions",1000000,IF($E18="$000",1000,1)) -> 0 | L18: =L17*IF($F17="nominal",LOOKUP($F18,Nominal_to_Real,'Input|Rate of change'!M$26:M$32),INDEX('Input|Rate of change'!$C$14:$O$22,MATCH('Calc|Opex forecast'!$F17,'Input|Rate of change'!$C$14:$C$22,0),MATCH('Calc|Opex forecast'!$F18,'Input|Rate of change'!$C$14:$O$14,0)))*IF($E17="$millions",1000000,IF($E17="$000",1000,1))/IF($E18="$millions",1000000,IF($E18="$000",1000,1)) -> 0 | M18: =M17*IF($F17="nominal",LOOKUP($F18,Nominal_to_Real,'Input|Rate of change'!N$26:N$32),INDEX('Input|Rate of change'!$C$14:$O$22,MATCH('Calc|Opex forecast'!$F17,'Input|Rate of change'!$C$14:$C$22,0),MATCH('Calc|Opex forecast'!$F18,'Input|Rate of change'!$C$14:$O$14,0)))*IF($E17="$millions",1000000,IF($E17="$000",1000,1))/IF($E18="$millions",1000000,IF($E18="$000",1000,1)) -> 0 | N18: =N17*IF($F17="nominal",LOOKUP($F18,Nominal_to_Real,'Input|Rate of change'!O$26:O$32),INDEX('Input|Rate of change'!$C$14:$O$22,MATCH('Calc|Opex forecast'!$F17,'Input|Rate of change'!$C$14:$C$22,0),MATCH('Calc|Opex forecast'!$F18,'Input|Rate of change'!$C$14:$O$14,0)))*IF($E17="$millions",1000000,IF($E17="$000",1000,1))/IF($E18="$millions",1000000,IF($E18="$000",1000,1)) -> 0 | O18: =O17*IF($F17="nominal",LOOKUP($F18,Nominal_to_Real,'Input|Rate of change'!P$26:P$32),INDEX('Input|Rate of change'!$C$14:$O$22,MATCH('Calc|Opex forecast'!$F17,'Input|Rate of change'!$C$14:$C$22,0),MATCH('Calc|Opex forecast'!$F18,'Input|Rate of change'!$C$14:$O$14,0)))*IF($E17="$millions",1000000,IF($E17="$000",1000,1))/IF($E18="$millions",1000000,IF($E18="$000",1000,1)) -> 0 | P18: =P17*IF($F17="nominal",LOOKUP($F18,Nominal_to_Real,'Input|Rate of change'!Q$26:Q$32),INDEX('Input|Rate of change'!$C$14:$O$22,MATCH('Calc|Opex forecast'!$F17,'Input|Rate of change'!$C$14:$C$22,0),MATCH('Calc|Opex forecast'!$F18,'Input|Rate of change'!$C$14:$O$14,0)))*IF($E17="$millions",1000000,IF($E17="$000",1000,1))/IF($E18="$millions",1000000,IF($E18="$000",1000,1)) -> 0 | Q18: =Q17*IF($F17="nominal",LOOKUP($F18,Nominal_to_Real,'Input|Rate of change'!R$26:R$32),INDEX('Input|Rate of change'!$C$14:$O$22,MATCH('Calc|Opex forecast'!$F17,'Input|Rate of change'!$C$14:$C$22,0),MATCH('Calc|Opex forecast'!$F18,'Input|Rate of change'!$C$14:$O$14,0)))*IF($E17="$millions",1000000,IF($E17="$000",1000,1))/IF($E18="$millions",1000000,IF($E18="$000",1000,1)) -> 0 | R18: =R17*IF($F17="nominal",LOOKUP($F18,Nominal_to_Real,'Input|Rate of change'!S$26:S$32),INDEX('Input|Rate of change'!$C$14:$O$22,MATCH('Calc|Opex forecast'!$F17,'Input|Rate of change'!$C$14:$C$22,0),MATCH('Calc|Opex forecast'!$F18,'Input|Rate of change'!$C$14:$O$14,0)))*IF($E17="$millions",1000000,IF($E17="$000",1000,1))/IF($E18="$millions",1000000,IF($E18="$000",1000,1)) -> 0 | S18: =S17*IF($F17="nominal",LOOKUP($F18,Nominal_to_Real,'Input|Rate of change'!T$26:T$32),INDEX('Input|Rate of change'!$C$14:$O$22,MATCH('Calc|Opex forecast'!$F17,'Input|Rate of change'!$C$14:$C$22,0),MATCH('Calc|Opex forecast'!$F18,'Input|Rate of change'!$C$14:$O$14,0)))*IF($E17="$millions",1000000,IF($E17="$000",1000,1))/IF($E18="$millions",1000000,IF($E18="$000",1000,1)) -> 0
C20: Service classification adjustment | D20: Inputs|Reported opex | E20: ='Input|Reported opex'!E53 -> $millions | F20: ='Input|Reported opex'!F53 -> nominal | J20: =IF(J$10='Input|General'!$G$9,'Input|Reported opex'!J53,0) -> 0 | K20: =IF(K$10='Input|General'!$G$9,'Input|Reported opex'!K53,0) -> 0 | L20: =IF(L$10='Input|General'!$G$9,'Input|Reported opex'!L53,0) -> 0 | M20: =IF(M$10='Input|General'!$G$9,'Input|Reported opex'!M53,0) -> 5.19481049 | N20: =IF(N$10='Input|General'!$G$9,'Input|Reported opex'!N53,0) -> 0 | O20: =IF(O$10='Input|General'!$G$9,'Input|Reported opex'!O53,0) -> 0 | P20: =IF(P$10='Input|General'!$G$9,'Input|Reported opex'!P53,0) -> 0 | Q20: =IF(Q$10='Input|General'!$G$9,'Input|Reported opex'!Q53,0) -> 0 | R20: =IF(R$10='Input|General'!$G$9,'Input|Reported opex'!R53,0) -> 0 | S20: =IF(S$10='Input|General'!$G$9,'Input|Reported opex'!S53,0) -> 0
C21: =C20 -> Service classification adjustment | D21: Calculated | E21: =$E$8 -> $millions | F21: 2018-19 | J21: =J20*IF($F20="nominal",LOOKUP($F21,Nominal_to_Real,'Input|Rate of change'!K$26:K$32),INDEX('Input|Rate of change'!$C$14:$O$22,MATCH('Calc|Opex forecast'!$F20,'Input|Rate of change'!$C$14:$C$22,0),MATCH('Calc|Opex forecast'!$F21,'Input|Rate of change'!$C$14:$O$14,0)))*IF($E20="$millions",1000000,IF($E20="$000",1000,1))/IF($E21="$millions",1000000,IF($E21="$000",1000,1)) -> 0 | K21: =K20*IF($F20="nominal",LOOKUP($F21,Nominal_to_Real,'Input|Rate of change'!L$26:L$32),INDEX('Input|Rate of change'!$C$14:$O$22,MATCH('Calc|Opex forecast'!$F20,'Input|Rate of change'!$C$14:$C$22,0),MATCH('Calc|Opex forecast'!$F21,'Input|Rate of change'!$C$14:$O$14,0)))*IF($E20="$millions",1000000,IF($E20="$000",1000,1))/IF($E21="$millions",1000000,IF($E21="$000",1000,1)) -> 0 | L21: =L20*IF($F20="nominal",LOOKUP($F21,Nominal_to_Real,'Input|Rate of change'!M$26:M$32),INDEX('Input|Rate of change'!$C$14:$O$22,MATCH('Calc|Opex forecast'!$F20,'Input|Rate of change'!$C$14:$C$22,0),MATCH('Calc|Opex forecast'!$F21,'Input|Rate of change'!$C$14:$O$14,0)))*IF($E20="$millions",1000000,IF($E20="$000",1000,1))/IF($E21="$millions",1000000,IF($E21="$000",1000,1)) -> 0 | M21: =M20*IF($F20="nominal",LOOKUP($F21,Nominal_to_Real,'Input|Rate of change'!N$26:N$32),INDEX('Input|Rate of change'!$C$14:$O$22,MATCH('Calc|Opex forecast'!$F20,'Input|Rate of change'!$C$14:$C$22,0),MATCH('Calc|Opex forecast'!$F21,'Input|Rate of change'!$C$14:$O$14,0)))*IF($E20="$millions",1000000,IF($E20="$000",1000,1))/IF($E21="$millions",1000000,IF($E21="$000",1000,1)) -> 5.363129036 | N21: =N20*IF($F20="nominal",LOOKUP($F21,Nominal_to_Real,'Input|Rate of change'!O$26:O$32),INDEX('Input|Rate of change'!$C$14:$O$22,MATCH('Calc|Opex forecast'!$F20,'Input|Rate of change'!$C$14:$C$22,0),MATCH('Calc|Opex forecast'!$F21,'Input|Rate of change'!$C$14:$O$14,0)))*IF($E20="$millions",1000000,IF($E20="$000",1000,1))/IF($E21="$millions",1000000,IF($E21="$000",1000,1)) -> 0 | O21: =O20*IF($F20="nominal",LOOKUP($F21,Nominal_to_Real,'Input|Rate of change'!P$26:P$32),INDEX('Input|Rate of change'!$C$14:$O$22,MATCH('Calc|Opex forecast'!$F20,'Input|Rate of change'!$C$14:$C$22,0),MATCH('Calc|Opex forecast'!$F21,'Input|Rate of change'!$C$14:$O$14,0)))*IF($E20="$millions",1000000,IF($E20="$000",1000,1))/IF($E21="$millions",1000000,IF($E21="$000",1000,1)) -> 0 | P21: =P20*IF($F20="nominal",LOOKUP($F21,Nominal_to_Real,'Input|Rate of change'!Q$26:Q$32),INDEX('Input|Rate of change'!$C$14:$O$22,MATCH('Calc|Opex forecast'!$F20,'Input|Rate of change'!$C$14:$C$22,0),MATCH('Calc|Opex forecast'!$F21,'Input|Rate of change'!$C$14:$O$14,0)))*IF($E20="$millions",1000000,IF($E20="$000",1000,1))/IF($E21="$millions",1000000,IF($E21="$000",1000,1)) -> 0 | Q21: =Q20*IF($F20="nominal",LOOKUP($F21,Nominal_to_Real,'Input|Rate of change'!R$26:R$32),INDEX('Input|Rate of change'!$C$14:$O$22,MATCH('Calc|Opex forecast'!$F20,'Input|Rate of change'!$C$14:$C$22,0),MATCH('Calc|Opex forecast'!$F21,'Input|Rate of change'!$C$14:$O$14,0)))*IF($E20="$millions",1000000,IF($E20="$000",1000,1))/IF($E21="$millions",1000000,IF($E21="$000",1000,1)) -> 0 | R21: =R20*IF($F20="nominal",LOOKUP($F21,Nominal_to_Real,'Input|Rate of change'!S$26:S$32),INDEX('Input|Rate of change'!$C$14:$O$22,MATCH('Calc|Opex forecast'!$F20,'Input|Rate of change'!$C$14:$C$22,0),MATCH('Calc|Opex forecast'!$F21,'Input|Rate of change'!$C$14:$O$14,0)))*IF($E20="$millions",1000000,IF($E20="$000",1000,1))/IF($E21="$millions",1000000,IF($E21="$000",1000,1)) -> 0 | S21: =S20*IF($F20="nominal",LOOKUP($F21,Nominal_to_Real,'Input|Rate of change'!T$26:T$32),INDEX('Input|Rate of change'!$C$14:$O$22,MATCH('Calc|Opex forecast'!$F20,'Input|Rate of change'!$C$14:$C$22,0),MATCH('Calc|Opex forecast'!$F21,'Input|Rate of change'!$C$14:$O$14,0)))*IF($E20="$millions",1000000,IF($E20="$000",1000,1))/IF($E21="$millions",1000000,IF($E21="$000",1000,1)) -> 0
C23: Total base year opex allowance | D23: Inputs|Reported opex | E23: ='Input|Reported opex'!E24 -> $millions | F23: 2013-14 | M23: ='Input|Reported opex'!M24 -> 397.5252343
C24: Total base year opex allowance | D24: Calculated | E24: =$E$8 -> $millions | F24: 2018-19 | M24: =M23*'Input|Rate of change'!O17 -> 433.1957983
C26: Total final year opex allowance | D26: Inputs|Reported opex | E26: =E23 -> $millions | F26: 2013-14 | N26: ='Input|Reported opex'!N24 -> 403.6417725
C27: Total final year opex allowance | D27: Calculated | E27: =$E$8 -> $millions | F27: 2018-19 | N27: =N26*'Input|Rate of change'!O17 -> 439.8611831
C29: Add estimated change in opex between the base year and the final year | N29: =N27-M24 -> 6.665384823
C31: Estimated final year opex | N31: =SUM(M15,M21,N29) -> 452.2321713
C33: Efficiency adjustment | D33: calculated | E33: =$E$8 -> $millions | F33: =$F$8 -> 2018-19 | J33: =SUM(J15,J18,J21)*'Input|Reported opex'!J58 -> 0 | K33: =SUM(K15,K18,K21)*'Input|Reported opex'!K58 -> 0 | L33: =SUM(L15,L18,L21)*'Input|Reported opex'!L58 -> 0 | M33: =SUM(M15,M18,M21)*'Input|Reported opex'!M58 -> 0 | N33: =SUM(N15,N18,N21)*'Input|Reported opex'!N58 -> 0 | O33: =SUM(O15,O18,O21)*'Input|Reported opex'!O58 -> 0 | P33: =SUM(P15,P18,P21)*'Input|Reported opex'!P58 -> 0 | Q33: =SUM(Q15,Q18,Q21)*'Input|Reported opex'!Q58 -> 0 | R33: =SUM(R15,R18,R21)*'Input|Reported opex'!R58 -> 0 | S33: =SUM(S15,S18,S21)*'Input|Reported opex'!S58 -> 0
C35: Efficiency adjustment final year opex | D35: calculated | E35: =$E$8 -> $millions | F35: =$F$8 -> 2018-19 | J35: =SUM(J15,J18,J21,J33) -> 0 | K35: =SUM(K15,K18,K21,K33) -> 0 | L35: =SUM(L15,L18,L21,L33) -> 0 | N35: =SUM(N31,N33) -> 452.2321713 | O35: =SUM(O15,O18,O21,O33) -> 0 | P35: =SUM(P15,P18,P21,P33) -> 0 | Q35: =SUM(Q15,Q18,Q21,Q33) -> 0 | R35: =SUM(R15,R18,R21,R33) -> 0 | S35: =SUM(S15,S18,S21,S33) -> 0
B37: Calc | Rate of change
C39: Rate of change | D39: Source | E39: Unit | F39: Basis | J39: =IF(RIGHT(J$4,2)>=RIGHT('Input|General'!$G$11,2),IF(RIGHT(J$4,2)<=RIGHT('Input|General'!$G$12,2),'Input|Reported opex'!J$4,""),"") ->  | K39: =IF(RIGHT(K$4,2)>=RIGHT('Input|General'!$G$11,2),IF(RIGHT(K$4,2)<=RIGHT('Input|General'!$G$12,2),'Input|Reported opex'!K$4,""),"") ->  | L39: =IF(RIGHT(L$4,2)>=RIGHT('Input|General'!$G$11,2),IF(RIGHT(L$4,2)<=RIGHT('Input|General'!$G$12,2),'Input|Reported opex'!L$4,""),"") ->  | M39: =IF(RIGHT(M$4,2)>=RIGHT('Input|General'!$G$11,2),IF(RIGHT(M$4,2)<=RIGHT('Input|General'!$G$12,2),'Input|Reported opex'!M$4,""),"") ->  | N39: =IF(RIGHT(N$4,2)>=RIGHT('Input|General'!$G$11,2),IF(RIGHT(N$4,2)<=RIGHT('Input|General'!$G$12,2),'Input|Reported opex'!N$4,""),"") ->  | O39: =IF(RIGHT(O$4,2)>=RIGHT('Input|General'!$G$11,2),IF(RIGHT(O$4,2)<=RIGHT('Input|General'!$G$12,2),'Input|Reported opex'!O$4,""),"") -> 2019-20 | P39: =IF(RIGHT(P$4,2)>=RIGHT('Input|General'!$G$11,2),IF(RIGHT(P$4,2)<=RIGHT('Input|General'!$G$12,2),'Input|Reported opex'!P$4,""),"") -> 2020-21 | Q39: =IF(RIGHT(Q$4,2)>=RIGHT('Input|General'!$G$11,2),IF(RIGHT(Q$4,2)<=RIGHT('Input|General'!$G$12,2),'Input|Reported opex'!Q$4,""),"") -> 2021-22 | R39: =IF(RIGHT(R$4,2)>=RIGHT('Input|General'!$G$11,2),IF(RIGHT(R$4,2)<=RIGHT('Input|General'!$G$12,2),'Input|Reported opex'!R$4,""),"") -> 2022-23 | S39: =IF(RIGHT(S$4,2)>=RIGHT('Input|General'!$G$11,2),IF(RIGHT(S$4,2)<=RIGHT('Input|General'!$G$12,2),'Input|Reported opex'!S$4,""),"") -> 2023-24
C42: Forecast output change | D42: Calculated | E42: Per cent | F42: n/a | J42: =SUMPRODUCT('Input|Rate of change'!K73:K78,'Input|Rate of change'!$N$82:$N$87) -> 0 | K42: =SUMPRODUCT('Input|Rate of change'!L73:L78,'Input|Rate of change'!$N$82:$N$87) -> 0 | L42: =SUMPRODUCT('Input|Rate of change'!M73:M78,'Input|Rate of change'!$N$82:$N$87) -> 0 | M42: =SUMPRODUCT('Input|Rate of change'!N73:N78,'Input|Rate of change'!$N$82:$N$87) -> 0 | O42: =SUMPRODUCT('Input|Rate of change'!P73:P78,'Input|Rate of change'!$N$82:$N$87) -> 0.007457925763 | P42: =SUMPRODUCT('Input|Rate of change'!Q73:Q78,'Input|Rate of change'!$N$82:$N$87) -> 0.008487517989 | Q42: =SUMPRODUCT('Input|Rate of change'!R73:R78,'Input|Rate of change'!$N$82:$N$87) -> 0.008530304963 | R42: =SUMPRODUCT('Input|Rate of change'!S73:S78,'Input|Rate of change'!$N$82:$N$87) -> 0.008463826439 | S42: =SUMPRODUCT('Input|Rate of change'!T73:T78,'Input|Rate of change'!$N$82:$N$87) -> 0.008817161133
C44: Forecast price change | D44: Calculated | E44: Per cent | F44: n/a | J44: =SUMPRODUCT('Input|Rate of change'!K38:K45,'Input|Rate of change'!K49:K56) -> 0 | K44: =SUMPRODUCT('Input|Rate of change'!L38:L45,'Input|Rate of change'!L49:L56) -> 0 | L44: =SUMPRODUCT('Input|Rate of change'!M38:M45,'Input|Rate of change'!M49:M56) -> 0 | M44: =SUMPRODUCT('Input|Rate of change'!N38:N45,'Input|Rate of change'!N49:N56) -> 0 | O44: =SUMPRODUCT('Input|Rate of change'!P38:P45,'Input|Rate of change'!P49:P56) -> 0.005248090123 | P44: =SUMPRODUCT('Input|Rate of change'!Q38:Q45,'Input|Rate of change'!Q49:Q56) -> 0.008167880854 | Q44: =SUMPRODUCT('Input|Rate of change'!R38:R45,'Input|Rate of change'!R49:R56) -> 0.01037147426 | R44: =SUMPRODUCT('Input|Rate of change'!S38:S45,'Input|Rate of change'!S49:S56) -> 0.01032066341 | S44: =SUMPRODUCT('Input|Rate of change'!T38:T45,'Input|Rate of change'!T49:T56) -> 0.007959957745
C46: Forecast productivity change | D46: Calculated | E46: Per cent | F46: n/a | J46: ='Input|Rate of change'!K95 -> 0 | K46: ='Input|Rate of change'!L95 -> 0 | L46: ='Input|Rate of change'!M95 -> 0 | M46: ='Input|Rate of change'!N95 -> 0 | O46: ='Input|Rate of change'!P95 -> 0 | P46: ='Input|Rate of change'!Q95 -> 0 | Q46: ='Input|Rate of change'!R95 -> 0 | R46: ='Input|Rate of change'!S95 -> 0 | S46: ='Input|Rate of change'!T95 -> 0
C48: Forecast rate of change | D48: Calculated | E48: Per cent | F48: n/a | J48: =(1+J42)*(1+J44)*(1-J46)-1 -> 0 | K48: =(1+K42)*(1+K44)*(1-K46)-1 -> 0 | L48: 0 | M48: 0 | O48: 0.01274515575 | P48: 0.01672472388 | Q48: 0.01899025106 | R48: 0.01887184215 | S48: 0.01684730311
B50: Calc | Step changes
C52: Step changes | D52: Source | E52: Unit | F52: Basis | J52: =IF(RIGHT(J$4,2)>=RIGHT('Input|General'!$G$11,2),IF(RIGHT(J$4,2)<=RIGHT('Input|General'!$G$12,2),'Input|Reported opex'!J$4,""),"") ->  | K52: =IF(RIGHT(K$4,2)>=RIGHT('Input|General'!$G$11,2),IF(RIGHT(K$4,2)<=RIGHT('Input|General'!$G$12,2),'Input|Reported opex'!K$4,""),"") ->  | L52: =IF(RIGHT(L$4,2)>=RIGHT('Input|General'!$G$11,2),IF(RIGHT(L$4,2)<=RIGHT('Input|General'!$G$12,2),'Input|Reported opex'!L$4,""),"") ->  | M52: =IF(RIGHT(M$4,2)>=RIGHT('Input|General'!$G$11,2),IF(RIGHT(M$4,2)<=RIGHT('Input|General'!$G$12,2),'Input|Reported opex'!M$4,""),"") ->  | N52: =IF(RIGHT(N$4,2)>=RIGHT('Input|General'!$G$11,2),IF(RIGHT(N$4,2)<=RIGHT('Input|General'!$G$12,2),'Input|Reported opex'!N$4,""),"") ->  | O52: =IF(RIGHT(O$4,2)>=RIGHT('Input|General'!$G$11,2),IF(RIGHT(O$4,2)<=RIGHT('Input|General'!$G$12,2),'Input|Reported opex'!O$4,""),"") -> 2019-20 | P52: =IF(RIGHT(P$4,2)>=RIGHT('Input|General'!$G$11,2),IF(RIGHT(P$4,2)<=RIGHT('Input|General'!$G$12,2),'Input|Reported opex'!P$4,""),"") -> 2020-21 | Q52: =IF(RIGHT(Q$4,2)>=RIGHT('Input|General'!$G$11,2),IF(RIGHT(Q$4,2)<=RIGHT('Input|General'!$G$12,2),'Input|Reported opex'!Q$4,""),"") -> 2021-22 | R52: =IF(RIGHT(R$4,2)>=RIGHT('Input|General'!$G$11,2),IF(RIGHT(R$4,2)<=RIGHT('Input|General'!$G$12,2),'Input|Reported opex'!R$4,""),"") -> 2022-23 | S52: =IF(RIGHT(S$4,2)>=RIGHT('Input|General'!$G$11,2),IF(RIGHT(S$4,2)<=RIGHT('Input|General'!$G$12,2),'Input|Reported opex'!S$4,""),"") -> 2023-24
C54: ='Input|Step changes'!C12 -> Demand Management | D54: Calculated | E54: =$E$8 -> $millions | F54: =$F$8 -> 2018-19 | J54: ='Input|Step changes'!J12*IF('Input|Step changes'!$F12="nominal",LOOKUP($F54,Nominal_to_Real,'Input|Rate of change'!K$26:K$32),INDEX('Input|Rate of change'!$C$14:$O$22,MATCH('Input|Step changes'!$F12,'Input|Rate of change'!$C$14:$C$22,0),MATCH('Calc|Opex forecast'!$F54,'Input|Rate of change'!$C$14:$O$14,0)))*IF('Input|Step changes'!$E12="$millions",1000000,IF('Input|Step changes'!$E12="$000",1000,1))/IF($E54="$millions",1000000,IF($E54="$000",1000,1)) -> 0 | K54: ='Input|Step changes'!K12*IF('Input|Step changes'!$F12="nominal",LOOKUP($F54,Nominal_to_Real,'Input|Rate of change'!L$26:L$32),INDEX('Input|Rate of change'!$C$14:$O$22,MATCH('Input|Step changes'!$F12,'Input|Rate of change'!$C$14:$C$22,0),MATCH('Calc|Opex forecast'!$F54,'Input|Rate of change'!$C$14:$O$14,0)))*IF('Input|Step changes'!$E12="$millions",1000000,IF('Input|Step changes'!$E12="$000",1000,1))/IF($E54="$millions",1000000,IF($E54="$000",1000,1)) -> 0 | L54: ='Input|Step changes'!L12*IF('Input|Step changes'!$F12="nominal",LOOKUP($F54,Nominal_to_Real,'Input|Rate of change'!M$26:M$32),INDEX('Input|Rate of change'!$C$14:$O$22,MATCH('Input|Step changes'!$F12,'Input|Rate of change'!$C$14:$C$22,0),MATCH('Calc|Opex forecast'!$F54,'Input|Rate of change'!$C$14:$O$14,0)))*IF('Input|Step changes'!$E12="$millions",1000000,IF('Input|Step changes'!$E12="$000",1000,1))/IF($E54="$millions",1000000,IF($E54="$000",1000,1)) -> 0 | M54: ='Input|Step changes'!M12*IF('Input|Step changes'!$F12="nominal",LOOKUP($F54,Nominal_to_Real,'Input|Rate of change'!N$26:N$32),INDEX('Input|Rate of change'!$C$14:$O$22,MATCH('Input|Step changes'!$F12,'Input|Rate of change'!$C$14:$C$22,0),MATCH('Calc|Opex forecast'!$F54,'Input|Rate of change'!$C$14:$O$14,0)))*IF('Input|Step changes'!$E12="$millions",1000000,IF('Input|Step changes'!$E12="$000",1000,1))/IF($E54="$millions",1000000,IF($E54="$000",1000,1)) -> 0 | N54: ='Input|Step changes'!N12*IF('Input|Step changes'!$F12="nominal",LOOKUP($F54,Nominal_to_Real,'Input|Rate of change'!O$26:O$32),INDEX('Input|Rate of change'!$C$14:$O$22,MATCH('Input|Step changes'!$F12,'Input|Rate of change'!$C$14:$C$22,0),MATCH('Calc|Opex forecast'!$F54,'Input|Rate of change'!$C$14:$O$14,0)))*IF('Input|Step changes'!$E12="$millions",1000000,IF('Input|Step changes'!$E12="$000",1000,1))/IF($E54="$millions",1000000,IF($E54="$000",1000,1)) -> 0 | O54: ='Input|Step changes'!O12*IF('Input|Step changes'!$F12="nominal",LOOKUP($F54,Nominal_to_Real,'Input|Rate of change'!P$26:P$32),INDEX('Input|Rate of change'!$C$14:$O$22,MATCH('Input|Step changes'!$F12,'Input|Rate of change'!$C$14:$C$22,0),MATCH('Calc|Opex forecast'!$F54,'Input|Rate of change'!$C$14:$O$14,0)))*IF('Input|Step changes'!$E12="$millions",1000000,IF('Input|Step changes'!$E12="$000",1000,1))/IF($E54="$millions",1000000,IF($E54="$000",1000,1)) -> 3.679955594 | P54: ='Input|Step changes'!P12*IF('Input|Step changes'!$F12="nominal",LOOKUP($F54,Nominal_to_Real,'Input|Rate of change'!Q$26:Q$32),INDEX('Input|Rate of change'!$C$14:$O$22,MATCH('Input|Step changes'!$F12,'Input|Rate of change'!$C$14:$C$22,0),MATCH('Calc|Opex forecast'!$F54,'Input|Rate of change'!$C$14:$O$14,0)))*IF('Input|Step changes'!$E12="$millions",1000000,IF('Input|Step changes'!$E12="$000",1000,1))/IF($E54="$millions",1000000,IF($E54="$000",1000,1)) -> 3.679955594 | Q54: ='Input|Step changes'!Q12*IF('Input|Step changes'!$F12="nominal",LOOKUP($F54,Nominal_to_Real,'Input|Rate of change'!R$26:R$32),INDEX('Input|Rate of change'!$C$14:$O$22,MATCH('Input|Step changes'!$F12,'Input|Rate of change'!$C$14:$C$22,0),MATCH('Calc|Opex forecast'!$F54,'Input|Rate of change'!$C$14:$O$14,0)))*IF('Input|Step changes'!$E12="$millions",1000000,IF('Input|Step changes'!$E12="$000",1000,1))/IF($E54="$millions",1000000,IF($E54="$000",1000,1)) -> 6.515502113 | R54: ='Input|Step changes'!R12*IF('Input|Step changes'!$F12="nominal",LOOKUP($F54,Nominal_to_Real,'Input|Rate of change'!S$26:S$32),INDEX('Input|Rate of change'!$C$14:$O$22,MATCH('Input|Step changes'!$F12,'Input|Rate of change'!$C$14:$C$22,0),MATCH('Calc|Opex forecast'!$F54,'Input|Rate of change'!$C$14:$O$14,0)))*IF('Input|Step changes'!$E12="$millions",1000000,IF('Input|Step changes'!$E12="$000",1000,1))/IF($E54="$millions",1000000,IF($E54="$000",1000,1)) -> 6.557201327 | S54: ='Input|Step changes'!S12*IF('Input|Step changes'!$F12="nominal",LOOKUP($F54,Nominal_to_Real,'Input|Rate of change'!T$26:T$32),INDEX('Input|Rate of change'!$C$14:$O$22,MATCH('Input|Step changes'!$F12,'Input|Rate of change'!$C$14:$C$22,0),MATCH('Calc|Opex forecast'!$F54,'Input|Rate of change'!$C$14:$O$14,0)))*IF('Input|Step changes'!$E12="$millions",1000000,IF('Input|Step changes'!$E12="$000",1000,1))/IF($E54="$millions",1000000,IF($E54="$000",1000,1)) -> 5.691942646
C55: ='Input|Step changes'!C13 -> Accelerated tariff acceptance research project | D55: Calculated | E55: $millions | F55: =$F$8 -> 2018-19 | J55: ='Input|Step changes'!J13*IF('Input|Step changes'!$F13="nominal",LOOKUP($F55,Nominal_to_Real,'Input|Rate of change'!K$26:K$32),INDEX('Input|Rate of change'!$C$14:$O$22,MATCH('Input|Step changes'!$F13,'Input|Rate of change'!$C$14:$C$22,0),MATCH('Calc|Opex forecast'!$F55,'Input|Rate of change'!$C$14:$O$14,0)))*IF('Input|Step changes'!$E13="$millions",1000000,IF('Input|Step changes'!$E13="$000",1000,1))/IF($E55="$millions",1000000,IF($E55="$000",1000,1)) -> 0 | K55: ='Input|Step changes'!K13*IF('Input|Step changes'!$F13="nominal",LOOKUP($F55,Nominal_to_Real,'Input|Rate of change'!L$26:L$32),INDEX('Input|Rate of change'!$C$14:$O$22,MATCH('Input|Step changes'!$F13,'Input|Rate of change'!$C$14:$C$22,0),MATCH('Calc|Opex forecast'!$F55,'Input|Rate of change'!$C$14:$O$14,0)))*IF('Input|Step changes'!$E13="$millions",1000000,IF('Input|Step changes'!$E13="$000",1000,1))/IF($E55="$millions",1000000,IF($E55="$000",1000,1)) -> 0 | L55: ='Input|Step changes'!L13*IF('Input|Step changes'!$F13="nominal",LOOKUP($F55,Nominal_to_Real,'Input|Rate of change'!M$26:M$32),INDEX('Input|Rate of change'!$C$14:$O$22,MATCH('Input|Step changes'!$F13,'Input|Rate of change'!$C$14:$C$22,0),MATCH('Calc|Opex forecast'!$F55,'Input|Rate of change'!$C$14:$O$14,0)))*IF('Input|Step changes'!$E13="$millions",1000000,IF('Input|Step changes'!$E13="$000",1000,1))/IF($E55="$millions",1000000,IF($E55="$000",1000,1)) -> 0 | M55: ='Input|Step changes'!M13*IF('Input|Step changes'!$F13="nominal",LOOKUP($F55,Nominal_to_Real,'Input|Rate of change'!N$26:N$32),INDEX('Input|Rate of change'!$C$14:$O$22,MATCH('Input|Step changes'!$F13,'Input|Rate of change'!$C$14:$C$22,0),MATCH('Calc|Opex forecast'!$F55,'Input|Rate of change'!$C$14:$O$14,0)))*IF('Input|Step changes'!$E13="$millions",1000000,IF('Input|Step changes'!$E13="$000",1000,1))/IF($E55="$millions",1000000,IF($E55="$000",1000,1)) -> 0 | N55: ='Input|Step changes'!N13*IF('Input|Step changes'!$F13="nominal",LOOKUP($F55,Nominal_to_Real,'Input|Rate of change'!O$26:O$32),INDEX('Input|Rate of change'!$C$14:$O$22,MATCH('Input|Step changes'!$F13,'Input|Rate of change'!$C$14:$C$22,0),MATCH('Calc|Opex forecast'!$F55,'Input|Rate of change'!$C$14:$O$14,0)))*IF('Input|Step changes'!$E13="$millions",1000000,IF('Input|Step changes'!$E13="$000",1000,1))/IF($E55="$millions",1000000,IF($E55="$000",1000,1)) -> 0 | O55: ='Input|Step changes'!O13*IF('Input|Step changes'!$F13="nominal",LOOKUP($F55,Nominal_to_Real,'Input|Rate of change'!P$26:P$32),INDEX('Input|Rate of change'!$C$14:$O$22,MATCH('Input|Step changes'!$F13,'Input|Rate of change'!$C$14:$C$22,0),MATCH('Calc|Opex forecast'!$F55,'Input|Rate of change'!$C$14:$O$14,0)))*IF('Input|Step changes'!$E13="$millions",1000000,IF('Input|Step changes'!$E13="$000",1000,1))/IF($E55="$millions",1000000,IF($E55="$000",1000,1)) -> 1.5 | P55: ='Input|Step changes'!P13*IF('Input|Step changes'!$F13="nominal",LOOKUP($F55,Nominal_to_Real,'Input|Rate of change'!Q$26:Q$32),INDEX('Input|Rate of change'!$C$14:$O$22,MATCH('Input|Step changes'!$F13,'Input|Rate of change'!$C$14:$C$22,0),MATCH('Calc|Opex forecast'!$F55,'Input|Rate of change'!$C$14:$O$14,0)))*IF('Input|Step changes'!$E13="$millions",1000000,IF('Input|Step changes'!$E13="$000",1000,1))/IF($E55="$millions",1000000,IF($E55="$000",1000,1)) -> 1.5 | Q55: ='Input|Step changes'!Q13*IF('Input|Step changes'!$F13="nominal",LOOKUP($F55,Nominal_to_Real,'Input|Rate of change'!R$26:R$32),INDEX('Input|Rate of change'!$C$14:$O$22,MATCH('Input|Step changes'!$F13,'Input|Rate of change'!$C$14:$C$22,0),MATCH('Calc|Opex forecast'!$F55,'Input|Rate of change'!$C$14:$O$14,0)))*IF('Input|Step changes'!$E13="$millions",1000000,IF('Input|Step changes'!$E13="$000",1000,1))/IF($E55="$millions",1000000,IF($E55="$000",1000,1)) -> 0 | R55: ='Input|Step changes'!R13*IF('Input|Step changes'!$F13="nominal",LOOKUP($F55,Nominal_to_Real,'Input|Rate of change'!S$26:S$32),INDEX('Input|Rate of change'!$C$14:$O$22,MATCH('Input|Step changes'!$F13,'Input|Rate of change'!$C$14:$C$22,0),MATCH('Calc|Opex forecast'!$F55,'Input|Rate of change'!$C$14:$O$14,0)))*IF('Input|Step changes'!$E13="$millions",1000000,IF('Input|Step changes'!$E13="$000",1000,1))/IF($E55="$millions",1000000,IF($E55="$000",1000,1)) -> 0 | S55: ='Input|Step changes'!S13*IF('Input|Step changes'!$F13="nominal",LOOKUP($F55,Nominal_to_Real,'Input|Rate of change'!T$26:T$32),INDEX('Input|Rate of change'!$C$14:$O$22,MATCH('Input|Step changes'!$F13,'Input|Rate of change'!$C$14:$C$22,0),MATCH('Calc|Opex forecast'!$F55,'Input|Rate of change'!$C$14:$O$14,0)))*IF('Input|Step changes'!$E13="$millions",1000000,IF('Input|Step changes'!$E13="$000",1000,1))/IF($E55="$millions",1000000,IF($E55="$000",1000,1)) -> 0
C56: ='Input|Step changes'!C14 -> 0 | D56: Calculated | E56: $millions | F56: 2018-19 | J56: ='Input|Step changes'!J14*IF('Input|Step changes'!$F14="nominal",LOOKUP($F56,Nominal_to_Real,'Input|Rate of change'!K$26:K$32),INDEX('Input|Rate of change'!$C$14:$O$22,MATCH('Input|Step changes'!$F14,'Input|Rate of change'!$C$14:$C$22,0),MATCH('Calc|Opex forecast'!$F56,'Input|Rate of change'!$C$14:$O$14,0)))*IF('Input|Step changes'!$E14="$millions",1000000,IF('Input|Step changes'!$E14="$000",1000,1))/IF($E56="$millions",1000000,IF($E56="$000",1000,1)) -> 0 | K56: ='Input|Step changes'!K14*IF('Input|Step changes'!$F14="nominal",LOOKUP($F56,Nominal_to_Real,'Input|Rate of change'!L$26:L$32),INDEX('Input|Rate of change'!$C$14:$O$22,MATCH('Input|Step changes'!$F14,'Input|Rate of change'!$C$14:$C$22,0),MATCH('Calc|Opex forecast'!$F56,'Input|Rate of change'!$C$14:$O$14,0)))*IF('Input|Step changes'!$E14="$millions",1000000,IF('Input|Step changes'!$E14="$000",1000,1))/IF($E56="$millions",1000000,IF($E56="$000",1000,1)) -> 0 | L56: ='Input|Step changes'!L14*IF('Input|Step changes'!$F14="nominal",LOOKUP($F56,Nominal_to_Real,'Input|Rate of change'!M$26:M$32),INDEX('Input|Rate of change'!$C$14:$O$22,MATCH('Input|Step changes'!$F14,'Input|Rate of change'!$C$14:$C$22,0),MATCH('Calc|Opex forecast'!$F56,'Input|Rate of change'!$C$14:$O$14,0)))*IF('Input|Step changes'!$E14="$millions",1000000,IF('Input|Step changes'!$E14="$000",1000,1))/IF($E56="$millions",1000000,IF($E56="$000",1000,1)) -> 0 | M56: ='Input|Step changes'!M14*IF('Input|Step changes'!$F14="nominal",LOOKUP($F56,Nominal_to_Real,'Input|Rate of change'!N$26:N$32),INDEX('Input|Rate of change'!$C$14:$O$22,MATCH('Input|Step changes'!$F14,'Input|Rate of change'!$C$14:$C$22,0),MATCH('Calc|Opex forecast'!$F56,'Input|Rate of change'!$C$14:$O$14,0)))*IF('Input|Step changes'!$E14="$millions",1000000,IF('Input|Step changes'!$E14="$000",1000,1))/IF($E56="$millions",1000000,IF($E56="$000",1000,1)) -> 0 | N56: ='Input|Step changes'!N14*IF('Input|Step changes'!$F14="nominal",LOOKUP($F56,Nominal_to_Real,'Input|Rate of change'!O$26:O$32),INDEX('Input|Rate of change'!$C$14:$O$22,MATCH('Input|Step changes'!$F14,'Input|Rate of change'!$C$14:$C$22,0),MATCH('Calc|Opex forecast'!$F56,'Input|Rate of change'!$C$14:$O$14,0)))*IF('Input|Step changes'!$E14="$millions",1000000,IF('Input|Step changes'!$E14="$000",1000,1))/IF($E56="$millions",1000000,IF($E56="$000",1000,1)) -> 0 | O56: ='Input|Step changes'!O14*IF('Input|Step changes'!$F14="nominal",LOOKUP($F56,Nominal_to_Real,'Input|Rate of change'!P$26:P$32),INDEX('Input|Rate of change'!$C$14:$O$22,MATCH('Input|Step changes'!$F14,'Input|Rate of change'!$C$14:$C$22,0),MATCH('Calc|Opex forecast'!$F56,'Input|Rate of change'!$C$14:$O$14,0)))*IF('Input|Step changes'!$E14="$millions",1000000,IF('Input|Step changes'!$E14="$000",1000,1))/IF($E56="$millions",1000000,IF($E56="$000",1000,1)) -> 0 | P56: ='Input|Step changes'!P14*IF('Input|Step changes'!$F14="nominal",LOOKUP($F56,Nominal_to_Real,'Input|Rate of change'!Q$26:Q$32),INDEX('Input|Rate of change'!$C$14:$O$22,MATCH('Input|Step changes'!$F14,'Input|Rate of change'!$C$14:$C$22,0),MATCH('Calc|Opex forecast'!$F56,'Input|Rate of change'!$C$14:$O$14,0)))*IF('Input|Step changes'!$E14="$millions",1000000,IF('Input|Step changes'!$E14="$000",1000,1))/IF($E56="$millions",1000000,IF($E56="$000",1000,1)) -> 0 | Q56: ='Input|Step changes'!Q14*IF('Input|Step changes'!$F14="nominal",LOOKUP($F56,Nominal_to_Real,'Input|Rate of change'!R$26:R$32),INDEX('Input|Rate of change'!$C$14:$O$22,MATCH('Input|Step changes'!$F14,'Input|Rate of change'!$C$14:$C$22,0),MATCH('Calc|Opex forecast'!$F56,'Input|Rate of change'!$C$14:$O$14,0)))*IF('Input|Step changes'!$E14="$millions",1000000,IF('Input|Step changes'!$E14="$000",1000,1))/IF($E56="$millions",1000000,IF($E56="$000",1000,1)) -> 0 | R56: ='Input|Step changes'!R14*IF('Input|Step changes'!$F14="nominal",LOOKUP($F56,Nominal_to_Real,'Input|Rate of change'!S$26:S$32),INDEX('Input|Rate of change'!$C$14:$O$22,MATCH('Input|Step changes'!$F14,'Input|Rate of change'!$C$14:$C$22,0),MATCH('Calc|Opex forecast'!$F56,'Input|Rate of change'!$C$14:$O$14,0)))*IF('Input|Step changes'!$E14="$millions",1000000,IF('Input|Step changes'!$E14="$000",1000,1))/IF($E56="$millions",1000000,IF($E56="$000",1000,1)) -> 0 | S56: ='Input|Step changes'!S14*IF('Input|Step changes'!$F14="nominal",LOOKUP($F56,Nominal_to_Real,'Input|Rate of change'!T$26:T$32),INDEX('Input|Rate of change'!$C$14:$O$22,MATCH('Input|Step changes'!$F14,'Input|Rate of change'!$C$14:$C$22,0),MATCH('Calc|Opex forecast'!$F56,'Input|Rate of change'!$C$14:$O$14,0)))*IF('Input|Step changes'!$E14="$millions",1000000,IF('Input|Step changes'!$E14="$000",1000,1))/IF($E56="$millions",1000000,IF($E56="$000",1000,1)) -> 0
C57: ='Input|Step changes'!C15 -> 0 | D57: Calculated | E57: $millions | F57: 2018-19 | J57: ='Input|Step changes'!J15*IF('Input|Step changes'!$F15="nominal",LOOKUP($F57,Nominal_to_Real,'Input|Rate of change'!K$26:K$32),INDEX('Input|Rate of change'!$C$14:$O$22,MATCH('Input|Step changes'!$F15,'Input|Rate of change'!$C$14:$C$22,0),MATCH('Calc|Opex forecast'!$F57,'Input|Rate of change'!$C$14:$O$14,0)))*IF('Input|Step changes'!$E15="$millions",1000000,IF('Input|Step changes'!$E15="$000",1000,1))/IF($E57="$millions",1000000,IF($E57="$000",1000,1)) -> 0 | K57: ='Input|Step changes'!K15*IF('Input|Step changes'!$F15="nominal",LOOKUP($F57,Nominal_to_Real,'Input|Rate of change'!L$26:L$32),INDEX('Input|Rate of change'!$C$14:$O$22,MATCH('Input|Step changes'!$F15,'Input|Rate of change'!$C$14:$C$22,0),MATCH('Calc|Opex forecast'!$F57,'Input|Rate of change'!$C$14:$O$14,0)))*IF('Input|Step changes'!$E15="$millions",1000000,IF('Input|Step changes'!$E15="$000",1000,1))/IF($E57="$millions",1000000,IF($E57="$000",1000,1)) -> 0 | L57: ='Input|Step changes'!L15*IF('Input|Step changes'!$F15="nominal",LOOKUP($F57,Nominal_to_Real,'Input|Rate of change'!M$26:M$32),INDEX('Input|Rate of change'!$C$14:$O$22,MATCH('Input|Step changes'!$F15,'Input|Rate of change'!$C$14:$C$22,0),MATCH('Calc|Opex forecast'!$F57,'Input|Rate of change'!$C$14:$O$14,0)))*IF('Input|Step changes'!$E15="$millions",1000000,IF('Input|Step changes'!$E15="$000",1000,1))/IF($E57="$millions",1000000,IF($E57="$000",1000,1)) -> 0 | M57: ='Input|Step changes'!M15*IF('Input|Step changes'!$F15="nominal",LOOKUP($F57,Nominal_to_Real,'Input|Rate of change'!N$26:N$32),INDEX('Input|Rate of change'!$C$14:$O$22,MATCH('Input|Step changes'!$F15,'Input|Rate of change'!$C$14:$C$22,0),MATCH('Calc|Opex forecast'!$F57,'Input|Rate of change'!$C$14:$O$14,0)))*IF('Input|Step changes'!$E15="$millions",1000000,IF('Input|Step changes'!$E15="$000",1000,1))/IF($E57="$millions",1000000,IF($E57="$000",1000,1)) -> 0 | N57: ='Input|Step changes'!N15*IF('Input|Step changes'!$F15="nominal",LOOKUP($F57,Nominal_to_Real,'Input|Rate of change'!O$26:O$32),INDEX('Input|Rate of change'!$C$14:$O$22,MATCH('Input|Step changes'!$F15,'Input|Rate of change'!$C$14:$C$22,0),MATCH('Calc|Opex forecast'!$F57,'Input|Rate of change'!$C$14:$O$14,0)))*IF('Input|Step changes'!$E15="$millions",1000000,IF('Input|Step changes'!$E15="$000",1000,1))/IF($E57="$millions",1000000,IF($E57="$000",1000,1)) -> 0 | O57: ='Input|Step changes'!O15*IF('Input|Step changes'!$F15="nominal",LOOKUP($F57,Nominal_to_Real,'Input|Rate of change'!P$26:P$32),INDEX('Input|Rate of change'!$C$14:$O$22,MATCH('Input|Step changes'!$F15,'Input|Rate of change'!$C$14:$C$22,0),MATCH('Calc|Opex forecast'!$F57,'Input|Rate of change'!$C$14:$O$14,0)))*IF('Input|Step changes'!$E15="$millions",1000000,IF('Input|Step changes'!$E15="$000",1000,1))/IF($E57="$millions",1000000,IF($E57="$000",1000,1)) -> 0 | P57: ='Input|Step changes'!P15*IF('Input|Step changes'!$F15="nominal",LOOKUP($F57,Nominal_to_Real,'Input|Rate of change'!Q$26:Q$32),INDEX('Input|Rate of change'!$C$14:$O$22,MATCH('Input|Step changes'!$F15,'Input|Rate of change'!$C$14:$C$22,0),MATCH('Calc|Opex forecast'!$F57,'Input|Rate of change'!$C$14:$O$14,0)))*IF('Input|Step changes'!$E15="$millions",1000000,IF('Input|Step changes'!$E15="$000",1000,1))/IF($E57="$millions",1000000,IF($E57="$000",1000,1)) -> 0 | Q57: ='Input|Step changes'!Q15*IF('Input|Step changes'!$F15="nominal",LOOKUP($F57,Nominal_to_Real,'Input|Rate of change'!R$26:R$32),INDEX('Input|Rate of change'!$C$14:$O$22,MATCH('Input|Step changes'!$F15,'Input|Rate of change'!$C$14:$C$22,0),MATCH('Calc|Opex forecast'!$F57,'Input|Rate of change'!$C$14:$O$14,0)))*IF('Input|Step changes'!$E15="$millions",1000000,IF('Input|Step changes'!$E15="$000",1000,1))/IF($E57="$millions",1000000,IF($E57="$000",1000,1)) -> 0 | R57: ='Input|Step changes'!R15*IF('Input|Step changes'!$F15="nominal",LOOKUP($F57,Nominal_to_Real,'Input|Rate of change'!S$26:S$32),INDEX('Input|Rate of change'!$C$14:$O$22,MATCH('Input|Step changes'!$F15,'Input|Rate of change'!$C$14:$C$22,0),MATCH('Calc|Opex forecast'!$F57,'Input|Rate of change'!$C$14:$O$14,0)))*IF('Input|Step changes'!$E15="$millions",1000000,IF('Input|Step changes'!$E15="$000",1000,1))/IF($E57="$millions",1000000,IF($E57="$000",1000,1)) -> 0 | S57: ='Input|Step changes'!S15*IF('Input|Step changes'!$F15="nominal",LOOKUP($F57,Nominal_to_Real,'Input|Rate of change'!T$26:T$32),INDEX('Input|Rate of change'!$C$14:$O$22,MATCH('Input|Step changes'!$F15,'Input|Rate of change'!$C$14:$C$22,0),MATCH('Calc|Opex forecast'!$F57,'Input|Rate of change'!$C$14:$O$14,0)))*IF('Input|Step changes'!$E15="$millions",1000000,IF('Input|Step changes'!$E15="$000",1000,1))/IF($E57="$millions",1000000,IF($E57="$000",1000,1)) -> 0
C58: ='Input|Step changes'!C16 -> 0 | D58: Calculated | E58: $millions | F58: 2018-19 | J58: ='Input|Step changes'!J16*IF('Input|Step changes'!$F16="nominal",LOOKUP($F58,Nominal_to_Real,'Input|Rate of change'!K$26:K$32),INDEX('Input|Rate of change'!$C$14:$O$22,MATCH('Input|Step changes'!$F16,'Input|Rate of change'!$C$14:$C$22,0),MATCH('Calc|Opex forecast'!$F58,'Input|Rate of change'!$C$14:$O$14,0)))*IF('Input|Step changes'!$E16="$millions",1000000,IF('Input|Step changes'!$E16="$000",1000,1))/IF($E58="$millions",1000000,IF($E58="$000",1000,1)) -> 0 | K58: ='Input|Step changes'!K16*IF('Input|Step changes'!$F16="nominal",LOOKUP($F58,Nominal_to_Real,'Input|Rate of change'!L$26:L$32),INDEX('Input|Rate of change'!$C$14:$O$22,MATCH('Input|Step changes'!$F16,'Input|Rate of change'!$C$14:$C$22,0),MATCH('Calc|Opex forecast'!$F58,'Input|Rate of change'!$C$14:$O$14,0)))*IF('Input|Step changes'!$E16="$millions",1000000,IF('Input|Step changes'!$E16="$000",1000,1))/IF($E58="$millions",1000000,IF($E58="$000",1000,1)) -> 0 | L58: ='Input|Step changes'!L16*IF('Input|Step changes'!$F16="nominal",LOOKUP($F58,Nominal_to_Real,'Input|Rate of change'!M$26:M$32),INDEX('Input|Rate of change'!$C$14:$O$22,MATCH('Input|Step changes'!$F16,'Input|Rate of change'!$C$14:$C$22,0),MATCH('Calc|Opex forecast'!$F58,'Input|Rate of change'!$C$14:$O$14,0)))*IF('Input|Step changes'!$E16="$millions",1000000,IF('Input|Step changes'!$E16="$000",1000,1))/IF($E58="$millions",1000000,IF($E58="$000",1000,1)) -> 0 | M58: ='Input|Step changes'!M16*IF('Input|Step changes'!$F16="nominal",LOOKUP($F58,Nominal_to_Real,'Input|Rate of change'!N$26:N$32),INDEX('Input|Rate of change'!$C$14:$O$22,MATCH('Input|Step changes'!$F16,'Input|Rate of change'!$C$14:$C$22,0),MATCH('Calc|Opex forecast'!$F58,'Input|Rate of change'!$C$14:$O$14,0)))*IF('Input|Step changes'!$E16="$millions",1000000,IF('Input|Step changes'!$E16="$000",1000,1))/IF($E58="$millions",1000000,IF($E58="$000",1000,1)) -> 0 | N58: ='Input|Step changes'!N16*IF('Input|Step changes'!$F16="nominal",LOOKUP($F58,Nominal_to_Real,'Input|Rate of change'!O$26:O$32),INDEX('Input|Rate of change'!$C$14:$O$22,MATCH('Input|Step changes'!$F16,'Input|Rate of change'!$C$14:$C$22,0),MATCH('Calc|Opex forecast'!$F58,'Input|Rate of change'!$C$14:$O$14,0)))*IF('Input|Step changes'!$E16="$millions",1000000,IF('Input|Step changes'!$E16="$000",1000,1))/IF($E58="$millions",1000000,IF($E58="$000",1000,1)) -> 0 | O58: ='Input|Step changes'!O16*IF('Input|Step changes'!$F16="nominal",LOOKUP($F58,Nominal_to_Real,'Input|Rate of change'!P$26:P$32),INDEX('Input|Rate of change'!$C$14:$O$22,MATCH('Input|Step changes'!$F16,'Input|Rate of change'!$C$14:$C$22,0),MATCH('Calc|Opex forecast'!$F58,'Input|Rate of change'!$C$14:$O$14,0)))*IF('Input|Step changes'!$E16="$millions",1000000,IF('Input|Step changes'!$E16="$000",1000,1))/IF($E58="$millions",1000000,IF($E58="$000",1000,1)) -> 0 | P58: ='Input|Step changes'!P16*IF('Input|Step changes'!$F16="nominal",LOOKUP($F58,Nominal_to_Real,'Input|Rate of change'!Q$26:Q$32),INDEX('Input|Rate of change'!$C$14:$O$22,MATCH('Input|Step changes'!$F16,'Input|Rate of change'!$C$14:$C$22,0),MATCH('Calc|Opex forecast'!$F58,'Input|Rate of change'!$C$14:$O$14,0)))*IF('Input|Step changes'!$E16="$millions",1000000,IF('Input|Step changes'!$E16="$000",1000,1))/IF($E58="$millions",1000000,IF($E58="$000",1000,1)) -> 0 | Q58: ='Input|Step changes'!Q16*IF('Input|Step changes'!$F16="nominal",LOOKUP($F58,Nominal_to_Real,'Input|Rate of change'!R$26:R$32),INDEX('Input|Rate of change'!$C$14:$O$22,MATCH('Input|Step changes'!$F16,'Input|Rate of change'!$C$14:$C$22,0),MATCH('Calc|Opex forecast'!$F58,'Input|Rate of change'!$C$14:$O$14,0)))*IF('Input|Step changes'!$E16="$millions",1000000,IF('Input|Step changes'!$E16="$000",1000,1))/IF($E58="$millions",1000000,IF($E58="$000",1000,1)) -> 0 | R58: ='Input|Step changes'!R16*IF('Input|Step changes'!$F16="nominal",LOOKUP($F58,Nominal_to_Real,'Input|Rate of change'!S$26:S$32),INDEX('Input|Rate of change'!$C$14:$O$22,MATCH('Input|Step changes'!$F16,'Input|Rate of change'!$C$14:$C$22,0),MATCH('Calc|Opex forecast'!$F58,'Input|Rate of change'!$C$14:$O$14,0)))*IF('Input|Step changes'!$E16="$millions",1000000,IF('Input|Step changes'!$E16="$000",1000,1))/IF($E58="$millions",1000000,IF($E58="$000",1000,1)) -> 0 | S58: ='Input|Step changes'!S16*IF('Input|Step changes'!$F16="nominal",LOOKUP($F58,Nominal_to_Real,'Input|Rate of change'!T$26:T$32),INDEX('Input|Rate of change'!$C$14:$O$22,MATCH('Input|Step changes'!$F16,'Input|Rate of change'!$C$14:$C$22,0),MATCH('Calc|Opex forecast'!$F58,'Input|Rate of change'!$C$14:$O$14,0)))*IF('Input|Step changes'!$E16="$millions",1000000,IF('Input|Step changes'!$E16="$000",1000,1))/IF($E58="$millions",1000000,IF($E58="$000",1000,1)) -> 0
C59: ='Input|Step changes'!C17 -> 0 | D59: Calculated | E59: $millions | F59: 2018-19 | J59: ='Input|Step changes'!J17*IF('Input|Step changes'!$F17="nominal",LOOKUP($F59,Nominal_to_Real,'Input|Rate of change'!K$26:K$32),INDEX('Input|Rate of change'!$C$14:$O$22,MATCH('Input|Step changes'!$F17,'Input|Rate of change'!$C$14:$C$22,0),MATCH('Calc|Opex forecast'!$F59,'Input|Rate of change'!$C$14:$O$14,0)))*IF('Input|Step changes'!$E17="$millions",1000000,IF('Input|Step changes'!$E17="$000",1000,1))/IF($E59="$millions",1000000,IF($E59="$000",1000,1)) -> 0 | K59: ='Input|Step changes'!K17*IF('Input|Step changes'!$F17="nominal",LOOKUP($F59,Nominal_to_Real,'Input|Rate of change'!L$26:L$32),INDEX('Input|Rate of change'!$C$14:$O$22,MATCH('Input|Step changes'!$F17,'Input|Rate of change'!$C$14:$C$22,0),MATCH('Calc|Opex forecast'!$F59,'Input|Rate of change'!$C$14:$O$14,0)))*IF('Input|Step changes'!$E17="$millions",1000000,IF('Input|Step changes'!$E17="$000",1000,1))/IF($E59="$millions",1000000,IF($E59="$000",1000,1)) -> 0 | L59: ='Input|Step changes'!L17*IF('Input|Step changes'!$F17="nominal",LOOKUP($F59,Nominal_to_Real,'Input|Rate of change'!M$26:M$32),INDEX('Input|Rate of change'!$C$14:$O$22,MATCH('Input|Step changes'!$F17,'Input|Rate of change'!$C$14:$C$22,0),MATCH('Calc|Opex forecast'!$F59,'Input|Rate of change'!$C$14:$O$14,0)))*IF('Input|Step changes'!$E17="$millions",1000000,IF('Input|Step changes'!$E17="$000",1000,1))/IF($E59="$millions",1000000,IF($E59="$000",1000,1)) -> 0 | M59: ='Input|Step changes'!M17*IF('Input|Step changes'!$F17="nominal",LOOKUP($F59,Nominal_to_Real,'Input|Rate of change'!N$26:N$32),INDEX('Input|Rate of change'!$C$14:$O$22,MATCH('Input|Step changes'!$F17,'Input|Rate of change'!$C$14:$C$22,0),MATCH('Calc|Opex forecast'!$F59,'Input|Rate of change'!$C$14:$O$14,0)))*IF('Input|Step changes'!$E17="$millions",1000000,IF('Input|Step changes'!$E17="$000",1000,1))/IF($E59="$millions",1000000,IF($E59="$000",1000,1)) -> 0 | N59: ='Input|Step changes'!N17*IF('Input|Step changes'!$F17="nominal",LOOKUP($F59,Nominal_to_Real,'Input|Rate of change'!O$26:O$32),INDEX('Input|Rate of change'!$C$14:$O$22,MATCH('Input|Step changes'!$F17,'Input|Rate of change'!$C$14:$C$22,0),MATCH('Calc|Opex forecast'!$F59,'Input|Rate of change'!$C$14:$O$14,0)))*IF('Input|Step changes'!$E17="$millions",1000000,IF('Input|Step changes'!$E17="$000",1000,1))/IF($E59="$millions",1000000,IF($E59="$000",1000,1)) -> 0 | O59: ='Input|Step changes'!O17*IF('Input|Step changes'!$F17="nominal",LOOKUP($F59,Nominal_to_Real,'Input|Rate of change'!P$26:P$32),INDEX('Input|Rate of change'!$C$14:$O$22,MATCH('Input|Step changes'!$F17,'Input|Rate of change'!$C$14:$C$22,0),MATCH('Calc|Opex forecast'!$F59,'Input|Rate of change'!$C$14:$O$14,0)))*IF('Input|Step changes'!$E17="$millions",1000000,IF('Input|Step changes'!$E17="$000",1000,1))/IF($E59="$millions",1000000,IF($E59="$000",1000,1)) -> 0 | P59: ='Input|Step changes'!P17*IF('Input|Step changes'!$F17="nominal",LOOKUP($F59,Nominal_to_Real,'Input|Rate of change'!Q$26:Q$32),INDEX('Input|Rate of change'!$C$14:$O$22,MATCH('Input|Step changes'!$F17,'Input|Rate of change'!$C$14:$C$22,0),MATCH('Calc|Opex forecast'!$F59,'Input|Rate of change'!$C$14:$O$14,0)))*IF('Input|Step changes'!$E17="$millions",1000000,IF('Input|Step changes'!$E17="$000",1000,1))/IF($E59="$millions",1000000,IF($E59="$000",1000,1)) -> 0 | Q59: ='Input|Step changes'!Q17*IF('Input|Step changes'!$F17="nominal",LOOKUP($F59,Nominal_to_Real,'Input|Rate of change'!R$26:R$32),INDEX('Input|Rate of change'!$C$14:$O$22,MATCH('Input|Step changes'!$F17,'Input|Rate of change'!$C$14:$C$22,0),MATCH('Calc|Opex forecast'!$F59,'Input|Rate of change'!$C$14:$O$14,0)))*IF('Input|Step changes'!$E17="$millions",1000000,IF('Input|Step changes'!$E17="$000",1000,1))/IF($E59="$millions",1000000,IF($E59="$000",1000,1)) -> 0 | R59: ='Input|Step changes'!R17*IF('Input|Step changes'!$F17="nominal",LOOKUP($F59,Nominal_to_Real,'Input|Rate of change'!S$26:S$32),INDEX('Input|Rate of change'!$C$14:$O$22,MATCH('Input|Step changes'!$F17,'Input|Rate of change'!$C$14:$C$22,0),MATCH('Calc|Opex forecast'!$F59,'Input|Rate of change'!$C$14:$O$14,0)))*IF('Input|Step changes'!$E17="$millions",1000000,IF('Input|Step changes'!$E17="$000",1000,1))/IF($E59="$millions",1000000,IF($E59="$000",1000,1)) -> 0 | S59: ='Input|Step changes'!S17*IF('Input|Step changes'!$F17="nominal",LOOKUP($F59,Nominal_to_Real,'Input|Rate of change'!T$26:T$32),INDEX('Input|Rate of change'!$C$14:$O$22,MATCH('Input|Step changes'!$F17,'Input|Rate of change'!$C$14:$C$22,0),MATCH('Calc|Opex forecast'!$F59,'Input|Rate of change'!$C$14:$O$14,0)))*IF('Input|Step changes'!$E17="$millions",1000000,IF('Input|Step changes'!$E17="$000",1000,1))/IF($E59="$millions",1000000,IF($E59="$000",1000,1)) -> 0
C60: ='Input|Step changes'!C18 -> 0 | D60: Calculated | E60: $millions | F60: 2018-19 | J60: ='Input|Step changes'!J18*IF('Input|Step changes'!$F18="nominal",LOOKUP($F60,Nominal_to_Real,'Input|Rate of change'!K$26:K$32),INDEX('Input|Rate of change'!$C$14:$O$22,MATCH('Input|Step changes'!$F18,'Input|Rate of change'!$C$14:$C$22,0),MATCH('Calc|Opex forecast'!$F60,'Input|Rate of change'!$C$14:$O$14,0)))*IF('Input|Step changes'!$E18="$millions",1000000,IF('Input|Step changes'!$E18="$000",1000,1))/IF($E60="$millions",1000000,IF($E60="$000",1000,1)) -> 0 | K60: ='Input|Step changes'!K18*IF('Input|Step changes'!$F18="nominal",LOOKUP($F60,Nominal_to_Real,'Input|Rate of change'!L$26:L$32),INDEX('Input|Rate of change'!$C$14:$O$22,MATCH('Input|Step changes'!$F18,'Input|Rate of change'!$C$14:$C$22,0),MATCH('Calc|Opex forecast'!$F60,'Input|Rate of change'!$C$14:$O$14,0)))*IF('Input|Step changes'!$E18="$millions",1000000,IF('Input|Step changes'!$E18="$000",1000,1))/IF($E60="$millions",1000000,IF($E60="$000",1000,1)) -> 0 | L60: ='Input|Step changes'!L18*IF('Input|Step changes'!$F18="nominal",LOOKUP($F60,Nominal_to_Real,'Input|Rate of change'!M$26:M$32),INDEX('Input|Rate of change'!$C$14:$O$22,MATCH('Input|Step changes'!$F18,'Input|Rate of change'!$C$14:$C$22,0),MATCH('Calc|Opex forecast'!$F60,'Input|Rate of change'!$C$14:$O$14,0)))*IF('Input|Step changes'!$E18="$millions",1000000,IF('Input|Step changes'!$E18="$000",1000,1))/IF($E60="$millions",1000000,IF($E60="$000",1000,1)) -> 0 | M60: ='Input|Step changes'!M18*IF('Input|Step changes'!$F18="nominal",LOOKUP($F60,Nominal_to_Real,'Input|Rate of change'!N$26:N$32),INDEX('Input|Rate of change'!$C$14:$O$22,MATCH('Input|Step changes'!$F18,'Input|Rate of change'!$C$14:$C$22,0),MATCH('Calc|Opex forecast'!$F60,'Input|Rate of change'!$C$14:$O$14,0)))*IF('Input|Step changes'!$E18="$millions",1000000,IF('Input|Step changes'!$E18="$000",1000,1))/IF($E60="$millions",1000000,IF($E60="$000",1000,1)) -> 0 | N60: ='Input|Step changes'!N18*IF('Input|Step changes'!$F18="nominal",LOOKUP($F60,Nominal_to_Real,'Input|Rate of change'!O$26:O$32),INDEX('Input|Rate of change'!$C$14:$O$22,MATCH('Input|Step changes'!$F18,'Input|Rate of change'!$C$14:$C$22,0),MATCH('Calc|Opex forecast'!$F60,'Input|Rate of change'!$C$14:$O$14,0)))*IF('Input|Step changes'!$E18="$millions",1000000,IF('Input|Step changes'!$E18="$000",1000,1))/IF($E60="$millions",1000000,IF($E60="$000",1000,1)) -> 0 | O60: ='Input|Step changes'!O18*IF('Input|Step changes'!$F18="nominal",LOOKUP($F60,Nominal_to_Real,'Input|Rate of change'!P$26:P$32),INDEX('Input|Rate of change'!$C$14:$O$22,MATCH('Input|Step changes'!$F18,'Input|Rate of change'!$C$14:$C$22,0),MATCH('Calc|Opex forecast'!$F60,'Input|Rate of change'!$C$14:$O$14,0)))*IF('Input|Step changes'!$E18="$millions",1000000,IF('Input|Step changes'!$E18="$000",1000,1))/IF($E60="$millions",1000000,IF($E60="$000",1000,1)) -> 0 | P60: ='Input|Step changes'!P18*IF('Input|Step changes'!$F18="nominal",LOOKUP($F60,Nominal_to_Real,'Input|Rate of change'!Q$26:Q$32),INDEX('Input|Rate of change'!$C$14:$O$22,MATCH('Input|Step changes'!$F18,'Input|Rate of change'!$C$14:$C$22,0),MATCH('Calc|Opex forecast'!$F60,'Input|Rate of change'!$C$14:$O$14,0)))*IF('Input|Step changes'!$E18="$millions",1000000,IF('Input|Step changes'!$E18="$000",1000,1))/IF($E60="$millions",1000000,IF($E60="$000",1000,1)) -> 0 | Q60: ='Input|Step changes'!Q18*IF('Input|Step changes'!$F18="nominal",LOOKUP($F60,Nominal_to_Real,'Input|Rate of change'!R$26:R$32),INDEX('Input|Rate of change'!$C$14:$O$22,MATCH('Input|Step changes'!$F18,'Input|Rate of change'!$C$14:$C$22,0),MATCH('Calc|Opex forecast'!$F60,'Input|Rate of change'!$C$14:$O$14,0)))*IF('Input|Step changes'!$E18="$millions",1000000,IF('Input|Step changes'!$E18="$000",1000,1))/IF($E60="$millions",1000000,IF($E60="$000",1000,1)) -> 0 | R60: ='Input|Step changes'!R18*IF('Input|Step changes'!$F18="nominal",LOOKUP($F60,Nominal_to_Real,'Input|Rate of change'!S$26:S$32),INDEX('Input|Rate of change'!$C$14:$O$22,MATCH('Input|Step changes'!$F18,'Input|Rate of change'!$C$14:$C$22,0),MATCH('Calc|Opex forecast'!$F60,'Input|Rate of change'!$C$14:$O$14,0)))*IF('Input|Step changes'!$E18="$millions",1000000,IF('Input|Step changes'!$E18="$000",1000,1))/IF($E60="$millions",1000000,IF($E60="$000",1000,1)) -> 0 | S60: ='Input|Step changes'!S18*IF('Input|Step changes'!$F18="nominal",LOOKUP($F60,Nominal_to_Real,'Input|Rate of change'!T$26:T$32),INDEX('Input|Rate of change'!$C$14:$O$22,MATCH('Input|Step changes'!$F18,'Input|Rate of change'!$C$14:$C$22,0),MATCH('Calc|Opex forecast'!$F60,'Input|Rate of change'!$C$14:$O$14,0)))*IF('Input|Step changes'!$E18="$millions",1000000,IF('Input|Step changes'!$E18="$000",1000,1))/IF($E60="$millions",1000000,IF($E60="$000",1000,1)) -> 0
C61: ='Input|Step changes'!C19 -> 0 | D61: Calculated | E61: $millions | F61: 2018-19 | J61: ='Input|Step changes'!J19*IF('Input|Step changes'!$F19="nominal",LOOKUP($F61,Nominal_to_Real,'Input|Rate of change'!K$26:K$32),INDEX('Input|Rate of change'!$C$14:$O$22,MATCH('Input|Step changes'!$F19,'Input|Rate of change'!$C$14:$C$22,0),MATCH('Calc|Opex forecast'!$F61,'Input|Rate of change'!$C$14:$O$14,0)))*IF('Input|Step changes'!$E19="$millions",1000000,IF('Input|Step changes'!$E19="$000",1000,1))/IF($E61="$millions",1000000,IF($E61="$000",1000,1)) -> 0 | K61: ='Input|Step changes'!K19*IF('Input|Step changes'!$F19="nominal",LOOKUP($F61,Nominal_to_Real,'Input|Rate of change'!L$26:L$32),INDEX('Input|Rate of change'!$C$14:$O$22,MATCH('Input|Step changes'!$F19,'Input|Rate of change'!$C$14:$C$22,0),MATCH('Calc|Opex forecast'!$F61,'Input|Rate of change'!$C$14:$O$14,0)))*IF('Input|Step changes'!$E19="$millions",1000000,IF('Input|Step changes'!$E19="$000",1000,1))/IF($E61="$millions",1000000,IF($E61="$000",1000,1)) -> 0 | L61: ='Input|Step changes'!L19*IF('Input|Step changes'!$F19="nominal",LOOKUP($F61,Nominal_to_Real,'Input|Rate of change'!M$26:M$32),INDEX('Input|Rate of change'!$C$14:$O$22,MATCH('Input|Step changes'!$F19,'Input|Rate of change'!$C$14:$C$22,0),MATCH('Calc|Opex forecast'!$F61,'Input|Rate of change'!$C$14:$O$14,0)))*IF('Input|Step changes'!$E19="$millions",1000000,IF('Input|Step changes'!$E19="$000",1000,1))/IF($E61="$millions",1000000,IF($E61="$000",1000,1)) -> 0 | M61: ='Input|Step changes'!M19*IF('Input|Step changes'!$F19="nominal",LOOKUP($F61,Nominal_to_Real,'Input|Rate of change'!N$26:N$32),INDEX('Input|Rate of change'!$C$14:$O$22,MATCH('Input|Step changes'!$F19,'Input|Rate of change'!$C$14:$C$22,0),MATCH('Calc|Opex forecast'!$F61,'Input|Rate of change'!$C$14:$O$14,0)))*IF('Input|Step changes'!$E19="$millions",1000000,IF('Input|Step changes'!$E19="$000",1000,1))/IF($E61="$millions",1000000,IF($E61="$000",1000,1)) -> 0 | N61: ='Input|Step changes'!N19*IF('Input|Step changes'!$F19="nominal",LOOKUP($F61,Nominal_to_Real,'Input|Rate of change'!O$26:O$32),INDEX('Input|Rate of change'!$C$14:$O$22,MATCH('Input|Step changes'!$F19,'Input|Rate of change'!$C$14:$C$22,0),MATCH('Calc|Opex forecast'!$F61,'Input|Rate of change'!$C$14:$O$14,0)))*IF('Input|Step changes'!$E19="$millions",1000000,IF('Input|Step changes'!$E19="$000",1000,1))/IF($E61="$millions",1000000,IF($E61="$000",1000,1)) -> 0 | O61: ='Input|Step changes'!O19*IF('Input|Step changes'!$F19="nominal",LOOKUP($F61,Nominal_to_Real,'Input|Rate of change'!P$26:P$32),INDEX('Input|Rate of change'!$C$14:$O$22,MATCH('Input|Step changes'!$F19,'Input|Rate of change'!$C$14:$C$22,0),MATCH('Calc|Opex forecast'!$F61,'Input|Rate of change'!$C$14:$O$14,0)))*IF('Input|Step changes'!$E19="$millions",1000000,IF('Input|Step changes'!$E19="$000",1000,1))/IF($E61="$millions",1000000,IF($E61="$000",1000,1)) -> 0 | P61: ='Input|Step changes'!P19*IF('Input|Step changes'!$F19="nominal",LOOKUP($F61,Nominal_to_Real,'Input|Rate of change'!Q$26:Q$32),INDEX('Input|Rate of change'!$C$14:$O$22,MATCH('Input|Step changes'!$F19,'Input|Rate of change'!$C$14:$C$22,0),MATCH('Calc|Opex forecast'!$F61,'Input|Rate of change'!$C$14:$O$14,0)))*IF('Input|Step changes'!$E19="$millions",1000000,IF('Input|Step changes'!$E19="$000",1000,1))/IF($E61="$millions",1000000,IF($E61="$000",1000,1)) -> 0 | Q61: ='Input|Step changes'!Q19*IF('Input|Step changes'!$F19="nominal",LOOKUP($F61,Nominal_to_Real,'Input|Rate of change'!R$26:R$32),INDEX('Input|Rate of change'!$C$14:$O$22,MATCH('Input|Step changes'!$F19,'Input|Rate of change'!$C$14:$C$22,0),MATCH('Calc|Opex forecast'!$F61,'Input|Rate of change'!$C$14:$O$14,0)))*IF('Input|Step changes'!$E19="$millions",1000000,IF('Input|Step changes'!$E19="$000",1000,1))/IF($E61="$millions",1000000,IF($E61="$000",1000,1)) -> 0 | R61: ='Input|Step changes'!R19*IF('Input|Step changes'!$F19="nominal",LOOKUP($F61,Nominal_to_Real,'Input|Rate of change'!S$26:S$32),INDEX('Input|Rate of change'!$C$14:$O$22,MATCH('Input|Step changes'!$F19,'Input|Rate of change'!$C$14:$C$22,0),MATCH('Calc|Opex forecast'!$F61,'Input|Rate of change'!$C$14:$O$14,0)))*IF('Input|Step changes'!$E19="$millions",1000000,IF('Input|Step changes'!$E19="$000",1000,1))/IF($E61="$millions",1000000,IF($E61="$000",1000,1)) -> 0 | S61: ='Input|Step changes'!S19*IF('Input|Step changes'!$F19="nominal",LOOKUP($F61,Nominal_to_Real,'Input|Rate of change'!T$26:T$32),INDEX('Input|Rate of change'!$C$14:$O$22,MATCH('Input|Step changes'!$F19,'Input|Rate of change'!$C$14:$C$22,0),MATCH('Calc|Opex forecast'!$F61,'Input|Rate of change'!$C$14:$O$14,0)))*IF('Input|Step changes'!$E19="$millions",1000000,IF('Input|Step changes'!$E19="$000",1000,1))/IF($E61="$millions",1000000,IF($E61="$000",1000,1)) -> 0
C62: ='Input|Step changes'!C20 -> 0 | D62: Calculated | E62: $millions | F62: 2018-19 | J62: ='Input|Step changes'!J20*IF('Input|Step changes'!$F20="nominal",LOOKUP($F62,Nominal_to_Real,'Input|Rate of change'!K$26:K$32),INDEX('Input|Rate of change'!$C$14:$O$22,MATCH('Input|Step changes'!$F20,'Input|Rate of change'!$C$14:$C$22,0),MATCH('Calc|Opex forecast'!$F62,'Input|Rate of change'!$C$14:$O$14,0)))*IF('Input|Step changes'!$E20="$millions",1000000,IF('Input|Step changes'!$E20="$000",1000,1))/IF($E62="$millions",1000000,IF($E62="$000",1000,1)) -> 0 | K62: ='Input|Step changes'!K20*IF('Input|Step changes'!$F20="nominal",LOOKUP($F62,Nominal_to_Real,'Input|Rate of change'!L$26:L$32),INDEX('Input|Rate of change'!$C$14:$O$22,MATCH('Input|Step changes'!$F20,'Input|Rate of change'!$C$14:$C$22,0),MATCH('Calc|Opex forecast'!$F62,'Input|Rate of change'!$C$14:$O$14,0)))*IF('Input|Step changes'!$E20="$millions",1000000,IF('Input|Step changes'!$E20="$000",1000,1))/IF($E62="$millions",1000000,IF($E62="$000",1000,1)) -> 0 | L62: ='Input|Step changes'!L20*IF('Input|Step changes'!$F20="nominal",LOOKUP($F62,Nominal_to_Real,'Input|Rate of change'!M$26:M$32),INDEX('Input|Rate of change'!$C$14:$O$22,MATCH('Input|Step changes'!$F20,'Input|Rate of change'!$C$14:$C$22,0),MATCH('Calc|Opex forecast'!$F62,'Input|Rate of change'!$C$14:$O$14,0)))*IF('Input|Step changes'!$E20="$millions",1000000,IF('Input|Step changes'!$E20="$000",1000,1))/IF($E62="$millions",1000000,IF($E62="$000",1000,1)) -> 0 | M62: ='Input|Step changes'!M20*IF('Input|Step changes'!$F20="nominal",LOOKUP($F62,Nominal_to_Real,'Input|Rate of change'!N$26:N$32),INDEX('Input|Rate of change'!$C$14:$O$22,MATCH('Input|Step changes'!$F20,'Input|Rate of change'!$C$14:$C$22,0),MATCH('Calc|Opex forecast'!$F62,'Input|Rate of change'!$C$14:$O$14,0)))*IF('Input|Step changes'!$E20="$millions",1000000,IF('Input|Step changes'!$E20="$000",1000,1))/IF($E62="$millions",1000000,IF($E62="$000",1000,1)) -> 0 | N62: ='Input|Step changes'!N20*IF('Input|Step changes'!$F20="nominal",LOOKUP($F62,Nominal_to_Real,'Input|Rate of change'!O$26:O$32),INDEX('Input|Rate of change'!$C$14:$O$22,MATCH('Input|Step changes'!$F20,'Input|Rate of change'!$C$14:$C$22,0),MATCH('Calc|Opex forecast'!$F62,'Input|Rate of change'!$C$14:$O$14,0)))*IF('Input|Step changes'!$E20="$millions",1000000,IF('Input|Step changes'!$E20="$000",1000,1))/IF($E62="$millions",1000000,IF($E62="$000",1000,1)) -> 0 | O62: ='Input|Step changes'!O20*IF('Input|Step changes'!$F20="nominal",LOOKUP($F62,Nominal_to_Real,'Input|Rate of change'!P$26:P$32),INDEX('Input|Rate of change'!$C$14:$O$22,MATCH('Input|Step changes'!$F20,'Input|Rate of change'!$C$14:$C$22,0),MATCH('Calc|Opex forecast'!$F62,'Input|Rate of change'!$C$14:$O$14,0)))*IF('Input|Step changes'!$E20="$millions",1000000,IF('Input|Step changes'!$E20="$000",1000,1))/IF($E62="$millions",1000000,IF($E62="$000",1000,1)) -> 0 | P62: ='Input|Step changes'!P20*IF('Input|Step changes'!$F20="nominal",LOOKUP($F62,Nominal_to_Real,'Input|Rate of change'!Q$26:Q$32),INDEX('Input|Rate of change'!$C$14:$O$22,MATCH('Input|Step changes'!$F20,'Input|Rate of change'!$C$14:$C$22,0),MATCH('Calc|Opex forecast'!$F62,'Input|Rate of change'!$C$14:$O$14,0)))*IF('Input|Step changes'!$E20="$millions",1000000,IF('Input|Step changes'!$E20="$000",1000,1))/IF($E62="$millions",1000000,IF($E62="$000",1000,1)) -> 0 | Q62: ='Input|Step changes'!Q20*IF('Input|Step changes'!$F20="nominal",LOOKUP($F62,Nominal_to_Real,'Input|Rate of change'!R$26:R$32),INDEX('Input|Rate of change'!$C$14:$O$22,MATCH('Input|Step changes'!$F20,'Input|Rate of change'!$C$14:$C$22,0),MATCH('Calc|Opex forecast'!$F62,'Input|Rate of change'!$C$14:$O$14,0)))*IF('Input|Step changes'!$E20="$millions",1000000,IF('Input|Step changes'!$E20="$000",1000,1))/IF($E62="$millions",1000000,IF($E62="$000",1000,1)) -> 0 | R62: ='Input|Step changes'!R20*IF('Input|Step changes'!$F20="nominal",LOOKUP($F62,Nominal_to_Real,'Input|Rate of change'!S$26:S$32),INDEX('Input|Rate of change'!$C$14:$O$22,MATCH('Input|Step changes'!$F20,'Input|Rate of change'!$C$14:$C$22,0),MATCH('Calc|Opex forecast'!$F62,'Input|Rate of change'!$C$14:$O$14,0)))*IF('Input|Step changes'!$E20="$millions",1000000,IF('Input|Step changes'!$E20="$000",1000,1))/IF($E62="$millions",1000000,IF($E62="$000",1000,1)) -> 0 | S62: ='Input|Step changes'!S20*IF('Input|Step changes'!$F20="nominal",LOOKUP($F62,Nominal_to_Real,'Input|Rate of change'!T$26:T$32),INDEX('Input|Rate of change'!$C$14:$O$22,MATCH('Input|Step changes'!$F20,'Input|Rate of change'!$C$14:$C$22,0),MATCH('Calc|Opex forecast'!$F62,'Input|Rate of change'!$C$14:$O$14,0)))*IF('Input|Step changes'!$E20="$millions",1000000,IF('Input|Step changes'!$E20="$000",1000,1))/IF($E62="$millions",1000000,IF($E62="$000",1000,1)) -> 0
C63: ='Input|Step changes'!C21 -> 0 | D63: Calculated | E63: $millions | F63: 2018-19 | J63: ='Input|Step changes'!J21*IF('Input|Step changes'!$F21="nominal",LOOKUP($F63,Nominal_to_Real,'Input|Rate of change'!K$26:K$32),INDEX('Input|Rate of change'!$C$14:$O$22,MATCH('Input|Step changes'!$F21,'Input|Rate of change'!$C$14:$C$22,0),MATCH('Calc|Opex forecast'!$F63,'Input|Rate of change'!$C$14:$O$14,0)))*IF('Input|Step changes'!$E21="$millions",1000000,IF('Input|Step changes'!$E21="$000",1000,1))/IF($E63="$millions",1000000,IF($E63="$000",1000,1)) -> 0 | K63: ='Input|Step changes'!K21*IF('Input|Step changes'!$F21="nominal",LOOKUP($F63,Nominal_to_Real,'Input|Rate of change'!L$26:L$32),INDEX('Input|Rate of change'!$C$14:$O$22,MATCH('Input|Step changes'!$F21,'Input|Rate of change'!$C$14:$C$22,0),MATCH('Calc|Opex forecast'!$F63,'Input|Rate of change'!$C$14:$O$14,0)))*IF('Input|Step changes'!$E21="$millions",1000000,IF('Input|Step changes'!$E21="$000",1000,1))/IF($E63="$millions",1000000,IF($E63="$000",1000,1)) -> 0 | L63: ='Input|Step changes'!L21*IF('Input|Step changes'!$F21="nominal",LOOKUP($F63,Nominal_to_Real,'Input|Rate of change'!M$26:M$32),INDEX('Input|Rate of change'!$C$14:$O$22,MATCH('Input|Step changes'!$F21,'Input|Rate of change'!$C$14:$C$22,0),MATCH('Calc|Opex forecast'!$F63,'Input|Rate of change'!$C$14:$O$14,0)))*IF('Input|Step changes'!$E21="$millions",1000000,IF('Input|Step changes'!$E21="$000",1000,1))/IF($E63="$millions",1000000,IF($E63="$000",1000,1)) -> 0 | M63: ='Input|Step changes'!M21*IF('Input|Step changes'!$F21="nominal",LOOKUP($F63,Nominal_to_Real,'Input|Rate of change'!N$26:N$32),INDEX('Input|Rate of change'!$C$14:$O$22,MATCH('Input|Step changes'!$F21,'Input|Rate of change'!$C$14:$C$22,0),MATCH('Calc|Opex forecast'!$F63,'Input|Rate of change'!$C$14:$O$14,0)))*IF('Input|Step changes'!$E21="$millions",1000000,IF('Input|Step changes'!$E21="$000",1000,1))/IF($E63="$millions",1000000,IF($E63="$000",1000,1)) -> 0 | N63: ='Input|Step changes'!N21*IF('Input|Step changes'!$F21="nominal",LOOKUP($F63,Nominal_to_Real,'Input|Rate of change'!O$26:O$32),INDEX('Input|Rate of change'!$C$14:$O$22,MATCH('Input|Step changes'!$F21,'Input|Rate of change'!$C$14:$C$22,0),MATCH('Calc|Opex forecast'!$F63,'Input|Rate of change'!$C$14:$O$14,0)))*IF('Input|Step changes'!$E21="$millions",1000000,IF('Input|Step changes'!$E21="$000",1000,1))/IF($E63="$millions",1000000,IF($E63="$000",1000,1)) -> 0 | O63: ='Input|Step changes'!O21*IF('Input|Step changes'!$F21="nominal",LOOKUP($F63,Nominal_to_Real,'Input|Rate of change'!P$26:P$32),INDEX('Input|Rate of change'!$C$14:$O$22,MATCH('Input|Step changes'!$F21,'Input|Rate of change'!$C$14:$C$22,0),MATCH('Calc|Opex forecast'!$F63,'Input|Rate of change'!$C$14:$O$14,0)))*IF('Input|Step changes'!$E21="$millions",1000000,IF('Input|Step changes'!$E21="$000",1000,1))/IF($E63="$millions",1000000,IF($E63="$000",1000,1)) -> 0 | P63: ='Input|Step changes'!P21*IF('Input|Step changes'!$F21="nominal",LOOKUP($F63,Nominal_to_Real,'Input|Rate of change'!Q$26:Q$32),INDEX('Input|Rate of change'!$C$14:$O$22,MATCH('Input|Step changes'!$F21,'Input|Rate of change'!$C$14:$C$22,0),MATCH('Calc|Opex forecast'!$F63,'Input|Rate of change'!$C$14:$O$14,0)))*IF('Input|Step changes'!$E21="$millions",1000000,IF('Input|Step changes'!$E21="$000",1000,1))/IF($E63="$millions",1000000,IF($E63="$000",1000,1)) -> 0 | Q63: ='Input|Step changes'!Q21*IF('Input|Step changes'!$F21="nominal",LOOKUP($F63,Nominal_to_Real,'Input|Rate of change'!R$26:R$32),INDEX('Input|Rate of change'!$C$14:$O$22,MATCH('Input|Step changes'!$F21,'Input|Rate of change'!$C$14:$C$22,0),MATCH('Calc|Opex forecast'!$F63,'Input|Rate of change'!$C$14:$O$14,0)))*IF('Input|Step changes'!$E21="$millions",1000000,IF('Input|Step changes'!$E21="$000",1000,1))/IF($E63="$millions",1000000,IF($E63="$000",1000,1)) -> 0 | R63: ='Input|Step changes'!R21*IF('Input|Step changes'!$F21="nominal",LOOKUP($F63,Nominal_to_Real,'Input|Rate of change'!S$26:S$32),INDEX('Input|Rate of change'!$C$14:$O$22,MATCH('Input|Step changes'!$F21,'Input|Rate of change'!$C$14:$C$22,0),MATCH('Calc|Opex forecast'!$F63,'Input|Rate of change'!$C$14:$O$14,0)))*IF('Input|Step changes'!$E21="$millions",1000000,IF('Input|Step changes'!$E21="$000",1000,1))/IF($E63="$millions",1000000,IF($E63="$000",1000,1)) -> 0 | S63: ='Input|Step changes'!S21*IF('Input|Step changes'!$F21="nominal",LOOKUP($F63,Nominal_to_Real,'Input|Rate of change'!T$26:T$32),INDEX('Input|Rate of change'!$C$14:$O$22,MATCH('Input|Step changes'!$F21,'Input|Rate of change'!$C$14:$C$22,0),MATCH('Calc|Opex forecast'!$F63,'Input|Rate of change'!$C$14:$O$14,0)))*IF('Input|Step changes'!$E21="$millions",1000000,IF('Input|Step changes'!$E21="$000",1000,1))/IF($E63="$millions",1000000,IF($E63="$000",1000,1)) -> 0
C64: ='Input|Step changes'!C22 -> 0 | D64: Calculated | E64: $millions | F64: 2018-19 | J64: ='Input|Step changes'!J22*IF('Input|Step changes'!$F22="nominal",LOOKUP($F64,Nominal_to_Real,'Input|Rate of change'!K$26:K$32),INDEX('Input|Rate of change'!$C$14:$O$22,MATCH('Input|Step changes'!$F22,'Input|Rate of change'!$C$14:$C$22,0),MATCH('Calc|Opex forecast'!$F64,'Input|Rate of change'!$C$14:$O$14,0)))*IF('Input|Step changes'!$E22="$millions",1000000,IF('Input|Step changes'!$E22="$000",1000,1))/IF($E64="$millions",1000000,IF($E64="$000",1000,1)) -> 0 | K64: ='Input|Step changes'!K22*IF('Input|Step changes'!$F22="nominal",LOOKUP($F64,Nominal_to_Real,'Input|Rate of change'!L$26:L$32),INDEX('Input|Rate of change'!$C$14:$O$22,MATCH('Input|Step changes'!$F22,'Input|Rate of change'!$C$14:$C$22,0),MATCH('Calc|Opex forecast'!$F64,'Input|Rate of change'!$C$14:$O$14,0)))*IF('Input|Step changes'!$E22="$millions",1000000,IF('Input|Step changes'!$E22="$000",1000,1))/IF($E64="$millions",1000000,IF($E64="$000",1000,1)) -> 0 | L64: ='Input|Step changes'!L22*IF('Input|Step changes'!$F22="nominal",LOOKUP($F64,Nominal_to_Real,'Input|Rate of change'!M$26:M$32),INDEX('Input|Rate of change'!$C$14:$O$22,MATCH('Input|Step changes'!$F22,'Input|Rate of change'!$C$14:$C$22,0),MATCH('Calc|Opex forecast'!$F64,'Input|Rate of change'!$C$14:$O$14,0)))*IF('Input|Step changes'!$E22="$millions",1000000,IF('Input|Step changes'!$E22="$000",1000,1))/IF($E64="$millions",1000000,IF($E64="$000",1000,1)) -> 0 | M64: ='Input|Step changes'!M22*IF('Input|Step changes'!$F22="nominal",LOOKUP($F64,Nominal_to_Real,'Input|Rate of change'!N$26:N$32),INDEX('Input|Rate of change'!$C$14:$O$22,MATCH('Input|Step changes'!$F22,'Input|Rate of change'!$C$14:$C$22,0),MATCH('Calc|Opex forecast'!$F64,'Input|Rate of change'!$C$14:$O$14,0)))*IF('Input|Step changes'!$E22="$millions",1000000,IF('Input|Step changes'!$E22="$000",1000,1))/IF($E64="$millions",1000000,IF($E64="$000",1000,1)) -> 0 | N64: ='Input|Step changes'!N22*IF('Input|Step changes'!$F22="nominal",LOOKUP($F64,Nominal_to_Real,'Input|Rate of change'!O$26:O$32),INDEX('Input|Rate of change'!$C$14:$O$22,MATCH('Input|Step changes'!$F22,'Input|Rate of change'!$C$14:$C$22,0),MATCH('Calc|Opex forecast'!$F64,'Input|Rate of change'!$C$14:$O$14,0)))*IF('Input|Step changes'!$E22="$millions",1000000,IF('Input|Step changes'!$E22="$000",1000,1))/IF($E64="$millions",1000000,IF($E64="$000",1000,1)) -> 0 | O64: ='Input|Step changes'!O22*IF('Input|Step changes'!$F22="nominal",LOOKUP($F64,Nominal_to_Real,'Input|Rate of change'!P$26:P$32),INDEX('Input|Rate of change'!$C$14:$O$22,MATCH('Input|Step changes'!$F22,'Input|Rate of change'!$C$14:$C$22,0),MATCH('Calc|Opex forecast'!$F64,'Input|Rate of change'!$C$14:$O$14,0)))*IF('Input|Step changes'!$E22="$millions",1000000,IF('Input|Step changes'!$E22="$000",1000,1))/IF($E64="$millions",1000000,IF($E64="$000",1000,1)) -> 0 | P64: ='Input|Step changes'!P22*IF('Input|Step changes'!$F22="nominal",LOOKUP($F64,Nominal_to_Real,'Input|Rate of change'!Q$26:Q$32),INDEX('Input|Rate of change'!$C$14:$O$22,MATCH('Input|Step changes'!$F22,'Input|Rate of change'!$C$14:$C$22,0),MATCH('Calc|Opex forecast'!$F64,'Input|Rate of change'!$C$14:$O$14,0)))*IF('Input|Step changes'!$E22="$millions",1000000,IF('Input|Step changes'!$E22="$000",1000,1))/IF($E64="$millions",1000000,IF($E64="$000",1000,1)) -> 0 | Q64: ='Input|Step changes'!Q22*IF('Input|Step changes'!$F22="nominal",LOOKUP($F64,Nominal_to_Real,'Input|Rate of change'!R$26:R$32),INDEX('Input|Rate of change'!$C$14:$O$22,MATCH('Input|Step changes'!$F22,'Input|Rate of change'!$C$14:$C$22,0),MATCH('Calc|Opex forecast'!$F64,'Input|Rate of change'!$C$14:$O$14,0)))*IF('Input|Step changes'!$E22="$millions",1000000,IF('Input|Step changes'!$E22="$000",1000,1))/IF($E64="$millions",1000000,IF($E64="$000",1000,1)) -> 0 | R64: ='Input|Step changes'!R22*IF('Input|Step changes'!$F22="nominal",LOOKUP($F64,Nominal_to_Real,'Input|Rate of change'!S$26:S$32),INDEX('Input|Rate of change'!$C$14:$O$22,MATCH('Input|Step changes'!$F22,'Input|Rate of change'!$C$14:$C$22,0),MATCH('Calc|Opex forecast'!$F64,'Input|Rate of change'!$C$14:$O$14,0)))*IF('Input|Step changes'!$E22="$millions",1000000,IF('Input|Step changes'!$E22="$000",1000,1))/IF($E64="$millions",1000000,IF($E64="$000",1000,1)) -> 0 | S64: ='Input|Step changes'!S22*IF('Input|Step changes'!$F22="nominal",LOOKUP($F64,Nominal_to_Real,'Input|Rate of change'!T$26:T$32),INDEX('Input|Rate of change'!$C$14:$O$22,MATCH('Input|Step changes'!$F22,'Input|Rate of change'!$C$14:$C$22,0),MATCH('Calc|Opex forecast'!$F64,'Input|Rate of change'!$C$14:$O$14,0)))*IF('Input|Step changes'!$E22="$millions",1000000,IF('Input|Step changes'!$E22="$000",1000,1))/IF($E64="$millions",1000000,IF($E64="$000",1000,1)) -> 0
C65: ='Input|Step changes'!C23 -> 0 | D65: Calculated | E65: $millions | F65: 2018-19 | J65: ='Input|Step changes'!J23*IF('Input|Step changes'!$F23="nominal",LOOKUP($F65,Nominal_to_Real,'Input|Rate of change'!K$26:K$32),INDEX('Input|Rate of change'!$C$14:$O$22,MATCH('Input|Step changes'!$F23,'Input|Rate of change'!$C$14:$C$22,0),MATCH('Calc|Opex forecast'!$F65,'Input|Rate of change'!$C$14:$O$14,0)))*IF('Input|Step changes'!$E23="$millions",1000000,IF('Input|Step changes'!$E23="$000",1000,1))/IF($E65="$millions",1000000,IF($E65="$000",1000,1)) -> 0 | K65: ='Input|Step changes'!K23*IF('Input|Step changes'!$F23="nominal",LOOKUP($F65,Nominal_to_Real,'Input|Rate of change'!L$26:L$32),INDEX('Input|Rate of change'!$C$14:$O$22,MATCH('Input|Step changes'!$F23,'Input|Rate of change'!$C$14:$C$22,0),MATCH('Calc|Opex forecast'!$F65,'Input|Rate of change'!$C$14:$O$14,0)))*IF('Input|Step changes'!$E23="$millions",1000000,IF('Input|Step changes'!$E23="$000",1000,1))/IF($E65="$millions",1000000,IF($E65="$000",1000,1)) -> 0 | L65: ='Input|Step changes'!L23*IF('Input|Step changes'!$F23="nominal",LOOKUP($F65,Nominal_to_Real,'Input|Rate of change'!M$26:M$32),INDEX('Input|Rate of change'!$C$14:$O$22,MATCH('Input|Step changes'!$F23,'Input|Rate of change'!$C$14:$C$22,0),MATCH('Calc|Opex forecast'!$F65,'Input|Rate of change'!$C$14:$O$14,0)))*IF('Input|Step changes'!$E23="$millions",1000000,IF('Input|Step changes'!$E23="$000",1000,1))/IF($E65="$millions",1000000,IF($E65="$000",1000,1)) -> 0 | M65: ='Input|Step changes'!M23*IF('Input|Step changes'!$F23="nominal",LOOKUP($F65,Nominal_to_Real,'Input|Rate of change'!N$26:N$32),INDEX('Input|Rate of change'!$C$14:$O$22,MATCH('Input|Step changes'!$F23,'Input|Rate of change'!$C$14:$C$22,0),MATCH('Calc|Opex forecast'!$F65,'Input|Rate of change'!$C$14:$O$14,0)))*IF('Input|Step changes'!$E23="$millions",1000000,IF('Input|Step changes'!$E23="$000",1000,1))/IF($E65="$millions",1000000,IF($E65="$000",1000,1)) -> 0 | N65: ='Input|Step changes'!N23*IF('Input|Step changes'!$F23="nominal",LOOKUP($F65,Nominal_to_Real,'Input|Rate of change'!O$26:O$32),INDEX('Input|Rate of change'!$C$14:$O$22,MATCH('Input|Step changes'!$F23,'Input|Rate of change'!$C$14:$C$22,0),MATCH('Calc|Opex forecast'!$F65,'Input|Rate of change'!$C$14:$O$14,0)))*IF('Input|Step changes'!$E23="$millions",1000000,IF('Input|Step changes'!$E23="$000",1000,1))/IF($E65="$millions",1000000,IF($E65="$000",1000,1)) -> 0 | O65: ='Input|Step changes'!O23*IF('Input|Step changes'!$F23="nominal",LOOKUP($F65,Nominal_to_Real,'Input|Rate of change'!P$26:P$32),INDEX('Input|Rate of change'!$C$14:$O$22,MATCH('Input|Step changes'!$F23,'Input|Rate of change'!$C$14:$C$22,0),MATCH('Calc|Opex forecast'!$F65,'Input|Rate of change'!$C$14:$O$14,0)))*IF('Input|Step changes'!$E23="$millions",1000000,IF('Input|Step changes'!$E23="$000",1000,1))/IF($E65="$millions",1000000,IF($E65="$000",1000,1)) -> 0 | P65: ='Input|Step changes'!P23*IF('Input|Step changes'!$F23="nominal",LOOKUP($F65,Nominal_to_Real,'Input|Rate of change'!Q$26:Q$32),INDEX('Input|Rate of change'!$C$14:$O$22,MATCH('Input|Step changes'!$F23,'Input|Rate of change'!$C$14:$C$22,0),MATCH('Calc|Opex forecast'!$F65,'Input|Rate of change'!$C$14:$O$14,0)))*IF('Input|Step changes'!$E23="$millions",1000000,IF('Input|Step changes'!$E23="$000",1000,1))/IF($E65="$millions",1000000,IF($E65="$000",1000,1)) -> 0 | Q65: ='Input|Step changes'!Q23*IF('Input|Step changes'!$F23="nominal",LOOKUP($F65,Nominal_to_Real,'Input|Rate of change'!R$26:R$32),INDEX('Input|Rate of change'!$C$14:$O$22,MATCH('Input|Step changes'!$F23,'Input|Rate of change'!$C$14:$C$22,0),MATCH('Calc|Opex forecast'!$F65,'Input|Rate of change'!$C$14:$O$14,0)))*IF('Input|Step changes'!$E23="$millions",1000000,IF('Input|Step changes'!$E23="$000",1000,1))/IF($E65="$millions",1000000,IF($E65="$000",1000,1)) -> 0 | R65: ='Input|Step changes'!R23*IF('Input|Step changes'!$F23="nominal",LOOKUP($F65,Nominal_to_Real,'Input|Rate of change'!S$26:S$32),INDEX('Input|Rate of change'!$C$14:$O$22,MATCH('Input|Step changes'!$F23,'Input|Rate of change'!$C$14:$C$22,0),MATCH('Calc|Opex forecast'!$F65,'Input|Rate of change'!$C$14:$O$14,0)))*IF('Input|Step changes'!$E23="$millions",1000000,IF('Input|Step changes'!$E23="$000",1000,1))/IF($E65="$millions",1000000,IF($E65="$000",1000,1)) -> 0 | S65: ='Input|Step changes'!S23*IF('Input|Step changes'!$F23="nominal",LOOKUP($F65,Nominal_to_Real,'Input|Rate of change'!T$26:T$32),INDEX('Input|Rate of change'!$C$14:$O$22,MATCH('Input|Step changes'!$F23,'Input|Rate of change'!$C$14:$C$22,0),MATCH('Calc|Opex forecast'!$F65,'Input|Rate of change'!$C$14:$O$14,0)))*IF('Input|Step changes'!$E23="$millions",1000000,IF('Input|Step changes'!$E23="$000",1000,1))/IF($E65="$millions",1000000,IF($E65="$000",1000,1)) -> 0
C67: Total step changes | D67: Calculated | E67: =$E$8 -> $millions | F67: =$F$8 -> 2018-19 | J67: =SUM(J54:J66) -> 0 | K67: =SUM(K54:K66) -> 0 | L67: 0 | M67: 0 | N67: 0 | O67: =SUM(O54:O66) -> 5.179955594 | P67: 5.179955594 | Q67: 6.515502113 | R67: 6.557201327 | S67: 5.691942646
B69: Calc | Total forecast operating expenditure
J71: =IF(RIGHT(J$4,2)>=RIGHT('Input|General'!$G$9,2),IF(RIGHT(J$4,2)<=RIGHT('Input|General'!$G$12,2),J$4,""),"") ->  | K71: =IF(RIGHT(K$4,2)>=RIGHT('Input|General'!$G$9,2),IF(RIGHT(K$4,2)<=RIGHT('Input|General'!$G$12,2),K$4,""),"") ->  | L71: =IF(RIGHT(L$4,2)>=RIGHT('Input|General'!$G$9,2),IF(RIGHT(L$4,2)<=RIGHT('Input|General'!$G$12,2),L$4,""),"") ->  | M71: =IF(RIGHT(M$4,2)>=RIGHT('Input|General'!$G$9,2),IF(RIGHT(M$4,2)<=RIGHT('Input|General'!$G$12,2),M$4,""),"") -> 2017-18 | N71: =IF(RIGHT(N$4,2)>=RIGHT('Input|General'!$G$9,2),IF(RIGHT(N$4,2)<=RIGHT('Input|General'!$G$12,2),N$4,""),"") -> 2018-19 | O71: =IF(RIGHT(O$4,2)>=RIGHT('Input|General'!$G$9,2),IF(RIGHT(O$4,2)<=RIGHT('Input|General'!$G$12,2),O$4,""),"") -> 2019-20 | P71: =IF(RIGHT(P$4,2)>=RIGHT('Input|General'!$G$9,2),IF(RIGHT(P$4,2)<=RIGHT('Input|General'!$G$12,2),P$4,""),"") -> 2020-21 | Q71: =IF(RIGHT(Q$4,2)>=RIGHT('Input|General'!$G$9,2),IF(RIGHT(Q$4,2)<=RIGHT('Input|General'!$G$12,2),Q$4,""),"") -> 2021-22 | R71: =IF(RIGHT(R$4,2)>=RIGHT('Input|General'!$G$9,2),IF(RIGHT(R$4,2)<=RIGHT('Input|General'!$G$12,2),R$4,""),"") -> 2022-23 | S71: =IF(RIGHT(S$4,2)>=RIGHT('Input|General'!$G$9,2),IF(RIGHT(S$4,2)<=RIGHT('Input|General'!$G$12,2),S$4,""),"") -> 2023-24
C73: Total forecast opex, excluding debt raising costs | D73: Calculated | E73: =$E$8 -> $millions | F73: =$F$8 -> 2018-19 | J73: =J13 -> 0 | K73: 0 | L73: 0 | M73: =M13 -> 440.2036575 | N73: =N35 -> 452.2321713 | O73: =IF(RIGHT(O$4,2)>=RIGHT('Input|General'!$G$11,2),IF(RIGHT(O$4,2)<=RIGHT('Input|General'!$G$12,2),IF(ISBLANK(O71),"",PRODUCT(1+$J48:O48)*SUM($J35:$S35)+O67),""),"") -> 463.1758964 | P73: =IF(RIGHT(P$4,2)>=RIGHT('Input|General'!$G$11,2),IF(RIGHT(P$4,2)<=RIGHT('Input|General'!$G$12,2),IF(ISBLANK(P71),"",PRODUCT(1+$J48:P48)*SUM($J35:$S35)+P67),""),"") -> 470.835752 | Q73: =IF(RIGHT(Q$4,2)>=RIGHT('Input|General'!$G$11,2),IF(RIGHT(Q$4,2)<=RIGHT('Input|General'!$G$12,2),IF(ISBLANK(Q71),"",PRODUCT(1+$J48:Q48)*SUM($J35:$S35)+Q67),""),"") -> 481.014219 | R73: =IF(RIGHT(R$4,2)>=RIGHT('Input|General'!$G$11,2),IF(RIGHT(R$4,2)<=RIGHT('Input|General'!$G$12,2),IF(ISBLANK(R71),"",PRODUCT(1+$J48:R48)*SUM($J35:$S35)+R67),""),"") -> 490.0105831 | S73: =IF(RIGHT(S$4,2)>=RIGHT('Input|General'!$G$11,2),IF(RIGHT(S$4,2)<=RIGHT('Input|General'!$G$12,2),IF(ISBLANK(S71),"",PRODUCT(1+$J48:S48)*SUM($J35:$S35)+S67),""),"") -> 497.2902101
C75: Total forecast opex, ex DRC, distribution | D75: Calculated | E75: =$E$8 -> $millions | F75: =$F$8 -> 2018-19 | O75: =O$73*'Input|Dx Tx split'!O12 -> 427.5241246 | P75: =P$73*'Input|Dx Tx split'!P12 -> 434.5943826 | Q75: =Q$73*'Input|Dx Tx split'!Q12 -> 443.9893883 | R75: =R$73*'Input|Dx Tx split'!R12 -> 452.2932805 | S75: =S$73*'Input|Dx Tx split'!S12 -> 459.0125769
C76: Total forecast opex, ex, DRC, transmission | D76: Calculated | E76: =$E$8 -> $millions | F76: =$F$8 -> 2018-19 | O76: =O$73*'Input|Dx Tx split'!O13 -> 35.65177174 | P76: =P$73*'Input|Dx Tx split'!P13 -> 36.2413694 | Q76: =Q$73*'Input|Dx Tx split'!Q13 -> 37.02483068 | R76: =R$73*'Input|Dx Tx split'!R13 -> 37.71730264 | S76: =S$73*'Input|Dx Tx split'!S13 -> 38.27763318
C78: Total forecast opex, including debt raising costs | D78: Calculated | E78: =$E$8 -> $millions | F78: =$F$8 -> 2018-19 | O78: =O73+'Input|Step changes'!O29+'Input|Step changes'!O30 -> 471.0796353 | P78: =P73+'Input|Step changes'!P29+'Input|Step changes'!P30 -> 478.8537987 | Q78: =Q73+'Input|Step changes'!Q29+'Input|Step changes'!Q30 -> 489.0829974 | R78: =R73+'Input|Step changes'!R29+'Input|Step changes'!R30 -> 498.1092512 | S78: =S73+'Input|Step changes'!S29+'Input|Step changes'!S30 -> 505.4051806
C80: Total forecast opex, incl DRC, distribution | D80: Calculated | E80: =$E$8 -> $millions | F80: =$F$8 -> 2018-19 | O80: =O75+'Input|Step changes'!O29 -> 434.4645673 | P80: =P75+'Input|Step changes'!P29 -> 441.6368337 | Q80: =Q75+'Input|Step changes'!Q29 -> 451.0810831 | R80: =R75+'Input|Step changes'!R29 -> 459.4062742 | S80: =S75+'Input|Step changes'!S29 -> 466.1244926
C81: Total forecast opex, incl DRC, transmission | D81: Calculated | E81: =$E$8 -> $millions | F81: =$F$8 -> 2018-19 | O81: =O76+'Input|Step changes'!O30 -> 36.61506801 | P81: =P76+'Input|Step changes'!P30 -> 37.21696501 | Q81: =Q76+'Input|Step changes'!Q30 -> 38.00191432 | R81: =R76+'Input|Step changes'!R30 -> 38.70297701 | S81: =S76+'Input|Step changes'!S30 -> 39.28068801
B83: End

Sheet Output|Models
B1: =Index!$B$1 -> AER opex model | J1: Back to Index | L1: Key: | M1: Input | N1: External Link | O1: Internal Link | R1: Worksheet check: | S1: =IF(COUNTA($W$9:$XFD$17)=COUNTIF($W$9:$W$17,"OK"),"OK","Check") -> OK | U1: Overall Check: | V1: ='Check|List'!$S$1 -> Ok
B2: =Index!$C$14 -> Output | Models
D4: Source | E4: Unit | F4: Basis | J4: ='Input|General'!$G$8 -> 2014-15 | K4: =IF(OFFSET('Lookup|Tables'!$G$28:$G$43,MATCH('Input|General'!$G$8,'Lookup|Tables'!$G$28:$G$42,0)+1,0,1,1)<='Input|General'!$G$12,OFFSET('Lookup|Tables'!$G$28:$G$43,1,0,1,1),"") -> 2015-16 | L4: =IF(OFFSET('Lookup|Tables'!$G$28:$G$43,MATCH('Input|General'!$G$8,'Lookup|Tables'!$G$28:$G$42,0)+1,0,1,1)<='Input|General'!$G$12,OFFSET('Lookup|Tables'!$G$28:$G$43,MATCH('Input|General'!$G$8,'Lookup|Tables'!$G$28:$G$42,0)+1,0,1,1),"") -> 2016-17 | M4: =IF(OFFSET('Lookup|Tables'!$G$28:$G$43,MATCH('Input|General'!$G$8,'Lookup|Tables'!$G$28:$G$42,0)+2,0,1,1)<='Input|General'!$G$12,OFFSET('Lookup|Tables'!$G$28:$G$43,MATCH('Input|General'!$G$8,'Lookup|Tables'!$G$28:$G$42,0)+2,0,1,1),"") -> 2017-18 | N4: =IF(OFFSET('Lookup|Tables'!$G$28:$G$43,MATCH('Input|General'!$G$8,'Lookup|Tables'!$G$28:$G$42,0)+3,0,1,1)<='Input|General'!$G$12,OFFSET('Lookup|Tables'!$G$28:$G$43,MATCH('Input|General'!$G$8,'Lookup|Tables'!$G$28:$G$42,0)+3,0,1,1),"") -> 2018-19 | O4: =IF(OFFSET('Lookup|Tables'!$G$28:$G$43,MATCH('Input|General'!$G$8,'Lookup|Tables'!$G$28:$G$42,0)+4,0,1,1)<='Input|General'!$G$12,OFFSET('Lookup|Tables'!$G$28:$G$43,MATCH('Input|General'!$G$8,'Lookup|Tables'!$G$28:$G$42,0)+4,0,1,1),"") -> 2019-20 | P4: =IF(OFFSET('Lookup|Tables'!$G$28:$G$43,MATCH('Input|General'!$G$8,'Lookup|Tables'!$G$28:$G$42,0)+5,0,1,1)<='Input|General'!$G$12,OFFSET('Lookup|Tables'!$G$28:$G$43,MATCH('Input|General'!$G$8,'Lookup|Tables'!$G$28:$G$42,0)+5,0,1,1),"") -> 2020-21 | Q4: =IF(OFFSET('Lookup|Tables'!$G$28:$G$43,MATCH('Input|General'!$G$8,'Lookup|Tables'!$G$28:$G$42,0)+6,0,1,1)<='Input|General'!$G$12,OFFSET('Lookup|Tables'!$G$28:$G$43,MATCH('Input|General'!$G$8,'Lookup|Tables'!$G$28:$G$42,0)+6,0,1,1),"") -> 2021-22 | R4: =IF(OFFSET('Lookup|Tables'!$G$28:$G$43,MATCH('Input|General'!$G$8,'Lookup|Tables'!$G$28:$G$42,0)+7,0,1,1)<='Input|General'!$G$12,OFFSET('Lookup|Tables'!$G$28:$G$43,MATCH('Input|General'!$G$8,'Lookup|Tables'!$G$28:$G$42,0)+7,0,1,1),"") -> 2022-23 | S4: =IF(OFFSET('Lookup|Tables'!$G$28:$G$43,MATCH('Input|General'!$G$8,'Lookup|Tables'!$G$28:$G$42,0)+8,0,1,1)<='Input|General'!$G$12,OFFSET('Lookup|Tables'!$G$28:$G$43,MATCH('Input|General'!$G$8,'Lookup|Tables'!$G$28:$G$42,0)+8,0,1,1),"") -> 2023-24
B8: Inputs for Post Tax Revenue Model | E8: $millions | F8: 2018-19 | J8: Note. The dollar base should be consistent with the post tax revenue model
C11: Forecast operating expenditure (excl. DRC) | D11: Source | E11: Unit | F11: Basis | J11: =IF(RIGHT(J$4,2)>=RIGHT('Input|General'!$G$11,2),IF(RIGHT(J$4,2)<=RIGHT('Input|General'!$G$12,2),J$4,""),"") ->  | K11: =IF(RIGHT(K$4,2)>=RIGHT('Input|General'!$G$11,2),IF(RIGHT(K$4,2)<=RIGHT('Input|General'!$G$12,2),K$4,""),"") ->  | L11: =IF(RIGHT(L$4,2)>=RIGHT('Input|General'!$G$11,2),IF(RIGHT(L$4,2)<=RIGHT('Input|General'!$G$12,2),L$4,""),"") ->  | M11: =IF(RIGHT(M$4,2)>=RIGHT('Input|General'!$G$11,2),IF(RIGHT(M$4,2)<=RIGHT('Input|General'!$G$12,2),M$4,""),"") ->  | N11: =IF(RIGHT(N$4,2)>=RIGHT('Input|General'!$G$11,2),IF(RIGHT(N$4,2)<=RIGHT('Input|General'!$G$12,2),N$4,""),"") ->  | O11: =IF(RIGHT(O$4,2)>=RIGHT('Input|General'!$G$11,2),IF(RIGHT(O$4,2)<=RIGHT('Input|General'!$G$12,2),O$4,""),"") -> 2019-20 | P11: =IF(RIGHT(P$4,2)>=RIGHT('Input|General'!$G$11,2),IF(RIGHT(P$4,2)<=RIGHT('Input|General'!$G$12,2),P$4,""),"") -> 2020-21 | Q11: =IF(RIGHT(Q$4,2)>=RIGHT('Input|General'!$G$11,2),IF(RIGHT(Q$4,2)<=RIGHT('Input|General'!$G$12,2),Q$4,""),"") -> 2021-22 | R11: =IF(RIGHT(R$4,2)>=RIGHT('Input|General'!$G$11,2),IF(RIGHT(R$4,2)<=RIGHT('Input|General'!$G$12,2),R$4,""),"") -> 2022-23 | S11: =IF(RIGHT(S$4,2)>=RIGHT('Input|General'!$G$11,2),IF(RIGHT(S$4,2)<=RIGHT('Input|General'!$G$12,2),S$4,""),"") -> 2023-24 | U11: Notes
C12: Distribution | D12: Calc | Opex forecast | E12: =$E$8 -> $millions | F12: =$F$8 -> 2018-19 | J12: =IF(J11="",0,'Calc|Opex forecast'!J75*IF('Calc|Opex forecast'!$F$75="nominal",LOOKUP($F12,Nominal_to_Real,'Input|Rate of change'!K$26:K$32),INDEX('Input|Rate of change'!$C$14:$O$22,MATCH('Calc|Opex forecast'!$F$75,'Input|Rate of change'!$C$14:$C$22,0),MATCH('Output|Models'!$F12,'Input|Rate of change'!$C$14:$O$14,0)))*IF('Calc|Opex forecast'!$E$75="$millions",1000000,IF($E$12="$000",1000,1))/IF($E12="$millions",1000000,IF($E12="$000",1000,1))) -> 0 | K12: =IF(K11="",0,'Calc|Opex forecast'!K75*IF('Calc|Opex forecast'!$F$75="nominal",LOOKUP($F12,Nominal_to_Real,'Input|Rate of change'!L$26:L$32),INDEX('Input|Rate of change'!$C$14:$O$22,MATCH('Calc|Opex forecast'!$F$75,'Input|Rate of change'!$C$14:$C$22,0),MATCH('Output|Models'!$F12,'Input|Rate of change'!$C$14:$O$14,0)))*IF('Calc|Opex forecast'!$E$75="$millions",1000000,IF($E$12="$000",1000,1))/IF($E12="$millions",1000000,IF($E12="$000",1000,1))) -> 0 | L12: =IF(L11="",0,'Calc|Opex forecast'!L75*IF('Calc|Opex forecast'!$F$75="nominal",LOOKUP($F12,Nominal_to_Real,'Input|Rate of change'!M$26:M$32),INDEX('Input|Rate of change'!$C$14:$O$22,MATCH('Calc|Opex forecast'!$F$75,'Input|Rate of change'!$C$14:$C$22,0),MATCH('Output|Models'!$F12,'Input|Rate of change'!$C$14:$O$14,0)))*IF('Calc|Opex forecast'!$E$75="$millions",1000000,IF($E$12="$000",1000,1))/IF($E12="$millions",1000000,IF($E12="$000",1000,1))) -> 0 | M12: =IF(M11="",0,'Calc|Opex forecast'!M75*IF('Calc|Opex forecast'!$F$75="nominal",LOOKUP($F12,Nominal_to_Real,'Input|Rate of change'!N$26:N$32),INDEX('Input|Rate of change'!$C$14:$O$22,MATCH('Calc|Opex forecast'!$F$75,'Input|Rate of change'!$C$14:$C$22,0),MATCH('Output|Models'!$F12,'Input|Rate of change'!$C$14:$O$14,0)))*IF('Calc|Opex forecast'!$E$75="$millions",1000000,IF($E$12="$000",1000,1))/IF($E12="$millions",1000000,IF($E12="$000",1000,1))) -> 0 | N12: =IF(N11="",0,'Calc|Opex forecast'!N75*IF('Calc|Opex forecast'!$F$75="nominal",LOOKUP($F12,Nominal_to_Real,'Input|Rate of change'!O$26:O$32),INDEX('Input|Rate of change'!$C$14:$O$22,MATCH('Calc|Opex forecast'!$F$75,'Input|Rate of change'!$C$14:$C$22,0),MATCH('Output|Models'!$F12,'Input|Rate of change'!$C$14:$O$14,0)))*IF('Calc|Opex forecast'!$E$75="$millions",1000000,IF($E$12="$000",1000,1))/IF($E12="$millions",1000000,IF($E12="$000",1000,1))) -> 0 | O12: =IF(O11="",0,'Calc|Opex forecast'!O75*IF('Calc|Opex forecast'!$F$75="nominal",LOOKUP($F12,Nominal_to_Real,'Input|Rate of change'!P$26:P$32),INDEX('Input|Rate of change'!$C$14:$O$22,MATCH('Calc|Opex forecast'!$F$75,'Input|Rate of change'!$C$14:$C$22,0),MATCH('Output|Models'!$F12,'Input|Rate of change'!$C$14:$O$14,0)))*IF('Calc|Opex forecast'!$E$75="$millions",1000000,IF($E$12="$000",1000,1))/IF($E12="$millions",1000000,IF($E12="$000",1000,1))) -> 427.5241246 | P12: =IF(P11="",0,'Calc|Opex forecast'!P75*IF('Calc|Opex forecast'!$F$75="nominal",LOOKUP($F12,Nominal_to_Real,'Input|Rate of change'!Q$26:Q$32),INDEX('Input|Rate of change'!$C$14:$O$22,MATCH('Calc|Opex forecast'!$F$75,'Input|Rate of change'!$C$14:$C$22,0),MATCH('Output|Models'!$F12,'Input|Rate of change'!$C$14:$O$14,0)))*IF('Calc|Opex forecast'!$E$75="$millions",1000000,IF($E$12="$000",1000,1))/IF($E12="$millions",1000000,IF($E12="$000",1000,1))) -> 434.5943826 | Q12: =IF(Q11="",0,'Calc|Opex forecast'!Q75*IF('Calc|Opex forecast'!$F$75="nominal",LOOKUP($F12,Nominal_to_Real,'Input|Rate of change'!R$26:R$32),INDEX('Input|Rate of change'!$C$14:$O$22,MATCH('Calc|Opex forecast'!$F$75,'Input|Rate of change'!$C$14:$C$22,0),MATCH('Output|Models'!$F12,'Input|Rate of change'!$C$14:$O$14,0)))*IF('Calc|Opex forecast'!$E$75="$millions",1000000,IF($E$12="$000",1000,1))/IF($E12="$millions",1000000,IF($E12="$000",1000,1))) -> 443.9893883 | R12: =IF(R11="",0,'Calc|Opex forecast'!R75*IF('Calc|Opex forecast'!$F$75="nominal",LOOKUP($F12,Nominal_to_Real,'Input|Rate of change'!S$26:S$32),INDEX('Input|Rate of change'!$C$14:$O$22,MATCH('Calc|Opex forecast'!$F$75,'Input|Rate of change'!$C$14:$C$22,0),MATCH('Output|Models'!$F12,'Input|Rate of change'!$C$14:$O$14,0)))*IF('Calc|Opex forecast'!$E$75="$millions",1000000,IF($E$12="$000",1000,1))/IF($E12="$millions",1000000,IF($E12="$000",1000,1))) -> 452.2932805 | S12: =IF(S11="",0,'Calc|Opex forecast'!S75*IF('Calc|Opex forecast'!$F$75="nominal",LOOKUP($F12,Nominal_to_Real,'Input|Rate of change'!T$26:T$32),INDEX('Input|Rate of change'!$C$14:$O$22,MATCH('Calc|Opex forecast'!$F$75,'Input|Rate of change'!$C$14:$C$22,0),MATCH('Output|Models'!$F12,'Input|Rate of change'!$C$14:$O$14,0)))*IF('Calc|Opex forecast'!$E$75="$millions",1000000,IF($E$12="$000",1000,1))/IF($E12="$millions",1000000,IF($E12="$000",1000,1))) -> 459.0125769
S13: =SUM(O12:S12) -> 2217.413753
C14: Transmission | D14: Calc | Opex forecast | E14: =$E$8 -> $millions | F14: =$F$8 -> 2018-19 | J14: =IF(J11="",0,'Calc|Opex forecast'!J76*IF('Calc|Opex forecast'!$F$76="nominal",LOOKUP($F12,Nominal_to_Real,'Input|Rate of change'!K$26:K$32),INDEX('Input|Rate of change'!$C$14:$O$22,MATCH('Calc|Opex forecast'!$F$76,'Input|Rate of change'!$C$14:$C$22,0),MATCH('Output|Models'!$F12,'Input|Rate of change'!$C$14:$O$14,0)))*IF('Calc|Opex forecast'!$E$76="$millions",1000000,IF($E$14="$000",1000,1))/IF($E12="$millions",1000000,IF($E14="$000",1000,1))) -> 0 | K14: =IF(K11="",0,'Calc|Opex forecast'!K76*IF('Calc|Opex forecast'!$F$76="nominal",LOOKUP($F12,Nominal_to_Real,'Input|Rate of change'!L$26:L$32),INDEX('Input|Rate of change'!$C$14:$O$22,MATCH('Calc|Opex forecast'!$F$76,'Input|Rate of change'!$C$14:$C$22,0),MATCH('Output|Models'!$F12,'Input|Rate of change'!$C$14:$O$14,0)))*IF('Calc|Opex forecast'!$E$76="$millions",1000000,IF($E$14="$000",1000,1))/IF($E12="$millions",1000000,IF($E14="$000",1000,1))) -> 0 | L14: =IF(L11="",0,'Calc|Opex forecast'!L76*IF('Calc|Opex forecast'!$F$76="nominal",LOOKUP($F12,Nominal_to_Real,'Input|Rate of change'!M$26:M$32),INDEX('Input|Rate of change'!$C$14:$O$22,MATCH('Calc|Opex forecast'!$F$76,'Input|Rate of change'!$C$14:$C$22,0),MATCH('Output|Models'!$F12,'Input|Rate of change'!$C$14:$O$14,0)))*IF('Calc|Opex forecast'!$E$76="$millions",1000000,IF($E$14="$000",1000,1))/IF($E12="$millions",1000000,IF($E14="$000",1000,1))) -> 0 | M14: =IF(M11="",0,'Calc|Opex forecast'!M76*IF('Calc|Opex forecast'!$F$76="nominal",LOOKUP($F12,Nominal_to_Real,'Input|Rate of change'!N$26:N$32),INDEX('Input|Rate of change'!$C$14:$O$22,MATCH('Calc|Opex forecast'!$F$76,'Input|Rate of change'!$C$14:$C$22,0),MATCH('Output|Models'!$F12,'Input|Rate of change'!$C$14:$O$14,0)))*IF('Calc|Opex forecast'!$E$76="$millions",1000000,IF($E$14="$000",1000,1))/IF($E12="$millions",1000000,IF($E14="$000",1000,1))) -> 0 | N14: =IF(N11="",0,'Calc|Opex forecast'!N76*IF('Calc|Opex forecast'!$F$76="nominal",LOOKUP($F12,Nominal_to_Real,'Input|Rate of change'!O$26:O$32),INDEX('Input|Rate of change'!$C$14:$O$22,MATCH('Calc|Opex forecast'!$F$76,'Input|Rate of change'!$C$14:$C$22,0),MATCH('Output|Models'!$F12,'Input|Rate of change'!$C$14:$O$14,0)))*IF('Calc|Opex forecast'!$E$76="$millions",1000000,IF($E$14="$000",1000,1))/IF($E12="$millions",1000000,IF($E14="$000",1000,1))) -> 0 | O14: =IF(O11="",0,'Calc|Opex forecast'!O76*IF('Calc|Opex forecast'!$F$76="nominal",LOOKUP($F12,Nominal_to_Real,'Input|Rate of change'!P$26:P$32),INDEX('Input|Rate of change'!$C$14:$O$22,MATCH('Calc|Opex forecast'!$F$76,'Input|Rate of change'!$C$14:$C$22,0),MATCH('Output|Models'!$F12,'Input|Rate of change'!$C$14:$O$14,0)))*IF('Calc|Opex forecast'!$E$76="$millions",1000000,IF($E$14="$000",1000,1))/IF($E12="$millions",1000000,IF($E14="$000",1000,1))) -> 35.65177174 | P14: =IF(P11="",0,'Calc|Opex forecast'!P76*IF('Calc|Opex forecast'!$F$76="nominal",LOOKUP($F12,Nominal_to_Real,'Input|Rate of change'!Q$26:Q$32),INDEX('Input|Rate of change'!$C$14:$O$22,MATCH('Calc|Opex forecast'!$F$76,'Input|Rate of change'!$C$14:$C$22,0),MATCH('Output|Models'!$F12,'Input|Rate of change'!$C$14:$O$14,0)))*IF('Calc|Opex forecast'!$E$76="$millions",1000000,IF($E$14="$000",1000,1))/IF($E12="$millions",1000000,IF($E14="$000",1000,1))) -> 36.2413694 | Q14: =IF(Q11="",0,'Calc|Opex forecast'!Q76*IF('Calc|Opex forecast'!$F$76="nominal",LOOKUP($F12,Nominal_to_Real,'Input|Rate of change'!R$26:R$32),INDEX('Input|Rate of change'!$C$14:$O$22,MATCH('Calc|Opex forecast'!$F$76,'Input|Rate of change'!$C$14:$C$22,0),MATCH('Output|Models'!$F12,'Input|Rate of change'!$C$14:$O$14,0)))*IF('Calc|Opex forecast'!$E$76="$millions",1000000,IF($E$14="$000",1000,1))/IF($E12="$millions",1000000,IF($E14="$000",1000,1))) -> 37.02483068 | R14: =IF(R11="",0,'Calc|Opex forecast'!R76*IF('Calc|Opex forecast'!$F$76="nominal",LOOKUP($F12,Nominal_to_Real,'Input|Rate of change'!S$26:S$32),INDEX('Input|Rate of change'!$C$14:$O$22,MATCH('Calc|Opex forecast'!$F$76,'Input|Rate of change'!$C$14:$C$22,0),MATCH('Output|Models'!$F12,'Input|Rate of change'!$C$14:$O$14,0)))*IF('Calc|Opex forecast'!$E$76="$millions",1000000,IF($E$14="$000",1000,1))/IF($E12="$millions",1000000,IF($E14="$000",1000,1))) -> 37.71730264 | S14: =IF(S11="",0,'Calc|Opex forecast'!S76*IF('Calc|Opex forecast'!$F$76="nominal",LOOKUP($F12,Nominal_to_Real,'Input|Rate of change'!T$26:T$32),INDEX('Input|Rate of change'!$C$14:$O$22,MATCH('Calc|Opex forecast'!$F$76,'Input|Rate of change'!$C$14:$C$22,0),MATCH('Output|Models'!$F12,'Input|Rate of change'!$C$14:$O$14,0)))*IF('Calc|Opex forecast'!$E$76="$millions",1000000,IF($E$14="$000",1000,1))/IF($E12="$millions",1000000,IF($E14="$000",1000,1))) -> 38.27763318
S15: =SUM(O14:S14) -> 184.9129076
B17: End

Sheet Lookup|Tables
B1: =Index!$B$1 -> AER opex model | J1: Back to Index | L1: Key: | M1: Input | N1: External Link | O1: Internal Link | U1: Overall Check: | V1: ='Check|List'!$S$1 -> Ok
B2: =Index!$C$15 -> Lookup | Tables
B7: Unit Denominations
C9: =B7 -> Unit Denominations | D9: Source | G9: Ref
C10: Dollars | D10: AER | G10: $dollars
C11: Thousands | D11: AER | G11: $000
C12: Millions | D12: AER | G12: $millions
C14: Percent | D14: AER | G14: Per cent
C15: Unit | D15: AER | G15: unit
C16: Number | D16: AER | G16: number
C17: Factor | D17: AER | G17: factor
C19: Actual | D19: AER | G19: Actual
C20: Estimate | D20: AER | G20: Estimate
B22: Years
C24: =B22 -> Years | D24: Source | G24: Ref
C25: nominal | D25: AER | G25: nominal
C26: 2012-13 | D26: AER | G26: 2012-13
C27: 2013-14 | D27: AER | G27: 2013-14
C28: 2014-15 | D28: AER | G28: 2014-15
C29: 2015-16 | D29: AER | G29: 2015-16
C30: 2016-17 | D30: AER | G30: 2016-17
C31: 2017-18 | D31: AER | G31: 2017-18
C32: 2018-19 | D32: AER | G32: 2018-19
C33: 2019-20 | D33: AER | G33: 2019-20
C34: 2020-21 | D34: AER | G34: 2020-21
C35: 2021-22 | D35: AER | G35: 2021-22
C36: 2022-23 | D36: AER | G36: 2022-23
C37: 2023-24 | D37: AER | G37: 2023-24
C38: 2024-25 | D38: AER | G38: 2024-25
C39: 2025-26 | D39: AER | G39: 2025-26
C40: 2026-27 | D40: AER | G40: 2026-27
C41: 2027-28 | D41: AER | G41: 2027-28
C42: 2028-29 | D42: AER | G42: 2028-29
B44: End

Sheet Check|List
B1: =Index!$B$1 -> AER opex model | J1: Back to Index | L1: Key: | M1: Input | N1: External Link | O1: Internal Link | R1: Overall Check: | S1: =IF(COUNTIF(G10:G17,"Check")=0,"Ok","Check") -> Ok
B2: =Index!$C$16 -> Check | List
B7: Check List
C9: Sheet | D9: Source | E9: Unit | G9: Status
C10: =Index!C7 -> Input | General | D10: =C10 -> Input | General | E10: Ok/Check | G10: ='Input|General'!S1 -> OK
C11: =Index!C8 -> Input | Inflation | D11: =C11 -> Input | Inflation | E11: Ok/Check | G11: ='Input|Inflation'!S1 -> OK
C12: =Index!C9 -> Input | Reported opex | D12: =C12 -> Input | Reported opex | E12: Ok/Check | G12: ='Input|Reported opex'!S1 -> OK
C13: =Index!C10 -> Input | Rate of change | D13: Input | Rate of change | E13: Ok/Check | G13: ='Input|Rate of change'!T1 -> OK
C14: =Index!C11 -> Input | Step changes | D14: Input | Step changes | E14: Ok/Check | G14: ='Input|Step changes'!S1 -> OK
C15: =Index!C12 -> Input | Dx TX split | D15: =C15 -> Input | Dx TX split | E15: Ok/Check | G15: ='Input|Dx Tx split'!S1 -> OK
C16: =Index!C13 -> Calc | Opex Forecast | D16: Calc | Opex Forecast | E16: Ok/Check | G16: ='Calc|Opex forecast'!S1 -> n/a
C17: =Index!C14 -> Output | Models | D17: Output | Models | E17: Ok/Check | G17: ='Output|Models'!S1 -> OK
B19: End
